SERVICE_CODE,ORGANISATION_UNIT,EXPENDITURE_CATEGORY,EXPENDITURE_DESCRIPTION,EXPENDITURE_CODE,NARRATIVE,DATE,TRANSATION_CODE,NET_AMOUNT,SUPPLIER_CODE,SUPPLIER_NAME,FROM_DATE,TO_DATE,FINANCIAL_PERIOD_YEAR
,LEE VALLEY MARINA SPRINGFIELD,PREMISES RELATED EXPENDITURE,GENERAL WASTE,2211,P121653-SERVICE-General waste & Recyling April to Sept 2023,05/09/2023 00:00,273745,1216.48,CL0037,VEOLIA ES (UK) LTD,05/01/2023 00:00,28/5/2023 00:00:00,P02-2024
,LEE VALLEY MARINA STANSTEAD,PREMISES RELATED EXPENDITURE,GENERAL WASTE,2211,P121961-SERVICE-annual bin pick ups for RH & SM,17/5/2023 00:00:00,273692,631.18,CL0037,VEOLIA ES (UK) LTD,05/01/2023 00:00,28/5/2023 00:00:00,P02-2024
,LEE VALLEY MARINA STANSTEAD,PREMISES RELATED EXPENDITURE,GENERAL WASTE,2211,P121961-SERVICE-annual bin pick ups for RH & SM,17/5/2023 00:00:00,273693,824.09,CL0037,VEOLIA ES (UK) LTD,05/01/2023 00:00,28/5/2023 00:00:00,P02-2024
,LEE VALLEY MARINA STANSTEAD,PREMISES RELATED EXPENDITURE,GENERAL WASTE,2211,P121961-SERVICE-annual bin pick ups for RH & SM,17/5/2023 00:00:00,273694,235.08,CL0037,VEOLIA ES (UK) LTD,05/01/2023 00:00,28/5/2023 00:00:00,P02-2024
P&V,LEE VALLEY FARM HOLYFIELDHALL,PREMISES RELATED EXPENDITURE,GENERAL WASTE,2211,P121856-SERVICE-Waste for Incineration,05/10/2023 00:00,273796,442.7,BY0049,BYWATERS (LEYTON) LTD,05/01/2023 00:00,28/5/2023 00:00:00,P02-2024
,LEE VALLEY CAMPSITE,PREMISES RELATED EXPENDITURE,GENERAL WASTE,2211,P119822-SERVICE-January 23 empty,24/5/2023 00:00:00,271749,747.16,CL0037,VEOLIA ES (UK) LTD,05/01/2023 00:00,28/5/2023 00:00:00,P02-2024
,LEE VALLEY CAMPSITE,PREMISES RELATED EXPENDITURE,GENERAL WASTE,2211,P119822-SERVICE-January 23 empty,24/5/2023 00:00:00,272154,-548.7,CL0037,VEOLIA ES (UK) LTD,05/01/2023 00:00,28/5/2023 00:00:00,P02-2024
,LEE VALLEY CAMPSITE,PREMISES RELATED EXPENDITURE,GENERAL WASTE,2211,P121610-SERVICE-Skip empty APRIL -JUN 23,23/5/2023 00:00:00,273696,150,CL0037,VEOLIA ES (UK) LTD,05/01/2023 00:00,28/5/2023 00:00:00,P02-2024
,LEE VALLEY CAMPSITE,PREMISES RELATED EXPENDITURE,GENERAL WASTE,2211,P121610-SERVICE-Skip empty APRIL -JUN 23,24/5/2023 00:00:00,273697,747.16,CL0037,VEOLIA ES (UK) LTD,05/01/2023 00:00,28/5/2023 00:00:00,P02-2024
,LEE VALLEY CAMPSITE,PREMISES RELATED EXPENDITURE,GENERAL WASTE,2211,P119822-SERVICE-January 23 empty,16/5/2023 00:00:00,273917,365.8,CL0037,VEOLIA ES (UK) LTD,05/01/2023 00:00,28/5/2023 00:00:00,P02-2024
,LEE VALLEY CAMPSITE,PREMISES RELATED EXPENDITURE,GENERAL WASTE,2211,P119822-SERVICE-February 23 empty,16/5/2023 00:00:00,273917,415.38,CL0037,VEOLIA ES (UK) LTD,05/01/2023 00:00,28/5/2023 00:00:00,P02-2024
,LEE VALLEY CAMPSITE,PREMISES RELATED EXPENDITURE,GENERAL WASTE,2211,P119822-SERVICE-January 23 empty,16/5/2023 00:00:00,273918,-781.18,CL0037,VEOLIA ES (UK) LTD,05/01/2023 00:00,28/5/2023 00:00:00,P02-2024
,LEE VALLEY CAMPSITE,PREMISES RELATED EXPENDITURE,GENERAL WASTE,2211,P119822-SERVICE-January 23 empty,24/5/2023 00:00:00,274214,-182.9,CL0037,VEOLIA ES (UK) LTD,05/01/2023 00:00,28/5/2023 00:00:00,P02-2024
,LEE VALLEY CAMPSITE,PREMISES RELATED EXPENDITURE,GENERAL WASTE,2211,P121610-SERVICE-Skip empty APRIL -JUN 23,24/5/2023 00:00:00,274215,-182.9,CL0037,VEOLIA ES (UK) LTD,05/01/2023 00:00,28/5/2023 00:00:00,P02-2024
,LEE VALLEY CARAVAN PARK,PREMISES RELATED EXPENDITURE,GENERAL WASTE,2211,P121849-SERVICE-excwss weight surcharge,05/09/2023 00:00,273690,702,CL0037,VEOLIA ES (UK) LTD,05/01/2023 00:00,28/5/2023 00:00:00,P02-2024
,LEE VALLEY CARAVAN PARK,PREMISES RELATED EXPENDITURE,GENERAL WASTE,2211,P121850-SERVICE-Monthly waste collection,05/09/2023 00:00,273691,2391.3,CL0037,VEOLIA ES (UK) LTD,05/01/2023 00:00,28/5/2023 00:00:00,P02-2024
P&V,SOUTH AREA RANGERS,PREMISES RELATED EXPENDITURE,GENERAL WASTE,2211,P121714-SERVICE-Skip at WaterWorks Centre,23/5/2023 00:00:00,274027,323.4,GB0239,GBN SERVICES LTD,05/01/2023 00:00,28/5/2023 00:00:00,P02-2024
P&V,RIVER LEE COUNTRY PARK,PREMISES RELATED EXPENDITURE,GENERAL WASTE,2211,P121689-SERVICE-12yd General Rubbish Skip at Holyfield Hall F,05/09/2023 00:00,273645,373.4,GB0239,GBN SERVICES LTD,05/01/2023 00:00,28/5/2023 00:00:00,P02-2024
P&V,RIVER LEE COUNTRY PARK,PREMISES RELATED EXPENDITURE,GENERAL WASTE,2211,P121689-SERVICE-12yd General Rubbish Skip at Holyfield Hall F,23/5/2023 00:00:00,274193,273.4,GB0239,GBN SERVICES LTD,05/01/2023 00:00,28/5/2023 00:00:00,P02-2024
P&V,RIVER LEE COUNTRY PARK,PREMISES RELATED EXPENDITURE,GENERAL WASTE,2211,P121689-SERVICE-Tyres in Skip,23/5/2023 00:00:00,274193,50,GB0239,GBN SERVICES LTD,05/01/2023 00:00,28/5/2023 00:00:00,P02-2024
,LV LEISURE CENTRE CAMPSITE,PREMISES RELATED EXPENDITURE,GENERAL WASTE,2211,P121847-SERVICE-Skip and compactor disposal,05/09/2023 00:00,273695,421.26,CL0037,VEOLIA ES (UK) LTD,05/01/2023 00:00,28/5/2023 00:00:00,P02-2024
,LV LEISURE CENTRE CAMPSITE,PREMISES RELATED EXPENDITURE,GENERAL WASTE,2211,P121933-SERVICE-Recycling bin empty,23/5/2023 00:00:00,273778,348.21,BY0049,BYWATERS (LEYTON) LTD,05/01/2023 00:00,28/5/2023 00:00:00,P02-2024
P&V,GUNPOWDER PARK,PREMISES RELATED EXPENDITURE,FLYTIPPING/WHITE GOOD DISPOSAL,2213,P121822-SERVICE-Remove Fly Tip at Rammey Marsh Car Park,15/5/2023 00:00:00,273813,250,JO0019,R G JOYCE,05/01/2023 00:00,28/5/2023 00:00:00,P02-2024
P&V,MYDDELTON HOUSE,PREMISES RELATED EXPENDITURE,RECYCLING,2214,P121873-SERVICE-Recycling,05/09/2023 00:00,273759,225.26,CA0341,F & R CAWLEY LTD,05/01/2023 00:00,28/5/2023 00:00:00,P02-2024
P&V,MYDDELTON HOUSE,PREMISES RELATED EXPENDITURE,BUILDING SERVICE AGREEMENTS,2220,P121870-SERVICE-Sanitary Services,05/09/2023 00:00,273640,190.23,PE0015,PHS GROUP PLC,05/01/2023 00:00,28/5/2023 00:00:00,P02-2024
P&V,MYDDELTON HOUSE,PREMISES RELATED EXPENDITURE,BUILDING SERVICE AGREEMENTS,2220,P121870-SERVICE-Sanitary Services,05/09/2023 00:00,273641,9.09,PE0015,PHS GROUP PLC,05/01/2023 00:00,28/5/2023 00:00:00,P02-2024
P&V,MYDDELTON HOUSE,PREMISES RELATED EXPENDITURE,BUILDING SERVICE AGREEMENTS,2220,P121870-SERVICE-Sanitary Services,05/09/2023 00:00,273642,24.15,PE0015,PHS GROUP PLC,05/01/2023 00:00,28/5/2023 00:00:00,P02-2024
P&V,MYDDELTON HOUSE,PREMISES RELATED EXPENDITURE,BUILDING SERVICE AGREEMENTS,2220,P121872-SERVICE-Service Contract,28/5/2023 00:00:00,273727,745.08,MY0444,MYRIAD HEAT & POWER LTD T/A MYRIAD PLANTROOM,05/01/2023 00:00,28/5/2023 00:00:00,P02-2024
P&V,MYDDELTON HOUSE,PREMISES RELATED EXPENDITURE,BUILDING SERVICE AGREEMENTS,2220,P119975-SERVICE-Legionella Service Contract,17/5/2023 00:00:00,273985,726,JA0177,JASUN ENVIROCARE PLC,05/01/2023 00:00,28/5/2023 00:00:00,P02-2024
P&V,MYDDELTON HOUSE,PREMISES RELATED EXPENDITURE,BUILDING SERVICE AGREEMENTS,2220,P121870-SERVICE-Sanitary Services,23/5/2023 00:00:00,274182,80.68,PE0015,PHS GROUP PLC,05/01/2023 00:00,28/5/2023 00:00:00,P02-2024
P&V,MYDDELTON HOUSE,PREMISES RELATED EXPENDITURE,BUILDING SERVICE AGREEMENTS,2220,P121870-SERVICE-Sanitary Services,23/5/2023 00:00:00,274205,80.68,PE0015,PHS GROUP PLC,05/01/2023 00:00,28/5/2023 00:00:00,P02-2024
,LEE VALLEY MARINA SPRINGFIELD,PREMISES RELATED EXPENDITURE,BUILDING SERVICE AGREEMENTS,2220,P121809-SERVICE-Electric Testing,05/09/2023 00:00,273724,650,BR0018,BRADSHAW ELECTRICAL LIMITED,05/01/2023 00:00,28/5/2023 00:00:00,P02-2024
,LEE VALLEY MARINA SPRINGFIELD,PREMISES RELATED EXPENDITURE,BUILDING SERVICE AGREEMENTS,2220,P121657-SERVICE-To Supply pest & Vermin control,05/09/2023 00:00,273736,450,VE0006,VERMINATE CITY & RURAL PEST CONTROL LTD,05/01/2023 00:00,28/5/2023 00:00:00,P02-2024
R&B,CORPORATE TRAINING,EMPLOYEES,TRAINING EXPENSES,1305,P121968-SERVICE-Zoe Miller FAW Training 5-7 June 23,23/5/2023 00:00:00,274201,419,BR0069,BRITISH RED CROSS,05/01/2023 00:00,28/5/2023 00:00:00,P02-2024
CEO,PROPERTY,EMPLOYEES,TRAINING EXPENSES,1305,P121696-SERVICE-Allotment Management Course 9-10 May for Pete,23/5/2023 00:00:00,274132,182,AP0492,APSE,05/01/2023 00:00,28/5/2023 00:00:00,P02-2024
R&B,FINANCE,EMPLOYEES,TRAINING EXPENSES,1305,P121514-SERVICE-PAYROLL BASIC TRAINING - 21/06/2023,18/5/2023 00:00:00,273659,350,CI0721,CIPHR,05/01/2023 00:00,28/5/2023 00:00:00,P02-2024
R&B,FINANCE,EMPLOYEES,TRAINING EXPENSES,1305,P121514-SERVICE-PAYROLL ADVANCED TRAINING - 27/04/2023,18/5/2023 00:00:00,273659,350,CI0721,CIPHR,05/01/2023 00:00,28/5/2023 00:00:00,P02-2024
,LEE VALLEY CAMPSITE,EMPLOYEES,TRAINING EXPENSES,1305,P121447-SERVICE-Knapsack course D Bates,23/5/2023 00:00:00,274001,400,SA0137,SAFFRON WALDEN AGRICULTURAL TRAINING GROUP,05/01/2023 00:00,28/5/2023 00:00:00,P02-2024
P&V,NORTH AREA RANGERS,EMPLOYEES,TRAINING EXPENSES,1305,P120401-SERVICE-ATV (Quad) Training + Lantra Certification -,23/5/2023 00:00:00,274037,600,SA0137,SAFFRON WALDEN AGRICULTURAL TRAINING GROUP,05/01/2023 00:00,28/5/2023 00:00:00,P02-2024
R&B,NON DISTRIBUTED COSTS,EMPLOYEES,SUPERANNUATION ADDED YEARS,1310,Residual liabilities,17/5/2023 00:00:00,273954,5240.63,LO0031,LONDON PENSIONS FUND AUTHORITY,05/01/2023 00:00,28/5/2023 00:00:00,P02-2024
P&V,YOUTH AND SCHOOLS,EMPLOYEES,CRB CHECKS,1330,P121842-SERVICE-DBS Check,15/5/2023 00:00:00,273708,18,DD0119,DUE DILIGENCE CHECKING LIMITED,05/01/2023 00:00,28/5/2023 00:00:00,P02-2024
P&V,NORTH AREA RANGERS,EMPLOYEES,CRB CHECKS,1330,dbs check,05/09/2023 00:00,273707,76,DD0119,DUE DILIGENCE CHECKING LIMITED,05/01/2023 00:00,28/5/2023 00:00:00,P02-2024
P&V,NORTH AREA RANGERS,EMPLOYEES,CRB CHECKS,1330,ADMIN FEE,05/09/2023 00:00,273707,36,DD0119,DUE DILIGENCE CHECKING LIMITED,05/01/2023 00:00,28/5/2023 00:00:00,P02-2024
P&V,SOUTH AREA RANGERS,EMPLOYEES,CRB CHECKS,1330,dbs check,05/09/2023 00:00,273707,114,DD0119,DUE DILIGENCE CHECKING LIMITED,05/01/2023 00:00,28/5/2023 00:00:00,P02-2024
P&V,SOUTH AREA RANGERS,EMPLOYEES,CRB CHECKS,1330,ADMIN FEE,05/09/2023 00:00,273707,54,DD0119,DUE DILIGENCE CHECKING LIMITED,05/01/2023 00:00,28/5/2023 00:00:00,P02-2024
,LV LEISURE CENTRE CAMPSITE,EMPLOYEES,CRB CHECKS,1330,dbs check,05/09/2023 00:00,273707,36,DD0119,DUE DILIGENCE CHECKING LIMITED,05/01/2023 00:00,28/5/2023 00:00:00,P02-2024
,LV LEISURE CENTRE CAMPSITE,EMPLOYEES,CRB CHECKS,1330,dbs check,05/09/2023 00:00,273707,36,DD0119,DUE DILIGENCE CHECKING LIMITED,05/01/2023 00:00,28/5/2023 00:00:00,P02-2024
R&B,CORPORATE TRAINING,EMPLOYEES,APPRENTICE LEVY,1390,PAYE -May 2023 payroll,15/5/2023 00:00:00,273906,878,HM0368,HMRC,05/01/2023 00:00,28/5/2023 00:00:00,P02-2024
CEO,LVLC SERVICE CHARGE,PREMISES RELATED EXPENDITURE,SCHEDULED GROUND MAINTENANCE,2111,Apr-23,15/5/2023 00:00:00,273643,110.27,GL0214,GLENDALE GROUNDS MANAGEMENT LIMITED,05/01/2023 00:00,28/5/2023 00:00:00,P02-2024
CEO,LVLC SERVICE CHARGE,PREMISES RELATED EXPENDITURE,SCHEDULED GROUND MAINTENANCE,2111,Apr-23,15/5/2023 00:00:00,273643,3023.46,GL0214,GLENDALE GROUNDS MANAGEMENT LIMITED,05/01/2023 00:00,28/5/2023 00:00:00,P02-2024
CEO,LVLC SERVICE CHARGE,PREMISES RELATED EXPENDITURE,SCHEDULED GROUND MAINTENANCE,2111,P121523-SERVICE-Tree Works at LV Leisure Complex,05/10/2023 00:00,273648,1450,PA0222,PARKIN & PARKER TREE SPECIALISTS,05/01/2023 00:00,28/5/2023 00:00:00,P02-2024
P&V,MYDDELTON HOUSE,PREMISES RELATED EXPENDITURE,CONTRACT CLEANING,2120,P121875-SERVICE-Myddelton House Cleaning,05/09/2023 00:00,273781,1681.68,BR0632,BRITANNIA SERVICES GROUP LTD,05/01/2023 00:00,28/5/2023 00:00:00,P02-2024
,LEE VALLEY WATERWORKS CENTRE,PREMISES RELATED EXPENDITURE,CONTRACT CLEANING,2120,P118242-SERVICE-Cleaning WaterWorks Centre,05/09/2023 00:00,273783,776.16,BR0632,BRITANNIA SERVICES GROUP LTD,05/01/2023 00:00,28/5/2023 00:00:00,P02-2024
,LEE VALLEY CAMPSITE,PREMISES RELATED EXPENDITURE,CONTRACT CLEANING,2120,P121607-SERVICE-26/05/23 25/06/23,15/5/2023 00:00:00,273703,88.25,IN0012,INITIAL WASHROOM HYGIENE,05/01/2023 00:00,28/5/2023 00:00:00,P02-2024
,LEE VALLEY CAMPSITE,PREMISES RELATED EXPENDITURE,CONTRACT CLEANING,2120,P121643-SERVICE-Site Cleaning April 23,16/5/2023 00:00:00,273742,4110,LI0305,LIMPIAR CLEANING,05/01/2023 00:00,28/5/2023 00:00:00,P02-2024
,LEE VALLEY CARAVAN PARK,PREMISES RELATED EXPENDITURE,CONTRACT CLEANING,2120,P121839-SERVICE-Cleaning of units,15/5/2023 00:00:00,273740,3932,LI0305,LIMPIAR CLEANING,05/01/2023 00:00,28/5/2023 00:00:00,P02-2024
,LEE VALLEY CARAVAN PARK,PREMISES RELATED EXPENDITURE,CONTRACT CLEANING,2120,P121982-SERVICE-Monthly service,23/5/2023 00:00:00,274028,93.28,IN0012,INITIAL WASHROOM HYGIENE,05/01/2023 00:00,28/5/2023 00:00:00,P02-2024
P&V,WILDLIFE DISCOVERY CENTRE,PREMISES RELATED EXPENDITURE,CONTRACT CLEANING,2120,P118094-SERVICE-Cleaning,17/5/2023 00:00:00,273784,388.08,BR0632,BRITANNIA SERVICES GROUP LTD,05/01/2023 00:00,28/5/2023 00:00:00,P02-2024
P&V,GUNPOWDER PARK,PREMISES RELATED EXPENDITURE,CONTRACT CLEANING,2120,Apr-23,15/5/2023 00:00:00,273643,552.26,GL0214,GLENDALE GROUNDS MANAGEMENT LIMITED,05/01/2023 00:00,28/5/2023 00:00:00,P02-2024
P&V,RIVER LEE COUNTRY PARK,PREMISES RELATED EXPENDITURE,CONTRACT CLEANING,2120,Apr-23,15/5/2023 00:00:00,273643,1104.51,GL0214,GLENDALE GROUNDS MANAGEMENT LIMITED,05/01/2023 00:00,28/5/2023 00:00:00,P02-2024
P&V,MYDDLETON HSE HERITAGE CENTRE,PREMISES RELATED EXPENDITURE,CLEANING CONTRACT,2121,P121876-SERVICE-Tea Room Cleaning,05/09/2023 00:00,273782,840.84,BR0632,BRITANNIA SERVICES GROUP LTD,05/01/2023 00:00,28/5/2023 00:00:00,P02-2024
,LV LEISURE CENTRE CAMPSITE,PREMISES RELATED EXPENDITURE,CLEANING CONTRACT,2121,P121932-SERVICE-Sanitary waste and bin empties,23/5/2023 00:00:00,273790,162.3,PE0015,PHS GROUP PLC,05/01/2023 00:00,28/5/2023 00:00:00,P02-2024
,LEE VALLEY CAMPSITE,PREMISES RELATED EXPENDITURE,LINEN SERVICE,2122,P121642-SERVICE-May 23,28/5/2023 00:00:00,274318,255.06,JO0168,JOHNSONS STALBRIDGE LINEN SERVICES,05/01/2023 00:00,28/5/2023 00:00:00,P02-2024
,LEE VALLEY CAMPSITE,PREMISES RELATED EXPENDITURE,LINEN SERVICE,2122,P121642-SERVICE-June 23,28/5/2023 00:00:00,274318,82.34,JO0168,JOHNSONS STALBRIDGE LINEN SERVICES,05/01/2023 00:00,28/5/2023 00:00:00,P02-2024
,LEE VALLEY MARINA STANSTEAD,PREMISES RELATED EXPENDITURE,GM MAIN CONTRACT SCHEDULED,2141,Apr-23,15/5/2023 00:00:00,273643,645.18,GL0214,GLENDALE GROUNDS MANAGEMENT LIMITED,05/01/2023 00:00,28/5/2023 00:00:00,P02-2024
,LEE VALLEY WATERWORKS CENTRE,PREMISES RELATED EXPENDITURE,GM MAIN CONTRACT SCHEDULED,2141,Apr-23,15/5/2023 00:00:00,273643,265.73,GL0214,GLENDALE GROUNDS MANAGEMENT LIMITED,05/01/2023 00:00,28/5/2023 00:00:00,P02-2024
,LEE VALLEY WATERWORKS CENTRE,PREMISES RELATED EXPENDITURE,GM MAIN CONTRACT SCHEDULED,2141,Apr-23,15/5/2023 00:00:00,273643,606.12,GL0214,GLENDALE GROUNDS MANAGEMENT LIMITED,05/01/2023 00:00,28/5/2023 00:00:00,P02-2024
,LEE VALLEY FARM HAYES HILL,PREMISES RELATED EXPENDITURE,GM MAIN CONTRACT SCHEDULED,2141,Apr-23,15/5/2023 00:00:00,273643,149.68,GL0214,GLENDALE GROUNDS MANAGEMENT LIMITED,05/01/2023 00:00,28/5/2023 00:00:00,P02-2024
P&V,EAST INDIA DOCK AND BOW CREEK,PREMISES RELATED EXPENDITURE,GM MAIN CONTRACT SCHEDULED,2141,Apr-23,15/5/2023 00:00:00,273643,949.09,GL0214,GLENDALE GROUNDS MANAGEMENT LIMITED,05/01/2023 00:00,28/5/2023 00:00:00,P02-2024
P&V,EAST INDIA DOCK AND BOW CREEK,PREMISES RELATED EXPENDITURE,GM MAIN CONTRACT SCHEDULED,2141,Apr-23,15/5/2023 00:00:00,273643,849.88,GL0214,GLENDALE GROUNDS MANAGEMENT LIMITED,05/01/2023 00:00,28/5/2023 00:00:00,P02-2024
P&V,NORTH AREA RANGERS,PREMISES RELATED EXPENDITURE,GM MAIN CONTRACT SCHEDULED,2141,Apr-23,15/5/2023 00:00:00,273643,5715.34,GL0214,GLENDALE GROUNDS MANAGEMENT LIMITED,05/01/2023 00:00,28/5/2023 00:00:00,P02-2024
P&V,SOUTH AREA RANGERS,PREMISES RELATED EXPENDITURE,GM MAIN CONTRACT SCHEDULED,2141,Apr-23,15/5/2023 00:00:00,273643,759.27,GL0214,GLENDALE GROUNDS MANAGEMENT LIMITED,05/01/2023 00:00,28/5/2023 00:00:00,P02-2024
P&V,SOUTH AREA RANGERS,PREMISES RELATED EXPENDITURE,GM MAIN CONTRACT SCHEDULED,2141,Apr-23,15/5/2023 00:00:00,273643,6528.09,GL0214,GLENDALE GROUNDS MANAGEMENT LIMITED,05/01/2023 00:00,28/5/2023 00:00:00,P02-2024
P&V,ABBEY GARDENS,PREMISES RELATED EXPENDITURE,GM MAIN CONTRACT SCHEDULED,2141,Apr-23,15/5/2023 00:00:00,273643,2895.18,GL0214,GLENDALE GROUNDS MANAGEMENT LIMITED,05/01/2023 00:00,28/5/2023 00:00:00,P02-2024
P&V,GUNPOWDER PARK,PREMISES RELATED EXPENDITURE,GM MAIN CONTRACT SCHEDULED,2141,Apr-23,15/5/2023 00:00:00,273643,2850.51,GL0214,GLENDALE GROUNDS MANAGEMENT LIMITED,05/01/2023 00:00,28/5/2023 00:00:00,P02-2024
P&V,RIVER LEE COUNTRY PARK,PREMISES RELATED EXPENDITURE,GM MAIN CONTRACT SCHEDULED,2141,Apr-23,15/5/2023 00:00:00,273643,2657.45,GL0214,GLENDALE GROUNDS MANAGEMENT LIMITED,05/01/2023 00:00,28/5/2023 00:00:00,P02-2024
P&V,RIVER LEE COUNTRY PARK,PREMISES RELATED EXPENDITURE,GM MAIN CONTRACT SCHEDULED,2141,Apr-23,15/5/2023 00:00:00,273643,16663.85,GL0214,GLENDALE GROUNDS MANAGEMENT LIMITED,05/01/2023 00:00,28/5/2023 00:00:00,P02-2024
,LEE VALLEY VELOPARK,PREMISES RELATED EXPENDITURE,GM MAIN CONTRACT SCHEDULED,2141,Apr-23,15/5/2023 00:00:00,273643,7219.05,GL0214,GLENDALE GROUNDS MANAGEMENT LIMITED,05/01/2023 00:00,28/5/2023 00:00:00,P02-2024
,LV HOCKEY AND TENNIS CENTRE,PREMISES RELATED EXPENDITURE,GM MAIN CONTRACT SCHEDULED,2141,Apr-23,15/5/2023 00:00:00,273643,4439.13,GL0214,GLENDALE GROUNDS MANAGEMENT LIMITED,05/01/2023 00:00,28/5/2023 00:00:00,P02-2024
P&V,THREE MILLS,PREMISES RELATED EXPENDITURE,GM MAIN CONTRACT SCHEDULED,2141,Apr-23,15/5/2023 00:00:00,273643,1623.64,GL0214,GLENDALE GROUNDS MANAGEMENT LIMITED,05/01/2023 00:00,28/5/2023 00:00:00,P02-2024
,LEE VALLEY RIDING CENTRE,PREMISES RELATED EXPENDITURE,GM MAIN CONTRACT SCHEDULED,2141,Apr-23,15/5/2023 00:00:00,273643,495.97,GL0214,GLENDALE GROUNDS MANAGEMENT LIMITED,05/01/2023 00:00,28/5/2023 00:00:00,P02-2024
,LEE VALLEY ICE CENTRE,PREMISES RELATED EXPENDITURE,GM MAIN CONTRACT SCHEDULED,2141,Apr-23,15/5/2023 00:00:00,273643,335.95,GL0214,GLENDALE GROUNDS MANAGEMENT LIMITED,05/01/2023 00:00,28/5/2023 00:00:00,P02-2024
P&V,FORMER LV LIDO SITE,PREMISES RELATED EXPENDITURE,GM MAIN CONTRACT SCHEDULED,2141,Apr-23,15/5/2023 00:00:00,273643,1112.21,GL0214,GLENDALE GROUNDS MANAGEMENT LIMITED,05/01/2023 00:00,28/5/2023 00:00:00,P02-2024
,LEE VALLEY ATHLETICS CENTRE,PREMISES RELATED EXPENDITURE,GM MAIN CONTRACT SCHEDULED,2141,Apr-23,15/5/2023 00:00:00,273643,667.39,GL0214,GLENDALE GROUNDS MANAGEMENT LIMITED,05/01/2023 00:00,28/5/2023 00:00:00,P02-2024
,LEE VALLEY WHITE WATER CENTRE,PREMISES RELATED EXPENDITURE,GM MAIN CONTRACT SCHEDULED,2141,Apr-23,15/5/2023 00:00:00,273643,2651.35,GL0214,GLENDALE GROUNDS MANAGEMENT LIMITED,05/01/2023 00:00,28/5/2023 00:00:00,P02-2024
P&V,SOUTH AREA RANGERS,PREMISES RELATED EXPENDITURE,GM MAIN CONTRACT UNSCHEDULED,2142,Apr-23,15/5/2023 00:00:00,273643,123.97,GL0214,GLENDALE GROUNDS MANAGEMENT LIMITED,05/01/2023 00:00,28/5/2023 00:00:00,P02-2024
,LEE VALLEY WHITE WATER CENTRE,PREMISES RELATED EXPENDITURE,GM MAIN CONTRACT UNSCHEDULED,2142,P121846-SERVICE-WWC - Vegetarian clearance,05/10/2023 00:00,273755,15475,SA0691,SAMUEL BACON T/A ACORN SERVICES (HERTS) LTD,05/01/2023 00:00,28/5/2023 00:00:00,P02-2024
,LEE VALLEY WATERWORKS CENTRE,PREMISES RELATED EXPENDITURE,GM HORTICULTURE SCHEDULED,2143,Apr-23,15/5/2023 00:00:00,273643,169.95,GL0214,GLENDALE GROUNDS MANAGEMENT LIMITED,05/01/2023 00:00,28/5/2023 00:00:00,P02-2024
P&V,NORTH AREA RANGERS,PREMISES RELATED EXPENDITURE,GM HORTICULTURE SCHEDULED,2143,Apr-23,15/5/2023 00:00:00,273643,252.67,GL0214,GLENDALE GROUNDS MANAGEMENT LIMITED,05/01/2023 00:00,28/5/2023 00:00:00,P02-2024
P&V,SOUTH AREA RANGERS,PREMISES RELATED EXPENDITURE,GM HORTICULTURE SCHEDULED,2143,Apr-23,15/5/2023 00:00:00,273643,144.87,GL0214,GLENDALE GROUNDS MANAGEMENT LIMITED,05/01/2023 00:00,28/5/2023 00:00:00,P02-2024
P&V,ABBEY GARDENS,PREMISES RELATED EXPENDITURE,GM HORTICULTURE SCHEDULED,2143,Apr-23,15/5/2023 00:00:00,273643,1974.21,GL0214,GLENDALE GROUNDS MANAGEMENT LIMITED,05/01/2023 00:00,28/5/2023 00:00:00,P02-2024
P&V,GUNPOWDER PARK,PREMISES RELATED EXPENDITURE,GM HORTICULTURE SCHEDULED,2143,Apr-23,15/5/2023 00:00:00,273643,259.15,GL0214,GLENDALE GROUNDS MANAGEMENT LIMITED,05/01/2023 00:00,28/5/2023 00:00:00,P02-2024
P&V,RIVER LEE COUNTRY PARK,PREMISES RELATED EXPENDITURE,GM HORTICULTURE SCHEDULED,2143,Apr-23,15/5/2023 00:00:00,273643,134.48,GL0214,GLENDALE GROUNDS MANAGEMENT LIMITED,05/01/2023 00:00,28/5/2023 00:00:00,P02-2024
,LEE VALLEY VELOPARK,PREMISES RELATED EXPENDITURE,GM HORTICULTURE SCHEDULED,2143,Apr-23,15/5/2023 00:00:00,273643,1152.74,GL0214,GLENDALE GROUNDS MANAGEMENT LIMITED,05/01/2023 00:00,28/5/2023 00:00:00,P02-2024
,LV HOCKEY AND TENNIS CENTRE,PREMISES RELATED EXPENDITURE,GM HORTICULTURE SCHEDULED,2143,Apr-23,15/5/2023 00:00:00,273643,1660.02,GL0214,GLENDALE GROUNDS MANAGEMENT LIMITED,05/01/2023 00:00,28/5/2023 00:00:00,P02-2024
P&V,THREE MILLS,PREMISES RELATED EXPENDITURE,GM HORTICULTURE SCHEDULED,2143,Apr-23,15/5/2023 00:00:00,273643,53.88,GL0214,GLENDALE GROUNDS MANAGEMENT LIMITED,05/01/2023 00:00,28/5/2023 00:00:00,P02-2024
,LEE VALLEY RIDING CENTRE,PREMISES RELATED EXPENDITURE,GM HORTICULTURE SCHEDULED,2143,Apr-23,15/5/2023 00:00:00,273643,13.47,GL0214,GLENDALE GROUNDS MANAGEMENT LIMITED,05/01/2023 00:00,28/5/2023 00:00:00,P02-2024
P&V,FORMER LV LIDO SITE,PREMISES RELATED EXPENDITURE,GM HORTICULTURE SCHEDULED,2143,Apr-23,15/5/2023 00:00:00,273643,12.85,GL0214,GLENDALE GROUNDS MANAGEMENT LIMITED,05/01/2023 00:00,28/5/2023 00:00:00,P02-2024
,LEE VALLEY WHITE WATER CENTRE,PREMISES RELATED EXPENDITURE,GM HORTICULTURE SCHEDULED,2143,Apr-23,15/5/2023 00:00:00,273643,29.42,GL0214,GLENDALE GROUNDS MANAGEMENT LIMITED,05/01/2023 00:00,28/5/2023 00:00:00,P02-2024
P&V,NORTH AREA RANGERS,PREMISES RELATED EXPENDITURE,GM ARBORICULTURE UNSCHEDULED,2146,P121970-SERVICE-Emergency Tree Works at Stanstead Innings,23/5/2023 00:00:00,274142,340,VE0004,PRINCIPAL TREES LTD,05/01/2023 00:00,28/5/2023 00:00:00,P02-2024
P&V,NORTH AREA RANGERS,PREMISES RELATED EXPENDITURE,GM ARBORICULTURE UNSCHEDULED,2146,P121970-SERVICE-Emergency Tree Works at Stanstead Innings,23/5/2023 00:00:00,274142,100,VE0004,PRINCIPAL TREES LTD,05/01/2023 00:00,28/5/2023 00:00:00,P02-2024
P&V,NORTH AREA RANGERS,PREMISES RELATED EXPENDITURE,GM ARBORICULTURE UNSCHEDULED,2146,P121970-SERVICE-Emergency Tree Works at Stanstead Innings,23/5/2023 00:00:00,274142,265,VE0004,PRINCIPAL TREES LTD,05/01/2023 00:00,28/5/2023 00:00:00,P02-2024
P&V,RIVER LEE COUNTRY PARK,PREMISES RELATED EXPENDITURE,GM ARBORICULTURE UNSCHEDULED,2146,P119561-SERVICE-Tree Works at Cornmill Meadows - Tree Park,23/5/2023 00:00:00,274140,4825,VE0004,PRINCIPAL TREES LTD,05/01/2023 00:00,28/5/2023 00:00:00,P02-2024
P&V,RIVER LEE COUNTRY PARK,PREMISES RELATED EXPENDITURE,GM ARBORICULTURE UNSCHEDULED,2146,P119562-SERVICE-Tree Works at Cornmill Meadows - Tree Park,23/5/2023 00:00:00,274141,900,VE0004,PRINCIPAL TREES LTD,05/01/2023 00:00,28/5/2023 00:00:00,P02-2024
P&V,RIVER LEE COUNTRY PARK,PREMISES RELATED EXPENDITURE,GM ARBORICULTURE UNSCHEDULED,2146,P120501-SERVICE-Tree Works at Wharf Road,23/5/2023 00:00:00,274143,2990,VE0004,PRINCIPAL TREES LTD,05/01/2023 00:00,28/5/2023 00:00:00,P02-2024
P&V,RIVER LEE COUNTRY PARK,PREMISES RELATED EXPENDITURE,GM ARBORICULTURE UNSCHEDULED,2146,P120501-SERVICE-Tree Works at Clayton Hill,23/5/2023 00:00:00,274143,2750,VE0004,PRINCIPAL TREES LTD,05/01/2023 00:00,28/5/2023 00:00:00,P02-2024
P&V,RIVER LEE COUNTRY PARK,PREMISES RELATED EXPENDITURE,GM NON MAIN CONT UNSCHEDULED,2147,P121636-SERVICE-Tree Blockage Small River Lee,23/5/2023 00:00:00,273700,550,BU0090,BUSH WHEELER SERVICES LTD,05/01/2023 00:00,28/5/2023 00:00:00,P02-2024
P&V,RIVER LEE COUNTRY PARK,PREMISES RELATED EXPENDITURE,GM NON MAIN CONT UNSCHEDULED,2147,P121636-SERVICE-Tree Blockage Small River Lee,23/5/2023 00:00:00,273700,100,BU0090,BUSH WHEELER SERVICES LTD,05/01/2023 00:00,28/5/2023 00:00:00,P02-2024
P&V,RIVER LEE COUNTRY PARK,PREMISES RELATED EXPENDITURE,GM NON MAIN CONT UNSCHEDULED,2147,P121855-SERVICE-Clear Tree Blockage Small River Lee,28/5/2023 00:00:00,274194,550,BU0090,BUSH WHEELER SERVICES LTD,05/01/2023 00:00,28/5/2023 00:00:00,P02-2024
P&V,RIVER LEE COUNTRY PARK,PREMISES RELATED EXPENDITURE,GM NON MAIN CONT UNSCHEDULED,2147,P121855-SERVICE-Clear Tree Blockage Small River Lee,28/5/2023 00:00:00,274194,100,BU0090,BUSH WHEELER SERVICES LTD,05/01/2023 00:00,28/5/2023 00:00:00,P02-2024
P&V,SOUTH AREA RANGERS,PREMISES RELATED EXPENDITURE,HABITAT MANAGEMENT WORKS,2149,P120989-SERVICE-Strimming at QEOP,23/5/2023 00:00:00,274172,1560,MA0002,GTM RURAL  ENTERPRISES LIMITED,05/01/2023 00:00,28/5/2023 00:00:00,P02-2024
,LEE VALLEY MARINA SPRINGFIELD,PREMISES RELATED EXPENDITURE,BUILDING SERVICE AGREEMENTS,2220,"P121662-SERVICE-Sanitary Disposal,Dust Mats,Eco Shield",24/5/2023 00:00:00,274180,216.54,PE0015,PHS GROUP PLC,05/01/2023 00:00,28/5/2023 00:00:00,P02-2024
,LEE VALLEY MARINA SPRINGFIELD,PREMISES RELATED EXPENDITURE,BUILDING SERVICE AGREEMENTS,2220,"P121662-SERVICE-Sanitary Disposal,Dust Mats,Eco Shield",24/5/2023 00:00:00,274207,216.54,PE0015,PHS GROUP PLC,05/01/2023 00:00,28/5/2023 00:00:00,P02-2024
,LEE VALLEY CAMPSITE,PREMISES RELATED EXPENDITURE,BUILDING SERVICE AGREEMENTS,2220,P121646-SERVICE-April 23,15/5/2023 00:00:00,273767,70,VE0006,VERMINATE CITY & RURAL PEST CONTROL LTD,05/01/2023 00:00,28/5/2023 00:00:00,P02-2024
,LEE VALLEY CARAVAN PARK,PREMISES RELATED EXPENDITURE,BUILDING SERVICE AGREEMENTS,2220,P121943-SERVICE-Pest Control,17/5/2023 00:00:00,273766,70,VE0006,VERMINATE CITY & RURAL PEST CONTROL LTD,05/01/2023 00:00,28/5/2023 00:00:00,P02-2024
P&V,MYDDLETON HSE HERITAGE CENTRE,PREMISES RELATED EXPENDITURE,BUILDING SERVICE AGREEMENTS,2220,P121895-SERVICE-VC stock take 23,05/10/2023 00:00,272780,326.5,VE0038,VENNERS LTD,05/01/2023 00:00,28/5/2023 00:00:00,P02-2024
P&V,NORTH AREA RANGERS,PREMISES RELATED EXPENDITURE,BUILDING SERVICE AGREEMENTS,2220,P121023-SERVICE-Sanitary Disposal - Old Mill & Meadows Toilet,23/5/2023 00:00:00,274181,3.74,PE0015,PHS GROUP PLC,05/01/2023 00:00,28/5/2023 00:00:00,P02-2024
P&V,NORTH AREA RANGERS,PREMISES RELATED EXPENDITURE,BUILDING SERVICE AGREEMENTS,2220,P121023-SERVICE-Sanitary Disposal - Old Mill & Meadows Toilet,23/5/2023 00:00:00,274206,3.74,PE0015,PHS GROUP PLC,05/01/2023 00:00,28/5/2023 00:00:00,P02-2024
P&V,WILDLIFE DISCOVERY CENTRE,PREMISES RELATED EXPENDITURE,BUILDING SERVICE AGREEMENTS,2220,P121363-SERVICE-Fire Alarm Service at Wildlife Discovery Cent,23/5/2023 00:00:00,274157,127.11,TJ0009,T.J.FIRE & SECURITY,05/01/2023 00:00,28/5/2023 00:00:00,P02-2024
P&V,GUNPOWDER PARK,PREMISES RELATED EXPENDITURE,BUILDING SERVICE AGREEMENTS,2220,P121072-SERVICE-Sanitary Disposal - Gunpowder Park Office Toi,05/09/2023 00:00,273639,2.94,PE0015,PHS GROUP PLC,05/01/2023 00:00,28/5/2023 00:00:00,P02-2024
P&V,GUNPOWDER PARK,PREMISES RELATED EXPENDITURE,BUILDING SERVICE AGREEMENTS,2220,P121073-SERVICE-Sanitary Disposal - Gunpowder Park - Public T,16/5/2023 00:00:00,273945,14.3,PE0015,PHS GROUP PLC,05/01/2023 00:00,28/5/2023 00:00:00,P02-2024
P&V,GUNPOWDER PARK,PREMISES RELATED EXPENDITURE,BUILDING SERVICE AGREEMENTS,2220,P119459-SERVICE-Building Servcie Agreement - Gunpowder Park,16/5/2023 00:00:00,273962,118.07,CO0199,EQUANS FM LIMITED (frmlyENGIE FM LIMITED),05/01/2023 00:00,28/5/2023 00:00:00,P02-2024
P&V,RIVER LEE COUNTRY PARK,PREMISES RELATED EXPENDITURE,BUILDING SERVICE AGREEMENTS,2220,P121074-SERVICE-Sanitary Disposal - Fishers Green Toilets,05/09/2023 00:00,273638,6.47,PE0015,PHS GROUP PLC,05/01/2023 00:00,28/5/2023 00:00:00,P02-2024
P&V,RIVER LEE COUNTRY PARK,PREMISES RELATED EXPENDITURE,BUILDING SERVICE AGREEMENTS,2220,P121074-SERVICE-Sanitary Disposal - Fishers Green Toilets,17/5/2023 00:00:00,273987,10.72,PE0015,PHS GROUP PLC,05/01/2023 00:00,28/5/2023 00:00:00,P02-2024
,LV LEISURE CENTRE CAMPSITE,PREMISES RELATED EXPENDITURE,BUILDING SERVICE AGREEMENTS,2220,P121936-SERVICE-Pest control,23/5/2023 00:00:00,273734,70,VE0006,VERMINATE CITY & RURAL PEST CONTROL LTD,05/01/2023 00:00,28/5/2023 00:00:00,P02-2024
,LV LEISURE CENTRE CAMPSITE,PREMISES RELATED EXPENDITURE,BUILDING SERVICE AGREEMENTS,2220,P121117-SERVICE-Full de-scale,15/5/2023 00:00:00,273901,490,CO0550,CONVERT WATER LTD,05/01/2023 00:00,28/5/2023 00:00:00,P02-2024
,LV LEISURE CENTRE CAMPSITE,PREMISES RELATED EXPENDITURE,BUILDING SERVICE AGREEMENTS,2220,P122047-SERVICE-Recycling waste disposal,24/5/2023 00:00:00,274208,162.3,PE0015,PHS GROUP PLC,05/01/2023 00:00,28/5/2023 00:00:00,P02-2024
P&V,MYDDELTON HOUSE,PREMISES RELATED EXPENDITURE,BUILDING REPAIRS & MAINTENANCE,2222,P121928-SERVICE-Unvented Heaters,15/5/2023 00:00:00,273924,230,GI0137,R & P GIBBS LIMITED,05/01/2023 00:00,28/5/2023 00:00:00,P02-2024
P&V,MYDDELTON HOUSE,PREMISES RELATED EXPENDITURE,BUILDING REPAIRS & MAINTENANCE,2222,P121929-SERVICE-Unvented Heater,15/5/2023 00:00:00,273925,183.15,GI0137,R & P GIBBS LIMITED,05/01/2023 00:00,28/5/2023 00:00:00,P02-2024
P&V,MYDDELTON HOUSE,PREMISES RELATED EXPENDITURE,BUILDING REPAIRS & MAINTENANCE,2222,P121930-SERVICE-WC Water Leak,15/5/2023 00:00:00,273926,183.1,GI0137,R & P GIBBS LIMITED,05/01/2023 00:00,28/5/2023 00:00:00,P02-2024
P&V,MYDDELTON HOUSE,PREMISES RELATED EXPENDITURE,BUILDING REPAIRS & MAINTENANCE,2222,P121966-SERVICE-Call Out 09/05/23,17/5/2023 00:00:00,273995,100,AB0435,ABSOLUTE DOOR SERVICES ESSEX LTD,05/01/2023 00:00,28/5/2023 00:00:00,P02-2024
CEO,RESIDENTIAL ACCOMMODATION,PREMISES RELATED EXPENDITURE,BUILDING REPAIRS & MAINTENANCE,2222,P121886-SERVICE-Pest Control Connaught Close,15/5/2023 00:00:00,273738,70,VE0006,VERMINATE CITY & RURAL PEST CONTROL LTD,05/01/2023 00:00,28/5/2023 00:00:00,P02-2024
CEO,RESIDENTIAL ACCOMMODATION,PREMISES RELATED EXPENDITURE,BUILDING REPAIRS & MAINTENANCE,2222,P121888-SERVICE-2 Bungalow Boiler Lock Out,15/5/2023 00:00:00,273802,107.4,WA0315,PAUL WALLACE ESTATE AGENTS,05/01/2023 00:00,28/5/2023 00:00:00,P02-2024
CEO,RESIDENTIAL ACCOMMODATION,PREMISES RELATED EXPENDITURE,BUILDING REPAIRS & MAINTENANCE,2222,P121557-SERVICE-Maintenance,15/5/2023 00:00:00,273816,205,CA0165,CASTLES,05/01/2023 00:00,28/5/2023 00:00:00,P02-2024
CEO,RESIDENTIAL ACCOMMODATION,PREMISES RELATED EXPENDITURE,BUILDING REPAIRS & MAINTENANCE,2222,P121557-SERVICE-Maintenance,15/5/2023 00:00:00,273817,475,CA0165,CASTLES,05/01/2023 00:00,28/5/2023 00:00:00,P02-2024
CEO,RESIDENTIAL ACCOMMODATION,PREMISES RELATED EXPENDITURE,BUILDING REPAIRS & MAINTENANCE,2222,P121900-SERVICE-Pindar Cottage - Replace Carpets,15/5/2023 00:00:00,273818,1116.67,CA0165,CASTLES,05/01/2023 00:00,28/5/2023 00:00:00,P02-2024
CEO,RESIDENTIAL ACCOMMODATION,PREMISES RELATED EXPENDITURE,BUILDING REPAIRS & MAINTENANCE,2222,P121869-SERVICE-Repair Boiler - Gate Lodge,23/5/2023 00:00:00,273922,275,GI0137,R & P GIBBS LIMITED,05/01/2023 00:00,28/5/2023 00:00:00,P02-2024
CEO,RESIDENTIAL ACCOMMODATION,PREMISES RELATED EXPENDITURE,BUILDING REPAIRS & MAINTENANCE,2222,P121557-SERVICE-Maintenance,23/5/2023 00:00:00,274006,75,CA0165,CASTLES,05/01/2023 00:00,28/5/2023 00:00:00,P02-2024
CEO,COMMERCIAL ACCOMMODATION,PREMISES RELATED EXPENDITURE,BUILDING REPAIRS & MAINTENANCE,2222,P121780-SERVICE-Concrete blocks Wharf Road,05/10/2023 00:00,273546,60,NA0171,NAIVETTE SERVICES LTD,05/01/2023 00:00,28/5/2023 00:00:00,P02-2024
,LEE VALLEY MARINA SPRINGFIELD,PREMISES RELATED EXPENDITURE,BUILDING REPAIRS & MAINTENANCE,2222,P121836-SERVICE-To replace camera overlooking water point,05/09/2023 00:00,273753,420,DE0013,DENNIS SECURITY CENTRE,05/01/2023 00:00,28/5/2023 00:00:00,P02-2024
,LEE VALLEY MARINA SPRINGFIELD,PREMISES RELATED EXPENDITURE,BUILDING REPAIRS & MAINTENANCE,2222,P121723-SERVICE-Emergency callout & repairs,23/5/2023 00:00:00,274125,399,BR0018,BRADSHAW ELECTRICAL LIMITED,05/01/2023 00:00,28/5/2023 00:00:00,P02-2024
,LEE VALLEY MARINA SPRINGFIELD,PREMISES RELATED EXPENDITURE,BUILDING REPAIRS & MAINTENANCE,2222,P122038-SERVICE-Replacement of external sensor,28/5/2023 00:00:00,274242,415,DE0013,DENNIS SECURITY CENTRE,05/01/2023 00:00,28/5/2023 00:00:00,P02-2024
,LEE VALLEY MARINA STANSTEAD,PREMISES RELATED EXPENDITURE,BUILDING REPAIRS & MAINTENANCE,2222,P122033-SERVICE-EICR recommendations,28/5/2023 00:00:00,274126,2175,BR0018,BRADSHAW ELECTRICAL LIMITED,05/01/2023 00:00,28/5/2023 00:00:00,P02-2024
,LEE VALLEY WATERWORKS CENTRE,PREMISES RELATED EXPENDITURE,BUILDING REPAIRS & MAINTENANCE,2222,P121823-SERVICE-Alarm System Maintenance at WaterWorks Centre,15/5/2023 00:00:00,273646,925,AA0003,AAI SECURITY SYSTEMS,05/01/2023 00:00,28/5/2023 00:00:00,P02-2024
P&V,LEE VALLEY FARM HOLYFIELDHALL,PREMISES RELATED EXPENDITURE,BUILDING REPAIRS & MAINTENANCE,2222,P121265-SERVICE-Emergency Lighting Repairs - Quote: QT00138,23/5/2023 00:00:00,274149,610,BR0018,BRADSHAW ELECTRICAL LIMITED,05/01/2023 00:00,28/5/2023 00:00:00,P02-2024
P&V,LEE VALLEY FARM HOLYFIELDHALL,PREMISES RELATED EXPENDITURE,BUILDING REPAIRS & MAINTENANCE,2222,P121264-SERVICE-EICR Repairs - Quote: QT00139,28/5/2023 00:00:00,274213,2450,BR0018,BRADSHAW ELECTRICAL LIMITED,05/01/2023 00:00,28/5/2023 00:00:00,P02-2024
,LEE VALLEY CARAVAN PARK,PREMISES RELATED EXPENDITURE,BUILDING REPAIRS & MAINTENANCE,2222,P121837-SERVICE-Replace a socket in theTresco,05/09/2023 00:00,273632,112,BR0018,BRADSHAW ELECTRICAL LIMITED,05/01/2023 00:00,28/5/2023 00:00:00,P02-2024
P&V,RYE HOUSE GATEHOUSE,PREMISES RELATED EXPENDITURE,BUILDING REPAIRS & MAINTENANCE,2222,P121229-SERVICE-Electrical Testing at Rye House Gatehouse,23/5/2023 00:00:00,273819,510,BR0018,BRADSHAW ELECTRICAL LIMITED,05/01/2023 00:00,28/5/2023 00:00:00,P02-2024
P&V,ABBEY GARDENS,PREMISES RELATED EXPENDITURE,BUILDING REPAIRS & MAINTENANCE,2222,P121228-SERVICE-Electrical Inspection Lights - Waltham Abbey,05/10/2023 00:00,273800,320,BR0018,BRADSHAW ELECTRICAL LIMITED,05/01/2023 00:00,28/5/2023 00:00:00,P02-2024
P&V,WILDLIFE DISCOVERY CENTRE,PREMISES RELATED EXPENDITURE,BUILDING REPAIRS & MAINTENANCE,2222,P121630-SERVICE-Install Fire Extinghuisher at Wildlife Discov,05/09/2023 00:00,273715,101.89,TJ0009,T.J.FIRE & SECURITY,05/01/2023 00:00,28/5/2023 00:00:00,P02-2024
P&V,RIVER LEE COUNTRY PARK,PREMISES RELATED EXPENDITURE,BUILDING REPAIRS & MAINTENANCE,2222,P121224-SERVICE-Electrical Testing - River Lee Country Park,05/10/2023 00:00,273725,321,BR0018,BRADSHAW ELECTRICAL LIMITED,05/01/2023 00:00,28/5/2023 00:00:00,P02-2024
P&V,RIVER LEE COUNTRY PARK,PREMISES RELATED EXPENDITURE,BUILDING REPAIRS & MAINTENANCE,2222,P121224-SERVICE-Electrical Testing - River Lee Country Park,05/10/2023 00:00,273801,920,BR0018,BRADSHAW ELECTRICAL LIMITED,05/01/2023 00:00,28/5/2023 00:00:00,P02-2024
P&V,RIVER LEE COUNTRY PARK,PREMISES RELATED EXPENDITURE,BUILDING REPAIRS & MAINTENANCE,2222,P122055-SERVICE-Pump Out at Old Mill & Meadows Toilets - 23/0,28/5/2023 00:00:00,274222,458,CO0550,CONVERT WATER LTD,05/01/2023 00:00,28/5/2023 00:00:00,P02-2024
P&V,RIVER LEE COUNTRY PARK,PREMISES RELATED EXPENDITURE,BUILDING REPAIRS & MAINTENANCE,2222,P121737-SERVICE-AC Units Service at Ranger Office - Farm,24/5/2023 00:00:00,274229,372,GI0137,R & P GIBBS LIMITED,05/01/2023 00:00,28/5/2023 00:00:00,P02-2024
P&V,RIVER LEE COUNTRY PARK,PREMISES RELATED EXPENDITURE,BUILDING REPAIRS & MAINTENANCE,2222,P121737-SERVICE-Water Heater Service at Ranger Office - Farm,24/5/2023 00:00:00,274229,180,GI0137,R & P GIBBS LIMITED,05/01/2023 00:00,28/5/2023 00:00:00,P02-2024
P&V,FORMER LV LIDO SITE,PREMISES RELATED EXPENDITURE,BUILDING REPAIRS & MAINTENANCE,2222,P121223-SERVICE-Elec Inspection at Broxbourne Riverside Store,15/5/2023 00:00:00,273706,320,BR0018,BRADSHAW ELECTRICAL LIMITED,05/01/2023 00:00,28/5/2023 00:00:00,P02-2024
CEO,LVLC SERVICE CHARGE,PREMISES RELATED EXPENDITURE,BUILDING REPAIRS & MAINTENANCE,2222,P121727-SERVICE-Barrier Weld 02/03/23,05/03/2023 00:00,272815,117,PS0429,PSL AUTOMATION,05/01/2023 00:00,28/5/2023 00:00:00,P02-2024
CEO,LVLC SERVICE CHARGE,PREMISES RELATED EXPENDITURE,BUILDING REPAIRS & MAINTENANCE,2222,P121726-SERVICE-Contract Sweep,05/03/2023 00:00,273134,150,SE0374,SELECT SWEEPER HIRE LTD,05/01/2023 00:00,28/5/2023 00:00:00,P02-2024
CEO,LVLC SERVICE CHARGE,PREMISES RELATED EXPENDITURE,BUILDING REPAIRS & MAINTENANCE,2222,P121728-SERVICE-Sliding Gate Not Working 06/04/23,05/03/2023 00:00,273315,117,PS0429,PSL AUTOMATION,05/01/2023 00:00,28/5/2023 00:00:00,P02-2024
CEO,LVLC SERVICE CHARGE,PREMISES RELATED EXPENDITURE,BUILDING REPAIRS & MAINTENANCE,2222,P121726-SERVICE-Contract Sweep,23/5/2023 00:00:00,273953,150,SE0374,SELECT SWEEPER HIRE LTD,05/01/2023 00:00,28/5/2023 00:00:00,P02-2024
P&V,NORTH AREA RANGERS,SUPPLIES AND SERVICES,FENCES/GATES ETC.,2231,P121851-SERVICE-Height Barrier Repair at Stanstead Innings Ca,15/5/2023 00:00:00,273916,290,BA0658,BASE FABRICATIONS LTD,05/01/2023 00:00,28/5/2023 00:00:00,P02-2024
P&V,NORTH AREA RANGERS,SUPPLIES AND SERVICES,FENCES/GATES ETC.,2231,P121987-SERVICE-Repair Height Barrier at Broxbourne Riverside,28/5/2023 00:00:00,274227,290,BA0658,BASE FABRICATIONS LTD,05/01/2023 00:00,28/5/2023 00:00:00,P02-2024
P&V,SOUTH AREA RANGERS,SUPPLIES AND SERVICES,FENCES/GATES ETC.,2231,P121709-SERVICE-Repair and Replace Fence at Tottenham Marshes,05/09/2023 00:00,273748,600,JO0019,R G JOYCE,05/01/2023 00:00,28/5/2023 00:00:00,P02-2024
P&V,GUNPOWDER PARK,SUPPLIES AND SERVICES,FENCES/GATES ETC.,2231,P121746-SERVICE-Remove and Replace Fence at Gunpowder Park,05/09/2023 00:00,273726,900,BU0090,BUSH WHEELER SERVICES LTD,05/01/2023 00:00,28/5/2023 00:00:00,P02-2024
P&V,GUNPOWDER PARK,SUPPLIES AND SERVICES,FENCES/GATES ETC.,2231,P121745-SERVICE-Repair Gate at Sewardstone Marsh,28/5/2023 00:00:00,274230,120,RE0094,REACT 2 IT (BUILDING & REFURBISHMENT) LTD,05/01/2023 00:00,28/5/2023 00:00:00,P02-2024
P&V,GUNPOWDER PARK,SUPPLIES AND SERVICES,PARK SIGNS AND BOARDS,2236,P121564-SERVICE-Repaint 6x Signs at Gunpowder Park,16/5/2023 00:00:00,273955,400,JO0019,R G JOYCE,05/01/2023 00:00,28/5/2023 00:00:00,P02-2024
P&V,GUNPOWDER PARK,SUPPLIES AND SERVICES,PARK SIGNS AND BOARDS,2236,P121564-SERVICE-Remove 2x Redundant Signs at Gunpowder Park,16/5/2023 00:00:00,273955,400,JO0019,R G JOYCE,05/01/2023 00:00,28/5/2023 00:00:00,P02-2024
CEO,COMMERCIAL ACCOMMODATION,PREMISES RELATED EXPENDITURE,EAST HALE ALLOTMENTS,2261,P121887-SERVICE-Allotment Bins,15/5/2023 00:00:00,273743,151.7,CL0037,VEOLIA ES (UK) LTD,05/01/2023 00:00,28/5/2023 00:00:00,P02-2024
CEO,COMMERCIAL ACCOMMODATION,PREMISES RELATED EXPENDITURE,EAST HALE ALLOTMENTS,2261,P121887-SERVICE-Allotment Bins,15/5/2023 00:00:00,273744,26.28,CL0037,VEOLIA ES (UK) LTD,05/01/2023 00:00,28/5/2023 00:00:00,P02-2024
CEO,RESIDENTIAL ACCOMMODATION,PREMISES RELATED EXPENDITURE,ENERGY COSTS (ELECTRICITY),2332,Apr-23,05/10/2023 00:00,273793,94.7,EO0398,E-ON NEXT ENERGY LTD,05/01/2023 00:00,28/5/2023 00:00:00,P02-2024
CEO,RESIDENTIAL ACCOMMODATION,PREMISES RELATED EXPENDITURE,ENERGY COSTS (ELECTRICITY),2332,Apr-23,17/5/2023 00:00:00,273937,23.33,EO0398,E-ON NEXT ENERGY LTD,05/01/2023 00:00,28/5/2023 00:00:00,P02-2024
,LEE VALLEY MARINA SPRINGFIELD,PREMISES RELATED EXPENDITURE,ENERGY COSTS (ELECTRICITY),2332,ELECTRIC - APRIL 2023,23/5/2023 00:00:00,274116,4882.1,KE0007,KENT COUNTY COUNCIL (KCS),05/01/2023 00:00,28/5/2023 00:00:00,P02-2024
,LEE VALLEY WATERWORKS CENTRE,PREMISES RELATED EXPENDITURE,ENERGY COSTS (ELECTRICITY),2332,Apr-23,28/5/2023 00:00:00,274185,1108.28,NP0123,NPOWER LIMITED,05/01/2023 00:00,28/5/2023 00:00:00,P02-2024
,LEE VALLEY CAMPSITE,PREMISES RELATED EXPENDITURE,ENERGY COSTS (ELECTRICITY),2332,Apr-23,28/5/2023 00:00:00,274115,4876.41,KE0007,KENT COUNTY COUNCIL (KCS),05/01/2023 00:00,28/5/2023 00:00:00,P02-2024
,LEE VALLEY CAMPSITE,PREMISES RELATED EXPENDITURE,ENERGY COSTS (ELECTRICITY),2332,Apr-23,28/5/2023 00:00:00,274119,3368.57,KE0007,KENT COUNTY COUNCIL (KCS),05/01/2023 00:00,28/5/2023 00:00:00,P02-2024
,LEE VALLEY CARAVAN PARK,PREMISES RELATED EXPENDITURE,ENERGY COSTS (ELECTRICITY),2332,ELECTRIC - APRIL 2023,23/5/2023 00:00:00,274117,12214.55,KE0007,KENT COUNTY COUNCIL (KCS),05/01/2023 00:00,28/5/2023 00:00:00,P02-2024
P&V,GUNPOWDER PARK,PREMISES RELATED EXPENDITURE,ENERGY COSTS (ELECTRICITY),2332,ELECTRIC - APRIL 2023,23/5/2023 00:00:00,274025,562.34,KE0007,KENT COUNTY COUNCIL (KCS),05/01/2023 00:00,28/5/2023 00:00:00,P02-2024
P&V,QUEEN ELIZABETH OLYMPIC PARK,PREMISES RELATED EXPENDITURE,ENERGY COSTS (ELECTRICITY),2332,Velo-E13-mpan ending 1204,23/5/2023 00:00:00,274024,173.46,KE0007,KENT COUNTY COUNCIL (KCS),05/01/2023 00:00,28/5/2023 00:00:00,P02-2024
P&V,QUEEN ELIZABETH OLYMPIC PARK,PREMISES RELATED EXPENDITURE,ENERGY COSTS (ELECTRICITY),2332,VELO-E20-MPAN ENDING 1966,23/5/2023 00:00:00,274118,93.71,KE0007,KENT COUNTY COUNCIL (KCS),05/01/2023 00:00,28/5/2023 00:00:00,P02-2024
P&V,QUEEN ELIZABETH OLYMPIC PARK,PREMISES RELATED EXPENDITURE,ENERGY COSTS (ELECTRICITY),2332,VELO-E20-MPAN ENDING 1966,23/5/2023 00:00:00,274118,0.99,KE0007,KENT COUNTY COUNCIL (KCS),05/01/2023 00:00,28/5/2023 00:00:00,P02-2024
P&V,CAR PARK INCOME,PREMISES RELATED EXPENDITURE,ENERGY COSTS (ELECTRICITY),2332,Clayton Hill -Electric- April 2023,23/5/2023 00:00:00,274183,32.34,NP0123,NPOWER LIMITED,05/01/2023 00:00,28/5/2023 00:00:00,P02-2024
P&V,CAR PARK INCOME,PREMISES RELATED EXPENDITURE,ENERGY COSTS (ELECTRICITY),2332,Cornmill Meadows-Electric-April 2023,23/5/2023 00:00:00,274184,48.18,NP0123,NPOWER LIMITED,05/01/2023 00:00,28/5/2023 00:00:00,P02-2024
,LV LEISURE CENTRE CAMPSITE,PREMISES RELATED EXPENDITURE,ENERGY COSTS (ELECTRICITY),2332,PICKETTS LOCK - APRIL 2023,24/5/2023 00:00:00,274186,9544.89,NP0123,NPOWER LIMITED,05/01/2023 00:00,28/5/2023 00:00:00,P02-2024
CEO,RESIDENTIAL ACCOMMODATION,PREMISES RELATED EXPENDITURE,ENERGY COSTS (GAS),2333,18/03/23-17/04/23,05/10/2023 00:00,273391,10.02,BR0654,BRITISH GAS TRADING LTD,05/01/2023 00:00,28/5/2023 00:00:00,P02-2024
,LEE VALLEY MARINA SPRINGFIELD,PREMISES RELATED EXPENDITURE,ENERGY COSTS (GAS),2333,GAS - APRIL 2023,23/5/2023 00:00:00,273979,1085.08,KE0007,KENT COUNTY COUNCIL (KCS),05/01/2023 00:00,28/5/2023 00:00:00,P02-2024
,LEE VALLEY MARINA STANSTEAD,PREMISES RELATED EXPENDITURE,ENERGY COSTS (GAS),2333,GAS - APRIL 2023,23/5/2023 00:00:00,273981,310.76,KE0007,KENT COUNTY COUNCIL (KCS),05/01/2023 00:00,28/5/2023 00:00:00,P02-2024
,LEE VALLEY MARINA STANSTEAD,PREMISES RELATED EXPENDITURE,ENERGY COSTS (GAS),2333,GAS - APRIL 2023,23/5/2023 00:00:00,273984,232.18,KE0007,KENT COUNTY COUNCIL (KCS),05/01/2023 00:00,28/5/2023 00:00:00,P02-2024
,LEE VALLEY CAMPSITE,PREMISES RELATED EXPENDITURE,ENERGY COSTS (GAS),2333,GAS - APRIL 2023,23/5/2023 00:00:00,273980,1174.9,KE0007,KENT COUNTY COUNCIL (KCS),05/01/2023 00:00,28/5/2023 00:00:00,P02-2024
,LEE VALLEY CARAVAN PARK,PREMISES RELATED EXPENDITURE,ENERGY COSTS (GAS),2333,P121942-SERVICE-Gas delivery,16/5/2023 00:00:00,273758,5874.04,AV0327,AVANTI GAS LIMITED,05/01/2023 00:00,28/5/2023 00:00:00,P02-2024
,LEE VALLEY CARAVAN PARK,PREMISES RELATED EXPENDITURE,ENERGY COSTS (GAS),2333,P121979-SERVICE-Standing charge,23/5/2023 00:00:00,273974,58.17,AV0327,AVANTI GAS LIMITED,05/01/2023 00:00,28/5/2023 00:00:00,P02-2024
,LEE VALLEY CARAVAN PARK,PREMISES RELATED EXPENDITURE,ENERGY COSTS (GAS),2333,P121981-SERVICE-Standing charge,23/5/2023 00:00:00,273975,59.34,AV0327,AVANTI GAS LIMITED,05/01/2023 00:00,28/5/2023 00:00:00,P02-2024
P&V,GUNPOWDER PARK,PREMISES RELATED EXPENDITURE,ENERGY COSTS (GAS),2333,Apr-23,17/5/2023 00:00:00,273982,71.1,KE0007,KENT COUNTY COUNCIL (KCS),05/01/2023 00:00,28/5/2023 00:00:00,P02-2024
,LV LEISURE CENTRE CAMPSITE,PREMISES RELATED EXPENDITURE,ENERGY COSTS (GAS),2333,GAS - APRIL 2023,23/5/2023 00:00:00,273978,2889.09,KE0007,KENT COUNTY COUNCIL (KCS),05/01/2023 00:00,28/5/2023 00:00:00,P02-2024
,LEE VALLEY MARINA STANSTEAD,PREMISES RELATED EXPENDITURE,RENT (EXTERNAL),2442,STANSTEAD 24/06/23-28/09/23,28/5/2023 00:00:00,274236,13450,BR0036,CANAL & RIVER TRUST,05/01/2023 00:00,28/5/2023 00:00:00,P02-2024
P&V,NORTH AREA RANGERS,PREMISES RELATED EXPENDITURE,RENT (EXTERNAL),2442,Access Rent,23/5/2023 00:00:00,274120,100,RA0005,NETWORK RAIL,05/01/2023 00:00,28/5/2023 00:00:00,P02-2024
P&V,LEE VALLEY FARM HOLYFIELDHALL,PREMISES RELATED EXPENDITURE,COUNCIL TAX,2445,2023/24,05/03/2023 00:00,273395,1822.39,EP0025,EPPING FOREST DISTRICT COUNCIL,05/01/2023 00:00,28/5/2023 00:00:00,P02-2024
P&V,LEE VALLEY FARM HOLYFIELDHALL,PREMISES RELATED EXPENDITURE,COUNCIL TAX,2445,to reverse comp ref 272024,05/09/2023 00:00,273550,-1594.6,EP0025,EPPING FOREST DISTRICT COUNCIL,05/01/2023 00:00,28/5/2023 00:00:00,P02-2024
P&V,LEE VALLEY FARM HOLYFIELDHALL,PREMISES RELATED EXPENDITURE,COUNCIL TAX,2445,2023/24,05/09/2023 00:00,273551,3045.42,EP0025,EPPING FOREST DISTRICT COUNCIL,05/01/2023 00:00,28/5/2023 00:00:00,P02-2024
CEO,RESIDENTIAL ACCOMMODATION,PREMISES RELATED EXPENDITURE,PROPERTY MANAGEMT/LETTING FEES,2447,P121881-SERVICE-Springfield Bungalow Landlord Fees,15/5/2023 00:00:00,273406,2034,CA0165,CASTLES,05/01/2023 00:00,28/5/2023 00:00:00,P02-2024
CEO,RESIDENTIAL ACCOMMODATION,PREMISES RELATED EXPENDITURE,PROPERTY MANAGEMT/LETTING FEES,2447,P121883-SERVICE-Springfield Bungalow Landlord Warranty,15/5/2023 00:00:00,273407,345.78,CA0165,CASTLES,05/01/2023 00:00,28/5/2023 00:00:00,P02-2024
CEO,RESIDENTIAL ACCOMMODATION,PREMISES RELATED EXPENDITURE,PROPERTY MANAGEMT/LETTING FEES,2447,P121884-SERVICE-2 Bungalow 6 Month Management Fee,15/5/2023 00:00:00,273424,897,WA0315,PAUL WALLACE ESTATE AGENTS,05/01/2023 00:00,28/5/2023 00:00:00,P02-2024
P&V,MYDDELTON HOUSE,PREMISES RELATED EXPENDITURE,WATER,2555,Apr-23,15/5/2023 00:00:00,273959,1445.12,CA0625,CASTLE WATER LIMITED,05/01/2023 00:00,28/5/2023 00:00:00,P02-2024
,LEE VALLEY MARINA SPRINGFIELD,PREMISES RELATED EXPENDITURE,WATER,2555,Apr-23,23/5/2023 00:00:00,274196,1097.37,CA0625,CASTLE WATER LIMITED,05/01/2023 00:00,28/5/2023 00:00:00,P02-2024
,LEE VALLEY MARINA SPRINGFIELD,PREMISES RELATED EXPENDITURE,WATER,2555,Apr-23,23/5/2023 00:00:00,274196,1758.36,CA0625,CASTLE WATER LIMITED,05/01/2023 00:00,28/5/2023 00:00:00,P02-2024
,LEE VALLEY MARINA SPRINGFIELD,PREMISES RELATED EXPENDITURE,WATER,2555,Apr-23,28/5/2023 00:00:00,274325,-2.27,CA0625,CASTLE WATER LIMITED,05/01/2023 00:00,28/5/2023 00:00:00,P02-2024
,LEE VALLEY MARINA SPRINGFIELD,PREMISES RELATED EXPENDITURE,WATER,2555,Apr-23,28/5/2023 00:00:00,274325,-3.85,CA0625,CASTLE WATER LIMITED,05/01/2023 00:00,28/5/2023 00:00:00,P02-2024
,LEE VALLEY MARINA STANSTEAD,PREMISES RELATED EXPENDITURE,WATER,2555,Apr-23,15/5/2023 00:00:00,273676,221.43,CA0625,CASTLE WATER LIMITED,05/01/2023 00:00,28/5/2023 00:00:00,P02-2024
,LEE VALLEY MARINA STANSTEAD,PREMISES RELATED EXPENDITURE,WATER,2555,Apr-23,15/5/2023 00:00:00,273676,227.82,CA0625,CASTLE WATER LIMITED,05/01/2023 00:00,28/5/2023 00:00:00,P02-2024
,LEE VALLEY MARINA STANSTEAD,PREMISES RELATED EXPENDITURE,WATER,2555,01/04/23-30/09/23,28/5/2023 00:00:00,274317,165.25,CA0625,CASTLE WATER LIMITED,05/01/2023 00:00,28/5/2023 00:00:00,P02-2024
,LEE VALLEY WATERWORKS CENTRE,PREMISES RELATED EXPENDITURE,WATER,2555,01/03/23-30/04/23,05/09/2023 00:00,273673,213.34,CA0625,CASTLE WATER LIMITED,05/01/2023 00:00,28/5/2023 00:00:00,P02-2024
P&V,LEE VALLEY FARM HOLYFIELDHALL,PREMISES RELATED EXPENDITURE,WATER,2555,01/04/23 - 30/09/23,28/5/2023 00:00:00,274217,2684.13,CA0625,CASTLE WATER LIMITED,05/01/2023 00:00,28/5/2023 00:00:00,P02-2024
,LEE VALLEY CAMPSITE,PREMISES RELATED EXPENDITURE,WATER,2555,01/03/23-30/04/23,15/5/2023 00:00:00,273756,2847.55,CA0625,CASTLE WATER LIMITED,05/01/2023 00:00,28/5/2023 00:00:00,P02-2024
,LEE VALLEY CARAVAN PARK,PREMISES RELATED EXPENDITURE,WATER,2555,Apr-23,05/09/2023 00:00,273677,3369.23,CA0625,CASTLE WATER LIMITED,05/01/2023 00:00,28/5/2023 00:00:00,P02-2024
,LEE VALLEY CARAVAN PARK,PREMISES RELATED EXPENDITURE,WATER,2555,Apr-23,05/09/2023 00:00,273677,2026.22,CA0625,CASTLE WATER LIMITED,05/01/2023 00:00,28/5/2023 00:00:00,P02-2024
P&V,RIVER LEE COUNTRY PARK,PREMISES RELATED EXPENDITURE,WATER,2555,01/03/23-31/08/23,15/5/2023 00:00:00,273794,177.08,CA0625,CASTLE WATER LIMITED,05/01/2023 00:00,28/5/2023 00:00:00,P02-2024
P&V,FORMER LV LIDO SITE,PREMISES RELATED EXPENDITURE,WATER,2555,01/03/23-31/08/23,15/5/2023 00:00:00,273568,1441.3,CA0625,CASTLE WATER LIMITED,05/01/2023 00:00,28/5/2023 00:00:00,P02-2024
P&V,FORMER LV LIDO SITE,PREMISES RELATED EXPENDITURE,WATER,2555,01/03/23-31/08/23,15/5/2023 00:00:00,273568,504.03,CA0625,CASTLE WATER LIMITED,05/01/2023 00:00,28/5/2023 00:00:00,P02-2024
,LV LEISURE CENTRE CAMPSITE,PREMISES RELATED EXPENDITURE,WATER,2555,Apr-23,24/5/2023 00:00:00,274177,498.78,CA0625,CASTLE WATER LIMITED,05/01/2023 00:00,28/5/2023 00:00:00,P02-2024
,LV LEISURE CENTRE CAMPSITE,PREMISES RELATED EXPENDITURE,WATER,2555,Apr-23,24/5/2023 00:00:00,274177,621.69,CA0625,CASTLE WATER LIMITED,05/01/2023 00:00,28/5/2023 00:00:00,P02-2024
,LV LEISURE CENTRE CAMPSITE,PREMISES RELATED EXPENDITURE,WATER,2555,Apr-23,24/5/2023 00:00:00,274197,35.37,CA0625,CASTLE WATER LIMITED,05/01/2023 00:00,28/5/2023 00:00:00,P02-2024
,LV LEISURE CENTRE CAMPSITE,PREMISES RELATED EXPENDITURE,WATER,2555,Apr-23,24/5/2023 00:00:00,274197,40.58,CA0625,CASTLE WATER LIMITED,05/01/2023 00:00,28/5/2023 00:00:00,P02-2024
P&V,MYDDELTON HOUSE,PREMISES RELATED EXPENDITURE,CLEANING & DOMESTIC SUPPLIES,2666,P121959-SERVICE-H5248 Refuse Sacks Medium Duty 9.43 x 3,23/5/2023 00:00:00,274139,28.29,HY0043,HYGIENE SYSTEMS LTD,05/01/2023 00:00,28/5/2023 00:00:00,P02-2024
P&V,MYDDELTON HOUSE,PREMISES RELATED EXPENDITURE,CLEANING & DOMESTIC SUPPLIES,2666,P121959-SERVICE-HSBINM Pedal Bin Liner Heavy Duty 1000,23/5/2023 00:00:00,274139,7.9,HY0043,HYGIENE SYSTEMS LTD,05/01/2023 00:00,28/5/2023 00:00:00,P02-2024
,LEE VALLEY MARINA SPRINGFIELD,PREMISES RELATED EXPENDITURE,CLEANING & DOMESTIC SUPPLIES,2666,P121660-SERVICE-Site Cleaning April to July 2023,05/09/2023 00:00,273564,1070.52,MA0015,MAYFAIR CLEANING COMPANY LIMITED,05/01/2023 00:00,28/5/2023 00:00:00,P02-2024
,LEE VALLEY MARINA SPRINGFIELD,PREMISES RELATED EXPENDITURE,CLEANING & DOMESTIC SUPPLIES,2666,P121808-SERVICE-To supply items as requested,05/09/2023 00:00,273795,184.86,HY0043,HYGIENE SYSTEMS LTD,05/01/2023 00:00,28/5/2023 00:00:00,P02-2024
,LEE VALLEY MARINA STANSTEAD,PREMISES RELATED EXPENDITURE,CLEANING & DOMESTIC SUPPLIES,2666,P122009-SERVICE-sanitary bin disposal,24/5/2023 00:00:00,274164,52.92,PE0015,PHS GROUP PLC,05/01/2023 00:00,28/5/2023 00:00:00,P02-2024
,LEE VALLEY CAMPSITE,PREMISES RELATED EXPENDITURE,CLEANING & DOMESTIC SUPPLIES,2666,P121612-SERVICE-Site Cleaning Supplies,15/5/2023 00:00:00,273764,293.04,HY0043,HYGIENE SYSTEMS LTD,05/01/2023 00:00,28/5/2023 00:00:00,P02-2024
,LEE VALLEY CAMPSITE,PREMISES RELATED EXPENDITURE,CLEANING & DOMESTIC SUPPLIES,2666,P121612-SERVICE-Site Cleaning Supplies,28/5/2023 00:00:00,274171,95.22,HY0043,HYGIENE SYSTEMS LTD,05/01/2023 00:00,28/5/2023 00:00:00,P02-2024
,LEE VALLEY CARAVAN PARK,PREMISES RELATED EXPENDITURE,CLEANING & DOMESTIC SUPPLIES,2666,P121789-SERVICE-Cleaning supplies,23/5/2023 00:00:00,273712,640.16,HY0043,HYGIENE SYSTEMS LTD,05/01/2023 00:00,28/5/2023 00:00:00,P02-2024
,LV LEISURE CENTRE CAMPSITE,PREMISES RELATED EXPENDITURE,CLEANING & DOMESTIC SUPPLIES,2666,P121555-SERVICE-Cleaning supplies for site,05/09/2023 00:00,273394,10.77,HY0043,HYGIENE SYSTEMS LTD,05/01/2023 00:00,28/5/2023 00:00:00,P02-2024
,LV LEISURE CENTRE CAMPSITE,PREMISES RELATED EXPENDITURE,CLEANING & DOMESTIC SUPPLIES,2666,P121796-SERVICE-cleaning supplies,15/5/2023 00:00:00,273713,378.44,HY0043,HYGIENE SYSTEMS LTD,05/01/2023 00:00,28/5/2023 00:00:00,P02-2024
,LV LEISURE CENTRE CAMPSITE,PREMISES RELATED EXPENDITURE,CLEANING & DOMESTIC SUPPLIES,2666,P121935-SERVICE-Site cleaning,23/5/2023 00:00:00,273741,2578,LI0305,LIMPIAR CLEANING,05/01/2023 00:00,28/5/2023 00:00:00,P02-2024
,LV LEISURE CENTRE CAMPSITE,PREMISES RELATED EXPENDITURE,CLEANING & DOMESTIC SUPPLIES,2666,P121838-SERVICE-Toilet roll dispensers,15/5/2023 00:00:00,273932,110,HY0043,HYGIENE SYSTEMS LTD,05/01/2023 00:00,28/5/2023 00:00:00,P02-2024
,LV LEISURE CENTRE CAMPSITE,PREMISES RELATED EXPENDITURE,CLEANING & DOMESTIC SUPPLIES,2666,"P122003-SERVICE-Sacks, Soap dispenser, soap",23/5/2023 00:00:00,274014,211.06,HY0043,HYGIENE SYSTEMS LTD,05/01/2023 00:00,28/5/2023 00:00:00,P02-2024
,LV LEISURE CENTRE CAMPSITE,PREMISES RELATED EXPENDITURE,CLEANING & DOMESTIC SUPPLIES,2666,P122008-SERVICE-Cleaning supplies toilet holders and sacks,28/5/2023 00:00:00,274234,639.55,HY0043,HYGIENE SYSTEMS LTD,05/01/2023 00:00,28/5/2023 00:00:00,P02-2024
CEO,COMMERCIAL ACCOMMODATION,TRANSPORT RELATED EXPENDITURE,TRANSPORT RUNNING EXPENSES,3333,P121885-SERVICE-Gas Wharf Road,15/5/2023 00:00:00,273572,19.61,CA0006,CALOR GAS LIMITED,05/01/2023 00:00,28/5/2023 00:00:00,P02-2024
P&V,LEE VALLEY FARM HOLYFIELDHALL,TRANSPORT RELATED EXPENDITURE,TRANSPORT RUNNING EXPENSES,3333,P121496-SERVICE-Workshop Sundries,05/09/2023 00:00,273650,56,GR0022,GROUP COMPONENTS LIMITED,05/01/2023 00:00,28/5/2023 00:00:00,P02-2024
P&V,LEE VALLEY FARM HOLYFIELDHALL,TRANSPORT RELATED EXPENDITURE,TRANSPORT RUNNING EXPENSES,3333,P121495-SERVICE-Chains & Belts,05/09/2023 00:00,273651,24.2,BE0066,BEARINGS AND DRIVES,05/01/2023 00:00,28/5/2023 00:00:00,P02-2024
P&V,LEE VALLEY FARM HOLYFIELDHALL,TRANSPORT RELATED EXPENDITURE,TRANSPORT RUNNING EXPENSES,3333,P121508-SERVICE-Welding Sundries,05/09/2023 00:00,273660,156,BO0015,BOC LTD,05/01/2023 00:00,28/5/2023 00:00:00,P02-2024
P&V,LEE VALLEY FARM HOLYFIELDHALL,TRANSPORT RELATED EXPENDITURE,TRANSPORT RUNNING EXPENSES,3333,P121500-SERVICE-Hose Repairs/Sundries,05/09/2023 00:00,273722,137.41,HU0003,ALLIANCE AUTOMOTIVE UK CV LIMITED T/A,05/01/2023 00:00,28/5/2023 00:00:00,P02-2024
P&V,LEE VALLEY FARM HOLYFIELDHALL,TRANSPORT RELATED EXPENDITURE,TRANSPORT RUNNING EXPENSES,3333,P121853-SERVICE-5000k Red Diesel,15/5/2023 00:00:00,273811,3917,TE0052,CERTAS ENERGY UK LIMITED,05/01/2023 00:00,28/5/2023 00:00:00,P02-2024
P&V,LEE VALLEY FARM HOLYFIELDHALL,TRANSPORT RELATED EXPENDITURE,TRANSPORT RUNNING EXPENSES,3333,P117606-SERVICE-Welding Sundries,16/5/2023 00:00:00,273964,-117.68,BO0015,BOC LTD,05/01/2023 00:00,28/5/2023 00:00:00,P02-2024
P&V,FISHERIES MANAGEMENT,TRANSPORT RELATED EXPENDITURE,VEHICLE FUEL,3335,ALLSTAR BUSINESS SOLUTIONS LTD,05/09/2023 00:00,273573,82.02,AR0035,ALLSTAR BUSINESS SOLUTIONS LTD,05/01/2023 00:00,28/5/2023 00:00:00,P02-2024
,LEE VALLEY MARINA STANSTEAD,TRANSPORT RELATED EXPENDITURE,VEHICLE FUEL,3335,P121730-SERVICE-200 ltrs white diesel @ 1.54 per ltr,05/09/2023 00:00,273566,308,SP0543,SPEEDY FUELS LIMITED,05/01/2023 00:00,28/5/2023 00:00:00,P02-2024
,LEE VALLEY MARINA STANSTEAD,TRANSPORT RELATED EXPENDITURE,VEHICLE FUEL,3335,ALLSTAR BUSINESS SOLUTIONS LTD,05/09/2023 00:00,273573,69.67,AR0035,ALLSTAR BUSINESS SOLUTIONS LTD,05/01/2023 00:00,28/5/2023 00:00:00,P02-2024
P&V,LEE VALLEY FARM HOLYFIELDHALL,TRANSPORT RELATED EXPENDITURE,VEHICLE FUEL,3335,ALLSTAR BUSINESS SOLUTIONS LTD,05/09/2023 00:00,273573,78.92,AR0035,ALLSTAR BUSINESS SOLUTIONS LTD,05/01/2023 00:00,28/5/2023 00:00:00,P02-2024
,LEE VALLEY CAMPSITE,TRANSPORT RELATED EXPENDITURE,VEHICLE FUEL,3335,ALLSTAR BUSINESS SOLUTIONS LTD,05/09/2023 00:00,273573,83.23,AR0035,ALLSTAR BUSINESS SOLUTIONS LTD,05/01/2023 00:00,28/5/2023 00:00:00,P02-2024
,LEE VALLEY CARAVAN PARK,TRANSPORT RELATED EXPENDITURE,VEHICLE FUEL,3335,ALLSTAR BUSINESS SOLUTIONS LTD,05/09/2023 00:00,273573,197.5,AR0035,ALLSTAR BUSINESS SOLUTIONS LTD,05/01/2023 00:00,28/5/2023 00:00:00,P02-2024
P&V,MYDDELTON HOUSE GARDENS,TRANSPORT RELATED EXPENDITURE,VEHICLE FUEL,3335,ALLSTAR BUSINESS SOLUTIONS LTD,05/09/2023 00:00,273573,81.75,AR0035,ALLSTAR BUSINESS SOLUTIONS LTD,05/01/2023 00:00,28/5/2023 00:00:00,P02-2024
P&V,SOUTH AREA RANGERS,TRANSPORT RELATED EXPENDITURE,VEHICLE FUEL,3335,ALLSTAR BUSINESS SOLUTIONS LTD,05/09/2023 00:00,273573,299.39,AR0035,ALLSTAR BUSINESS SOLUTIONS LTD,05/01/2023 00:00,28/5/2023 00:00:00,P02-2024
P&V,RIVER LEE COUNTRY PARK,TRANSPORT RELATED EXPENDITURE,VEHICLE FUEL,3335,ALLSTAR BUSINESS SOLUTIONS LTD,05/09/2023 00:00,273573,345.88,AR0035,ALLSTAR BUSINESS SOLUTIONS LTD,05/01/2023 00:00,28/5/2023 00:00:00,P02-2024
P&V,RIVER LEE COUNTRY PARK,TRANSPORT RELATED EXPENDITURE,VEHICLE FUEL,3335,ALLSTAR BUSINESS SOLUTIONS LTD,05/09/2023 00:00,273573,64.79,AR0035,ALLSTAR BUSINESS SOLUTIONS LTD,05/01/2023 00:00,28/5/2023 00:00:00,P02-2024
,LV LEISURE CENTRE GOLF COURSE,TRANSPORT RELATED EXPENDITURE,VEHICLE FUEL,3335,P121684-SERVICE-1800 Litres Red Diesel,16/5/2023 00:00:00,273535,1349.85,HA0400,WATSON FUELS,05/01/2023 00:00,28/5/2023 00:00:00,P02-2024
P&V,VOLUNTEERS (L&E),TRANSPORT RELATED EXPENDITURE,TRAVELLING EXPENSES,3344,Volunteer - 01/02/23-25/03/23,23/5/2023 00:00:00,274150,126.45,CH0762,MRS BRENDA CHANTER,05/01/2023 00:00,28/5/2023 00:00:00,P02-2024
P&V,FISHERIES MANAGEMENT,SUPPLIES AND SERVICES,EQUIPMENT & MATERIALS,4111,P121755-SERVICE-Workstation Desks - MC614SB - Delivery,15/5/2023 00:00:00,273667,45,TH0008,JKL SOLUTIONS LTD,05/01/2023 00:00,28/5/2023 00:00:00,P02-2024
P&V,FISHERIES MANAGEMENT,SUPPLIES AND SERVICES,EQUIPMENT & MATERIALS,4111,P121755-SERVICE-6x Workstation Desks - MC614SB,15/5/2023 00:00:00,273667,774,TH0008,JKL SOLUTIONS LTD,05/01/2023 00:00,28/5/2023 00:00:00,P02-2024
,LEE VALLEY MARINA SPRINGFIELD,SUPPLIES AND SERVICES,EQUIPMENT & MATERIALS,4111,P121403-SERVICE-Collection of size W pureshield argon bottle,05/09/2023 00:00,273661,-11.7,BO0015,BOC LTD,05/01/2023 00:00,28/5/2023 00:00:00,P02-2024
,LEE VALLEY CAMPSITE,SUPPLIES AND SERVICES,EQUIPMENT & MATERIALS,4111,P121694-SERVICE-4 x single z beds for cabins/ cocoons,05/09/2023 00:00,273022,466.67,BQ0164,TRADE UK ACCOUNT,05/01/2023 00:00,28/5/2023 00:00:00,P02-2024
,LEE VALLEY CAMPSITE,SUPPLIES AND SERVICES,EQUIPMENT & MATERIALS,4111,P121609-SERVICE-Site Materials,05/09/2023 00:00,273658,37.46,SC0057,SCREWFIX DIRECT LTD,05/01/2023 00:00,28/5/2023 00:00:00,P02-2024
,LEE VALLEY CARAVAN PARK,SUPPLIES AND SERVICES,EQUIPMENT & MATERIALS,4111,P121376-SERVICE-Six 8ft 4x4 Posst and 1 Box Screws,05/09/2023 00:00,272604,109.38,LE0012,LEASIDE TIMBER & BUILDERS MERCHANTS LTD,05/01/2023 00:00,28/5/2023 00:00:00,P02-2024
,LEE VALLEY CARAVAN PARK,SUPPLIES AND SERVICES,EQUIPMENT & MATERIALS,4111,P121750-SERVICE-Replace Taps - Tent Field Facilities,05/09/2023 00:00,273629,170,SO0400,SOUTHERN GREEN SERVICES LIMITED,05/01/2023 00:00,28/5/2023 00:00:00,P02-2024
,LEE VALLEY CARAVAN PARK,SUPPLIES AND SERVICES,EQUIPMENT & MATERIALS,4111,P121878-SERVICE-2 x Type 1,15/5/2023 00:00:00,273644,92,LE0012,LEASIDE TIMBER & BUILDERS MERCHANTS LTD,05/01/2023 00:00,28/5/2023 00:00:00,P02-2024
P&V,MYDDELTON HOUSE GARDENS,SUPPLIES AND SERVICES,EQUIPMENT & MATERIALS,4111,P121897-SERVICE-gardens equitment,16/5/2023 00:00:00,273716,99.99,BQ0164,TRADE UK ACCOUNT,05/01/2023 00:00,28/5/2023 00:00:00,P02-2024
P&V,NORTH AREA RANGERS,SUPPLIES AND SERVICES,EQUIPMENT & MATERIALS,4111,P121859-SERVICE-Max Electrical Breaker 110V,17/5/2023 00:00:00,273927,466.66,SC0057,SCREWFIX DIRECT LTD,05/01/2023 00:00,28/5/2023 00:00:00,P02-2024
P&V,NORTH AREA RANGERS,SUPPLIES AND SERVICES,EQUIPMENT & MATERIALS,4111,P121889-SERVICE-8x Wooden Handle Shovels,16/5/2023 00:00:00,273940,155.6,SA0449,THE SAFETY SUPPLY COMPANY,05/01/2023 00:00,28/5/2023 00:00:00,P02-2024
P&V,NORTH AREA RANGERS,SUPPLIES AND SERVICES,EQUIPMENT & MATERIALS,4111,P121989-SERVICE-5x Universal Panel Saw,28/5/2023 00:00:00,274195,40.25,PO0478,POWER TOOLS DIRECT ONLINE LTD,05/01/2023 00:00,28/5/2023 00:00:00,P02-2024
P&V,NORTH AREA RANGERS,SUPPLIES AND SERVICES,EQUIPMENT & MATERIALS,4111,P121989-SERVICE-5x Bahco Bowsaw,28/5/2023 00:00:00,274195,65.5,PO0478,POWER TOOLS DIRECT ONLINE LTD,05/01/2023 00:00,28/5/2023 00:00:00,P02-2024
P&V,NORTH AREA RANGERS,SUPPLIES AND SERVICES,EQUIPMENT & MATERIALS,4111,P121989-SERVICE-Delivery to address below,28/5/2023 00:00:00,274195,6.62,PO0478,POWER TOOLS DIRECT ONLINE LTD,05/01/2023 00:00,28/5/2023 00:00:00,P02-2024
P&V,NORTH AREA RANGERS,SUPPLIES AND SERVICES,EQUIPMENT & MATERIALS,4111,Ref 273940,24/5/2023 00:00:00,274225,0,SA0449,THE SAFETY SUPPLY COMPANY,05/01/2023 00:00,28/5/2023 00:00:00,P02-2024
P&V,SOUTH AREA RANGERS,SUPPLIES AND SERVICES,EQUIPMENT & MATERIALS,4111,P121832-SERVICE-4x Silky Gomtaro 300mm Blades,23/5/2023 00:00:00,274145,117.44,AP0245,APS LIMITED,05/01/2023 00:00,28/5/2023 00:00:00,P02-2024
P&V,SOUTH AREA RANGERS,SUPPLIES AND SERVICES,EQUIPMENT & MATERIALS,4111,P122056-SERVICE-Blackfriar Anti-Climb Paint - Black 1Lt,28/5/2023 00:00:00,274320,21.65,SC0057,SCREWFIX DIRECT LTD,05/01/2023 00:00,28/5/2023 00:00:00,P02-2024
P&V,SOUTH AREA RANGERS,SUPPLIES AND SERVICES,EQUIPMENT & MATERIALS,4111,P122056-SERVICE-2x Sandex Masonry Paint - Pure White 10Lt,28/5/2023 00:00:00,274320,66.65,SC0057,SCREWFIX DIRECT LTD,05/01/2023 00:00,28/5/2023 00:00:00,P02-2024
P&V,SOUTH AREA RANGERS,SUPPLIES AND SERVICES,EQUIPMENT & MATERIALS,4111,P122056-SERVICE-1x Sign 'Warning Anti-Climb Paint' 297x210mm,28/5/2023 00:00:00,274320,4.16,SC0057,SCREWFIX DIRECT LTD,05/01/2023 00:00,28/5/2023 00:00:00,P02-2024
P&V,SOUTH AREA RANGERS,SUPPLIES AND SERVICES,EQUIPMENT & MATERIALS,4111,P122056-SERVICE-2x Sandex Masonry Paint - Black 5Lt,28/5/2023 00:00:00,274320,49.98,SC0057,SCREWFIX DIRECT LTD,05/01/2023 00:00,28/5/2023 00:00:00,P02-2024
P&V,SOUTH AREA RANGERS,SUPPLIES AND SERVICES,EQUIPMENT & MATERIALS,4111,P122057-SERVICE-2x Sandtex Masonry Paint - Black 5Lt,28/5/2023 00:00:00,274321,50,BQ0164,TRADE UK ACCOUNT,05/01/2023 00:00,28/5/2023 00:00:00,P02-2024
P&V,RIVER LEE COUNTRY PARK,SUPPLIES AND SERVICES,EQUIPMENT & MATERIALS,4111,P121800-SERVICE-1x Router Straght Bit,05/09/2023 00:00,273569,33.36,JE0011,SAINT-GOBAIN BUILDING DISTRIBUTION,05/01/2023 00:00,28/5/2023 00:00:00,P02-2024
P&V,RIVER LEE COUNTRY PARK,SUPPLIES AND SERVICES,EQUIPMENT & MATERIALS,4111,P121800-SERVICE-1x White Spirit,05/09/2023 00:00,273569,5.5,JE0011,SAINT-GOBAIN BUILDING DISTRIBUTION,05/01/2023 00:00,28/5/2023 00:00:00,P02-2024
P&V,RIVER LEE COUNTRY PARK,SUPPLIES AND SERVICES,EQUIPMENT & MATERIALS,4111,P121800-SERVICE-3x Hammerite Smooth - Black,05/09/2023 00:00,273569,49.89,JE0011,SAINT-GOBAIN BUILDING DISTRIBUTION,05/01/2023 00:00,28/5/2023 00:00:00,P02-2024
P&V,RIVER LEE COUNTRY PARK,SUPPLIES AND SERVICES,EQUIPMENT & MATERIALS,4111,P121800-SERVICE-6 x Brushes,05/09/2023 00:00,273569,35.88,JE0011,SAINT-GOBAIN BUILDING DISTRIBUTION,05/01/2023 00:00,28/5/2023 00:00:00,P02-2024
P&V,ALMOST WILD CAMPSITE,SUPPLIES AND SERVICES,EQUIPMENT & MATERIALS,4111,P121821-SERVICE-NO MOORING SIGN,23/5/2023 00:00:00,273994,35,SL0528,SLAM SIGNS LTD,05/01/2023 00:00,28/5/2023 00:00:00,P02-2024
P&V,THREE MILLS,SUPPLIES AND SERVICES,EQUIPMENT & MATERIALS,4111,P121861-SERVICE-2 x Bulk Bags Cedec Gold,23/5/2023 00:00:00,274174,350.28,CE0566,CED LTD,05/01/2023 00:00,28/5/2023 00:00:00,P02-2024
P&V,THREE MILLS,SUPPLIES AND SERVICES,EQUIPMENT & MATERIALS,4111,P121861-SERVICE-Delivery,23/5/2023 00:00:00,274174,130,CE0566,CED LTD,05/01/2023 00:00,28/5/2023 00:00:00,P02-2024
P&V,THREE MILLS,SUPPLIES AND SERVICES,EQUIPMENT & MATERIALS,4111,P121871-SERVICE-4x SupaGrow Premium Play Grade Bark 600L,28/5/2023 00:00:00,274231,423.32,TR0031,TRAVIS PERKINS TRADING CO LTD,05/01/2023 00:00,28/5/2023 00:00:00,P02-2024
,LV ICE CENTRE CATERING,SUPPLIES AND SERVICES,EQUIPMENT & MATERIALS,4111,IC - EQUIPMENT,28/5/2023 00:00:00,274331,33.33,CO0045,COCA COLA EUROPEAN PARTNERS GREAT BRITAIN LTD,05/01/2023 00:00,28/5/2023 00:00:00,P02-2024
,LV ICE CENTRE CATERING,SUPPLIES AND SERVICES,EQUIPMENT & MATERIALS,4111,IC - EQUIPMENT,28/5/2023 00:00:00,274332,33.33,CO0045,COCA COLA EUROPEAN PARTNERS GREAT BRITAIN LTD,05/01/2023 00:00,28/5/2023 00:00:00,P02-2024
,LV ICE CENTRE CATERING,SUPPLIES AND SERVICES,EQUIPMENT & MATERIALS,4111,IC-EQUIPMENT,28/5/2023 00:00:00,274333,33.33,CO0045,COCA COLA EUROPEAN PARTNERS GREAT BRITAIN LTD,05/01/2023 00:00,28/5/2023 00:00:00,P02-2024
,LV ICE CENTRE CATERING,SUPPLIES AND SERVICES,EQUIPMENT & MATERIALS,4111,IC - EQUIPMENT,28/5/2023 00:00:00,274334,-89.21,CO0045,COCA COLA EUROPEAN PARTNERS GREAT BRITAIN LTD,05/01/2023 00:00,28/5/2023 00:00:00,P02-2024
,LV ICE CENTRE CATERING,SUPPLIES AND SERVICES,EQUIPMENT & MATERIALS,4111,IC-EQUIPMENT,28/5/2023 00:00:00,274335,-21.51,CO0045,COCA COLA EUROPEAN PARTNERS GREAT BRITAIN LTD,05/01/2023 00:00,28/5/2023 00:00:00,P02-2024
,LV LEISURE CENTRE CAMPSITE,SUPPLIES AND SERVICES,EQUIPMENT & MATERIALS,4111,P121815-SERVICE-lightbulbs for cabins/cocoons,05/09/2023 00:00,273563,33.29,SC0057,SCREWFIX DIRECT LTD,05/01/2023 00:00,28/5/2023 00:00:00,P02-2024
,LV LEISURE CENTRE CAMPSITE,SUPPLIES AND SERVICES,EQUIPMENT & MATERIALS,4111,P121770-SERVICE-Weight sign for family room seat,15/5/2023 00:00:00,273815,50,SL0528,SLAM SIGNS LTD,05/01/2023 00:00,28/5/2023 00:00:00,P02-2024
,LV LEISURE CENTRE CAMPSITE,SUPPLIES AND SERVICES,EQUIPMENT & MATERIALS,4111,"P122050-SERVICE-padlock, hasp, screws etc",24/5/2023 00:00:00,274187,104.09,SC0057,SCREWFIX DIRECT LTD,05/01/2023 00:00,28/5/2023 00:00:00,P02-2024
,LV LEISURE CENTRE GOLF COURSE,SUPPLIES AND SERVICES,EQUIPMENT & MATERIALS,4111,P121627-SERVICE-Golf Score Cards,15/5/2023 00:00:00,273345,297.28,SO0582,SOLOPRESS,05/01/2023 00:00,28/5/2023 00:00:00,P02-2024
,LEE VALLEY CAMPSITE,SUPPLIES AND SERVICES,EQUIPMENT MAINTENANCE,4112,P121516-SERVICE-Repairs- Kuboto's  and Torro,05/09/2023 00:00,273164,1032.1,GE0440,GTEC'S,05/01/2023 00:00,28/5/2023 00:00:00,P02-2024
,LEE VALLEY CAMPSITE,SUPPLIES AND SERVICES,EQUIPMENT MAINTENANCE,4112,P121589-SERVICE-repair to washing machine coin drawer,05/09/2023 00:00,273539,682.08,AL0434,ALLSOP & FRANCIS,05/01/2023 00:00,28/5/2023 00:00:00,P02-2024
,LEE VALLEY CAMPSITE,SUPPLIES AND SERVICES,EQUIPMENT MAINTENANCE,4112,P121756-SERVICE-callout fee damaged barrier,23/5/2023 00:00:00,274004,85,DE0013,DENNIS SECURITY CENTRE,05/01/2023 00:00,28/5/2023 00:00:00,P02-2024
,LEE VALLEY CARAVAN PARK,SUPPLIES AND SERVICES,EQUIPMENT MAINTENANCE,4112,P121841-SERVICE-Replace light in a bollard,05/09/2023 00:00,273635,108,BR0018,BRADSHAW ELECTRICAL LIMITED,05/01/2023 00:00,28/5/2023 00:00:00,P02-2024
,LEE VALLEY CARAVAN PARK,SUPPLIES AND SERVICES,EQUIPMENT MAINTENANCE,4112,"P121983-SERVICE-Washing machine door, Tresco",23/5/2023 00:00:00,274033,373.48,AL0434,ALLSOP & FRANCIS,05/01/2023 00:00,28/5/2023 00:00:00,P02-2024
,LEE VALLEY CARAVAN PARK,SUPPLIES AND SERVICES,EQUIPMENT MAINTENANCE,4112,P121994-SERVICE-Service/Repair 1 strimmer and 1 leaf blower,23/5/2023 00:00:00,274148,290,NA0168,NAZEING GARDEN MACHINERY,05/01/2023 00:00,28/5/2023 00:00:00,P02-2024
,LEE VALLEY CARAVAN PARK,SUPPLIES AND SERVICES,EQUIPMENT MAINTENANCE,4112,"P122035-SERVICE-Paint, brushes, ice sports aid packs",28/5/2023 00:00:00,274189,92.05,SC0057,SCREWFIX DIRECT LTD,05/01/2023 00:00,28/5/2023 00:00:00,P02-2024
,LEE VALLEY CARAVAN PARK,SUPPLIES AND SERVICES,EQUIPMENT MAINTENANCE,4112,"P122037-SERVICE-Rim deadlock, rim tape",28/5/2023 00:00:00,274209,20.49,SC0057,SCREWFIX DIRECT LTD,05/01/2023 00:00,28/5/2023 00:00:00,P02-2024
P&V,MYDDELTON HOUSE GARDENS,SUPPLIES AND SERVICES,EQUIPMENT MAINTENANCE,4112,P121944-SERVICE-greenhouse boiler repair may 23,15/5/2023 00:00:00,273923,245,GI0137,R & P GIBBS LIMITED,05/01/2023 00:00,28/5/2023 00:00:00,P02-2024
P&V,RIVER LEE COUNTRY PARK,SUPPLIES AND SERVICES,EQUIPMENT MAINTENANCE,4112,P121786-SERVICE-Service Bowser Pump,17/5/2023 00:00:00,274016,95.31,RO0113,W ROBINSON AND SONS (EC) LTD.,05/01/2023 00:00,28/5/2023 00:00:00,P02-2024
,LV LEISURE CENTRE CAMPSITE,SUPPLIES AND SERVICES,EQUIPMENT MAINTENANCE,4112,P121798-SERVICE-change light case disabled wc,15/5/2023 00:00:00,273750,63,RV0035,RVTV SECURITY GROUP LTD,05/01/2023 00:00,28/5/2023 00:00:00,P02-2024
,LV LEISURE CENTRE CAMPSITE,SUPPLIES AND SERVICES,EQUIPMENT MAINTENANCE,4112,P121934-SERVICE-paint rod set mortar,23/5/2023 00:00:00,273769,99.97,BQ0164,TRADE UK ACCOUNT,05/01/2023 00:00,28/5/2023 00:00:00,P02-2024
,LV LEISURE CENTRE CAMPSITE,SUPPLIES AND SERVICES,EQUIPMENT MAINTENANCE,4112,P121812-SERVICE-delivery fee for previous order,23/5/2023 00:00:00,273996,10,SL0528,SLAM SIGNS LTD,05/01/2023 00:00,28/5/2023 00:00:00,P02-2024
,LV LEISURE CENTRE CAMPSITE,SUPPLIES AND SERVICES,EQUIPMENT MAINTENANCE,4112,P122005-SERVICE-failure field board,23/5/2023 00:00:00,274127,110,BR0018,BRADSHAW ELECTRICAL LIMITED,05/01/2023 00:00,28/5/2023 00:00:00,P02-2024
,LV LEISURE CENTRE CAMPSITE,SUPPLIES AND SERVICES,EQUIPMENT MAINTENANCE,4112,P122034-SERVICE-repair 2x dyrer coin boxes,28/5/2023 00:00:00,274152,535,AL0434,ALLSOP & FRANCIS,05/01/2023 00:00,28/5/2023 00:00:00,P02-2024
,LV LEISURE CENTRE GOLF COURSE,SUPPLIES AND SERVICES,EQUIPMENT MAINTENANCE,4112,P121767-SERVICE-repair green keepers camera,05/09/2023 00:00,273749,240,RV0035,RVTV SECURITY GROUP LTD,05/01/2023 00:00,28/5/2023 00:00:00,P02-2024
R&B,INFORMATION TECHNOLOGY,SUPPLIES AND SERVICES,IT CORE SYSTEMS,4113,P121892-SERVICE-Support & Data Apr 23 - Mar 24,15/5/2023 00:00:00,273721,160.53,CY0653,CYBERTILL,05/01/2023 00:00,28/5/2023 00:00:00,P02-2024
R&B,INFORMATION TECHNOLOGY,SUPPLIES AND SERVICES,IT CORE SYSTEMS,4113,P121193-SERVICE-Gema parks Campsite monthly subs April 2023 -,15/5/2023 00:00:00,273752,605,NE0218,NETGUIDES LIMITED,05/01/2023 00:00,28/5/2023 00:00:00,P02-2024
R&B,INFORMATION TECHNOLOGY,SUPPLIES AND SERVICES,IT CORE SYSTEMS,4113,"P121499-SERVICE-Efin monthly managed fees @ 1,466.82",15/5/2023 00:00:00,273768,1466.82,CE0021,ADVANCED BUSINESS SOLUTIONS,05/01/2023 00:00,28/5/2023 00:00:00,P02-2024
R&B,INFORMATION TECHNOLOGY,SUPPLIES AND SERVICES,IT CORE SYSTEMS,4113,P121421-SERVICE-CIPHR Payroll April 2023 - March 2024 @ 569.,23/5/2023 00:00:00,274163,569.58,CI0721,CIPHR,05/01/2023 00:00,28/5/2023 00:00:00,P02-2024
R&B,INFORMATION TECHNOLOGY,SUPPLIES AND SERVICES,IT NETWORK & TELECOMS COSTS,4114,P121817-SERVICE-Monthly SIP charges Apr 2023 - Mar 2024,15/5/2023 00:00:00,273664,160.23,FR0131,VOICEFLEX LTD,05/01/2023 00:00,28/5/2023 00:00:00,P02-2024
R&B,INFORMATION TECHNOLOGY,SUPPLIES AND SERVICES,IT NETWORK & TELECOMS COSTS,4114,P121559-SERVICE-Campsites Circuits 1GB for Public WiFi - Apri,15/5/2023 00:00:00,273776,835,PP0200,PPSNET LIMITED,05/01/2023 00:00,28/5/2023 00:00:00,P02-2024
R&B,INFORMATION TECHNOLOGY,SUPPLIES AND SERVICES,IT NETWORK & TELECOMS COSTS,4114,P121558-SERVICE-MPLS for all sites April - September 2023,15/5/2023 00:00:00,273777,8757.36,PP0200,PPSNET LIMITED,05/01/2023 00:00,28/5/2023 00:00:00,P02-2024
R&B,INFORMATION TECHNOLOGY,SUPPLIES AND SERVICES,IT HARDWARE & SOFTWARE COSTS,4116,P120751-SERVICE-Dell Universal Dock UD22,28/5/2023 00:00:00,272598,1082.98,DE0011,DELL CORPORATION LIMITED,05/01/2023 00:00,28/5/2023 00:00:00,P02-2024
R&B,INFORMATION TECHNOLOGY,SUPPLIES AND SERVICES,IT HARDWARE & SOFTWARE COSTS,4116,P121740-SERVICE-Ubiquiti GBE airmax GigaBeam Outdoor 60 GHz,05/03/2023 00:00,273540,118.47,BR0650,BROADBANDBUYER.COM,05/01/2023 00:00,28/5/2023 00:00:00,P02-2024
R&B,INFORMATION TECHNOLOGY,SUPPLIES AND SERVICES,IT HARDWARE & SOFTWARE COSTS,4116,P121328-SERVICE-Pulseway On Premise Enterprise SaaS annual su,15/5/2023 00:00:00,273771,878,IQ0022,IQUAL,05/01/2023 00:00,28/5/2023 00:00:00,P02-2024
P&V,MYDDLETON HSE HERITAGE CENTRE,SUPPLIES AND SERVICES,IT HARDWARE & SOFTWARE COSTS,4116,P121666-SERVICE-Food & drink order week comm 17 Apr 2023,05/10/2023 00:00,273121,401.74,360001,BIDFOOD,05/01/2023 00:00,28/5/2023 00:00:00,P02-2024
P&V,MYDDLETON HSE HERITAGE CENTRE,SUPPLIES AND SERVICES,IT HARDWARE & SOFTWARE COSTS,4116,BIDFOOD,05/10/2023 00:00,273121,-401.74,360001,BIDFOOD,05/01/2023 00:00,28/5/2023 00:00:00,P02-2024
P&V,MYDDLETON HSE HERITAGE CENTRE,SUPPLIES AND SERVICES,IT HARDWARE & SOFTWARE COSTS,4116,BIDFOOD,05/10/2023 00:00,273121,213.31,360001,BIDFOOD,05/01/2023 00:00,28/5/2023 00:00:00,P02-2024
P&V,MYDDLETON HSE HERITAGE CENTRE,SUPPLIES AND SERVICES,IT HARDWARE & SOFTWARE COSTS,4116,BIDFOOD,05/10/2023 00:00,273121,188.43,360001,BIDFOOD,05/01/2023 00:00,28/5/2023 00:00:00,P02-2024
R&B,INFORMATION TECHNOLOGY,SUPPLIES AND SERVICES,IT MAINTENANCE AGREEMENTS,4119,P121793-SERVICE-Digiticket monthly ticketing service,15/5/2023 00:00:00,273647,686,DI0304,DIGITAL TICKETING SYSTEMS LTD (DIGITICKETS),05/01/2023 00:00,28/5/2023 00:00:00,P02-2024
P&V,EAST INDIA DOCK AND BOW CREEK,SUPPLIES AND SERVICES,MATERIALS (COUNTERS),4123,P121827-SERVICE-Visitor Counter Maintainance,05/09/2023 00:00,273657,1400,HE0418,HEALTHMATIC LTD,05/01/2023 00:00,28/5/2023 00:00:00,P02-2024
P&V,NORTH AREA RANGERS,SUPPLIES AND SERVICES,MATERIALS (COUNTERS),4123,P121827-SERVICE-Visitor Counter Maintainance,05/09/2023 00:00,273657,3300,HE0418,HEALTHMATIC LTD,05/01/2023 00:00,28/5/2023 00:00:00,P02-2024
P&V,SOUTH AREA RANGERS,SUPPLIES AND SERVICES,MATERIALS (COUNTERS),4123,P121827-SERVICE-Visitor Counter Maintainance,05/09/2023 00:00,273657,4350,HE0418,HEALTHMATIC LTD,05/01/2023 00:00,28/5/2023 00:00:00,P02-2024
P&V,ABBEY GARDENS,SUPPLIES AND SERVICES,MATERIALS (COUNTERS),4123,P121827-SERVICE-Visitor Counter Maintainance,05/09/2023 00:00,273657,1000,HE0418,HEALTHMATIC LTD,05/01/2023 00:00,28/5/2023 00:00:00,P02-2024
P&V,GUNPOWDER PARK,SUPPLIES AND SERVICES,MATERIALS (COUNTERS),4123,P121827-SERVICE-Visitor Counter Maintainance,05/09/2023 00:00,273657,3350,HE0418,HEALTHMATIC LTD,05/01/2023 00:00,28/5/2023 00:00:00,P02-2024
P&V,RIVER LEE COUNTRY PARK,SUPPLIES AND SERVICES,MATERIALS (COUNTERS),4123,P121827-SERVICE-Visitor Counter Maintainance,05/09/2023 00:00,273657,10000,HE0418,HEALTHMATIC LTD,05/01/2023 00:00,28/5/2023 00:00:00,P02-2024
P&V,THREE MILLS,SUPPLIES AND SERVICES,MATERIALS (COUNTERS),4123,P121827-SERVICE-Visitor Counter Maintainance,05/09/2023 00:00,273657,750,HE0418,HEALTHMATIC LTD,05/01/2023 00:00,28/5/2023 00:00:00,P02-2024
P&V,SOUTH AREA RANGERS,SUPPLIES AND SERVICES,MATERIALS (LOCKS),4124,P122012-SERVICE-7x Vulcan 50mm Combination Padlocks,23/5/2023 00:00:00,274158,105.99,SC0057,SCREWFIX DIRECT LTD,05/01/2023 00:00,28/5/2023 00:00:00,P02-2024
,LEE VALLEY CAMPSITE,SUPPLIES AND SERVICES,MATERIALS (GROUNDS MAINT),4125,P121446-SERVICE-2x 20mm shingle dumpy bags,15/5/2023 00:00:00,273762,110,TH0051,THOMPSONS OF CREWS HILL LTD,05/01/2023 00:00,28/5/2023 00:00:00,P02-2024
,LEE VALLEY CAMPSITE,SUPPLIES AND SERVICES,MATERIALS (GROUNDS MAINT),4125,P121446-SERVICE-2x 20mm shingle dumpy bags,24/5/2023 00:00:00,273763,110,TH0051,THOMPSONS OF CREWS HILL LTD,05/01/2023 00:00,28/5/2023 00:00:00,P02-2024
P&V,ALMOST WILD CAMPSITE,SUPPLIES AND SERVICES,MATERIALS (GROUNDS MAINT),4125,P122010-SERVICE-Post mix for new signs,28/5/2023 00:00:00,274241,55.2,LE0012,LEASIDE TIMBER & BUILDERS MERCHANTS LTD,05/01/2023 00:00,28/5/2023 00:00:00,P02-2024
,LEE VALLEY MARINA SPRINGFIELD,SUPPLIES AND SERVICES,MATERIALS (TOOLS & PLANT),4127,P121787-SERVICE-Delivery charge,05/09/2023 00:00,273760,4.95,LS0469,L & S ENGINEERS LTD,05/01/2023 00:00,28/5/2023 00:00:00,P02-2024
,LEE VALLEY MARINA SPRINGFIELD,SUPPLIES AND SERVICES,MATERIALS (TOOLS & PLANT),4127,P121787-SERVICE-Drill bits for workshop,05/09/2023 00:00,273760,111.55,LS0469,L & S ENGINEERS LTD,05/01/2023 00:00,28/5/2023 00:00:00,P02-2024
,STANSTEAD RECHARGEABLE WORKS,SUPPLIES AND SERVICES,MATERIALS (TOOLS & PLANT),4127,"P121880-SERVICE-10x 9"" rollers",16/5/2023 00:00:00,273928,47.42,SC0057,SCREWFIX DIRECT LTD,05/01/2023 00:00,28/5/2023 00:00:00,P02-2024
,STANSTEAD RECHARGEABLE WORKS,SUPPLIES AND SERVICES,MATERIALS (TOOLS & PLANT),4127,P121973-SERVICE-swarfega and hammerite paint,23/5/2023 00:00:00,274166,60.14,SC0057,SCREWFIX DIRECT LTD,05/01/2023 00:00,28/5/2023 00:00:00,P02-2024
,SPRINGFIELD RECHARGEABLE WORKS,SUPPLIES AND SERVICES,MATERIALS (ENG OTHER),4130,P121634-SERVICE-To hire 110 ton crane on 25-04-2023,05/09/2023 00:00,273709,1400,BA0339,BALDWINS CRANE HIRE LTD,05/01/2023 00:00,28/5/2023 00:00:00,P02-2024
,SPRINGFIELD RECHARGEABLE WORKS,SUPPLIES AND SERVICES,MATERIALS (ENG OTHER),4130,P121634-SERVICE-To provide insurance @ 15%,05/09/2023 00:00,273709,210,BA0339,BALDWINS CRANE HIRE LTD,05/01/2023 00:00,28/5/2023 00:00:00,P02-2024
,STANSTEAD RECHARGEABLE WORKS,SUPPLIES AND SERVICES,MATERIALS (ENG OTHER),4130,P121788-SERVICE-impellers and elbows,05/09/2023 00:00,273652,59.93,AS0036,ASAP SUPPLIES,05/01/2023 00:00,28/5/2023 00:00:00,P02-2024
,STANSTEAD RECHARGEABLE WORKS,SUPPLIES AND SERVICES,MATERIALS (ENG OTHER),4130,P121833-SERVICE-4 x engine mounts,15/5/2023 00:00:00,273751,103.5,BE0198,BETA MARINE LIMITED,05/01/2023 00:00,28/5/2023 00:00:00,P02-2024
,STANSTEAD RECHARGEABLE WORKS,SUPPLIES AND SERVICES,MATERIALS (ENG OTHER),4130,P121995-SERVICE-mig welding wire 5kg batch Qty:5,23/5/2023 00:00:00,273963,92.5,WE0257,PERFECT WELDING LTD,05/01/2023 00:00,28/5/2023 00:00:00,P02-2024
,STANSTEAD RECHARGEABLE WORKS,SUPPLIES AND SERVICES,MATERIALS (ENG OTHER),4130,P121769-SERVICE-engineering parts,23/5/2023 00:00:00,274036,65,TH0642,THOMAS PRECISION ENGINEERS,05/01/2023 00:00,28/5/2023 00:00:00,P02-2024
,LEE VALLEY CARAVAN PARK,SUPPLIES AND SERVICES,MATERIALS (ENG OTHER),4130,P121820-SERVICE-Cleaned Units Lables,23/5/2023 00:00:00,273993,320,SL0528,SLAM SIGNS LTD,05/01/2023 00:00,28/5/2023 00:00:00,P02-2024
,LEE VALLEY CARAVAN PARK,SUPPLIES AND SERVICES,MATERIALS (ENG OTHER),4130,P121820-SERVICE-Delivery charge,23/5/2023 00:00:00,273993,10,SL0528,SLAM SIGNS LTD,05/01/2023 00:00,28/5/2023 00:00:00,P02-2024
,LEE VALLEY CARAVAN PARK,SUPPLIES AND SERVICES,MATERIALS (ENG OTHER),4130,P121820-SERVICE-Delivery charge,23/5/2023 00:00:00,273994,10,SL0528,SLAM SIGNS LTD,05/01/2023 00:00,28/5/2023 00:00:00,P02-2024
P&V,LEE VALLEY FARM HOLYFIELDHALL,SUPPLIES AND SERVICES,FEED,4133,P120856-SERVICE-Maxcare Dairy,23/5/2023 00:00:00,273988,-202.2,BO0246,FOR FARMERS UK LTD,05/01/2023 00:00,28/5/2023 00:00:00,P02-2024
P&V,LEE VALLEY FARM HOLYFIELDHALL,SUPPLIES AND SERVICES,SPRAYS,4136,P121857-SERVICE-Sprays,05/09/2023 00:00,273754,4456.9,HA0013,HARLOW AGRICULTURAL MERCHANTS,05/01/2023 00:00,28/5/2023 00:00:00,P02-2024
P&V,LEE VALLEY FARM HOLYFIELDHALL,SUPPLIES AND SERVICES,DAIRY SUNDRIES,4138,P121804-SERVICE-Animal Removal,05/09/2023 00:00,273326,140,MA0074,W MARTIN & SON LIMITED,05/01/2023 00:00,28/5/2023 00:00:00,P02-2024
P&V,LEE VALLEY FARM HOLYFIELDHALL,SUPPLIES AND SERVICES,DAIRY SUNDRIES,4138,P122011-SERVICE-Liquid Nitrogen,23/5/2023 00:00:00,274155,78,GE0005,GENUS BREEDING LTD,05/01/2023 00:00,28/5/2023 00:00:00,P02-2024
,LEE VALLEY CARAVAN PARK,SUPPLIES AND SERVICES,MISCELLANEOUS CARAVAN COSTS,4174,P121752-SERVICE-HH45 Supplu and fit new shower mixer valve,05/09/2023 00:00,273631,245,SO0400,SOUTHERN GREEN SERVICES LIMITED,05/01/2023 00:00,28/5/2023 00:00:00,P02-2024
,LEE VALLEY CARAVAN PARK,SUPPLIES AND SERVICES,MISCELLANEOUS CARAVAN COSTS,4174,P121848-SERVICE-Caravan transfers,05/09/2023 00:00,273684,3500,CL0760,CLARKS CARAVAN & BOAT HAULAGE LTD,05/01/2023 00:00,28/5/2023 00:00:00,P02-2024
,LEE VALLEY CARAVAN PARK,SUPPLIES AND SERVICES,MISCELLANEOUS CARAVAN COSTS,4174,"P121937-SERVICE-Replacement cupboard doors,draws and panel",17/5/2023 00:00:00,273701,871.65,PI0333,PIONEER CARAVANS,05/01/2023 00:00,28/5/2023 00:00:00,P02-2024
,LEE VALLEY CARAVAN PARK,SUPPLIES AND SERVICES,CONSUMABLES - LODGES,4181,P121747-SERVICE-Install new water heaters in 3 Peacky Pods,05/09/2023 00:00,273628,1920,SO0400,SOUTHERN GREEN SERVICES LIMITED,05/01/2023 00:00,28/5/2023 00:00:00,P02-2024
,LEE VALLEY CARAVAN PARK,SUPPLIES AND SERVICES,CONSUMABLES - LODGES,4181,P121751-SERVICE-Replace Basin in the KIngfisher Peacky Pod,05/09/2023 00:00,273630,340,SO0400,SOUTHERN GREEN SERVICES LIMITED,05/01/2023 00:00,28/5/2023 00:00:00,P02-2024
,LEE VALLEY CARAVAN PARK,SUPPLIES AND SERVICES,CONSUMABLES - LODGES,4181,P121428-SERVICE-Spa Steps,28/5/2023 00:00:00,274198,99,RO0327,ROTOSPA,05/01/2023 00:00,28/5/2023 00:00:00,P02-2024
,LEE VALLEY CARAVAN PARK,SUPPLIES AND SERVICES,CONSUMABLES - LODGES,4181,P121428-SERVICE-New Hot Tub for Riverside Lodge,28/5/2023 00:00:00,274198,6089,RO0327,ROTOSPA,05/01/2023 00:00,28/5/2023 00:00:00,P02-2024
P&V,"ASSET PROTECTION, MAINT, DEVEL",SUPPLIES AND SERVICES,CLOTHING & UNIFORMS,4225,P121816-SERVICE-Safety boots and hard hat,23/5/2023 00:00:00,274151,43.5,DI0017,DIRECT BOOT & SHOE SUPPLIES,05/01/2023 00:00,28/5/2023 00:00:00,P02-2024
,LEE VALLEY MARINA STANSTEAD,SUPPLIES AND SERVICES,CLOTHING & UNIFORMS,4225,P121758-SERVICE-uniform-josh fleecy,15/5/2023 00:00:00,273656,24.45,DI0017,DIRECT BOOT & SHOE SUPPLIES,05/01/2023 00:00,28/5/2023 00:00:00,P02-2024
,LEE VALLEY CARAVAN PARK,SUPPLIES AND SERVICES,CLOTHING & UNIFORMS,4225,P122022-SERVICE-Gloves,23/5/2023 00:00:00,274159,7.28,SC0057,SCREWFIX DIRECT LTD,05/01/2023 00:00,28/5/2023 00:00:00,P02-2024
P&V,RIVER LEE COUNTRY PARK,SUPPLIES AND SERVICES,CLOTHING & UNIFORMS,4225,P121940-SERVICE-4x Ladies Peru Trousers Black Short S12,23/5/2023 00:00:00,274005,97.12,IL0177,KEELA INTERNATION LTD,05/01/2023 00:00,28/5/2023 00:00:00,P02-2024
P&V,RIVER LEE COUNTRY PARK,SUPPLIES AND SERVICES,CLOTHING & UNIFORMS,4225,P121940-SERVICE-6x Peru Trousers Black Reg W34,23/5/2023 00:00:00,274005,145.68,IL0177,KEELA INTERNATION LTD,05/01/2023 00:00,28/5/2023 00:00:00,P02-2024
P&V,RIVER LEE COUNTRY PARK,SUPPLIES AND SERVICES,CLOTHING & UNIFORMS,4225,P121940-SERVICE-3x Ladies Peru Trousers Black Reg S14,23/5/2023 00:00:00,274005,72.84,IL0177,KEELA INTERNATION LTD,05/01/2023 00:00,28/5/2023 00:00:00,P02-2024
P&V,RIVER LEE COUNTRY PARK,SUPPLIES AND SERVICES,CLOTHING & UNIFORMS,4225,P121940-SERVICE-2x Ladies Peru Trousers Black Reg S16,23/5/2023 00:00:00,274005,48.56,IL0177,KEELA INTERNATION LTD,05/01/2023 00:00,28/5/2023 00:00:00,P02-2024
P&V,RIVER LEE COUNTRY PARK,SUPPLIES AND SERVICES,CLOTHING & UNIFORMS,4225,P121940-SERVICE-2x Ladies Peru Trousers Black Long S12,23/5/2023 00:00:00,274005,48.56,IL0177,KEELA INTERNATION LTD,05/01/2023 00:00,28/5/2023 00:00:00,P02-2024
P&V,RIVER LEE COUNTRY PARK,SUPPLIES AND SERVICES,CLOTHING & UNIFORMS,4225,P121940-SERVICE-4x Peru Trousers Black Long W42,23/5/2023 00:00:00,274005,97.12,IL0177,KEELA INTERNATION LTD,05/01/2023 00:00,28/5/2023 00:00:00,P02-2024
P&V,RIVER LEE COUNTRY PARK,SUPPLIES AND SERVICES,CLOTHING & UNIFORMS,4225,P121940-SERVICE-2x Peru Trousers Black Short W30,23/5/2023 00:00:00,274005,48.56,IL0177,KEELA INTERNATION LTD,05/01/2023 00:00,28/5/2023 00:00:00,P02-2024
P&V,RIVER LEE COUNTRY PARK,SUPPLIES AND SERVICES,CLOTHING & UNIFORMS,4225,P121940-SERVICE-2x Peru Trousers Black Short W32,23/5/2023 00:00:00,274005,48.56,IL0177,KEELA INTERNATION LTD,05/01/2023 00:00,28/5/2023 00:00:00,P02-2024
P&V,EVENTS MANAGEMENT (PR),SUPPLIES AND SERVICES,CLOTHING & UNIFORMS,4225,P121917-SERVICE-Embroidery own garments,17/5/2023 00:00:00,273957,32.9,DI0017,DIRECT BOOT & SHOE SUPPLIES,05/01/2023 00:00,28/5/2023 00:00:00,P02-2024
,LV LEISURE CENTRE CAMPSITE,SUPPLIES AND SERVICES,CLOTHING & UNIFORMS,4225,SCREWFIX DIRECT LTD,24/5/2023 00:00:00,271997,8.33,SC0057,SCREWFIX DIRECT LTD,05/01/2023 00:00,28/5/2023 00:00:00,P02-2024
,LV LEISURE CENTRE CAMPSITE,SUPPLIES AND SERVICES,CLOTHING & UNIFORMS,4225,SCREWFIX DIRECT LTD,24/5/2023 00:00:00,271997,39.99,SC0057,SCREWFIX DIRECT LTD,05/01/2023 00:00,28/5/2023 00:00:00,P02-2024
,LV LEISURE CENTRE CAMPSITE,SUPPLIES AND SERVICES,CLOTHING & UNIFORMS,4225,P122049-SERVICE-PPE Pauls safety boots,24/5/2023 00:00:00,271997,48.32,SC0057,SCREWFIX DIRECT LTD,05/01/2023 00:00,28/5/2023 00:00:00,P02-2024
,LV LEISURE CENTRE CAMPSITE,SUPPLIES AND SERVICES,CLOTHING & UNIFORMS,4225,SCREWFIX DIRECT LTD,24/5/2023 00:00:00,271997,-48.32,SC0057,SCREWFIX DIRECT LTD,05/01/2023 00:00,28/5/2023 00:00:00,P02-2024
,LV LEISURE CENTRE CAMPSITE,SUPPLIES AND SERVICES,CLOTHING & UNIFORMS,4225,Edmonton-work clothings,28/5/2023 00:00:00,274188,-76.14,SC0057,SCREWFIX DIRECT LTD,05/01/2023 00:00,28/5/2023 00:00:00,P02-2024
,LV LEISURE CENTRE CAMPSITE,SUPPLIES AND SERVICES,CLOTHING & UNIFORMS,4225,P122051-SERVICE-Florina PPE,28/5/2023 00:00:00,274188,76.14,SC0057,SCREWFIX DIRECT LTD,05/01/2023 00:00,28/5/2023 00:00:00,P02-2024
,LV LEISURE CENTRE CAMPSITE,SUPPLIES AND SERVICES,CLOTHING & UNIFORMS,4225,Edmonton-work clothings,28/5/2023 00:00:00,274188,38.15,SC0057,SCREWFIX DIRECT LTD,05/01/2023 00:00,28/5/2023 00:00:00,P02-2024
,LV LEISURE CENTRE CAMPSITE,SUPPLIES AND SERVICES,CLOTHING & UNIFORMS,4225,Edmonton-work clothings,28/5/2023 00:00:00,274188,37.99,SC0057,SCREWFIX DIRECT LTD,05/01/2023 00:00,28/5/2023 00:00:00,P02-2024
R&B,HUMAN RESOURCES,SUPPLIES AND SERVICES,OFFICE EXPENSES,4311,P121831-SERVICE-OFFICE STATIONARY,05/09/2023 00:00,273775,32.53,TH0008,JKL SOLUTIONS LTD,05/01/2023 00:00,28/5/2023 00:00:00,P02-2024
R&B,DEMOCRATIC REPRESENTATION & MA,SUPPLIES AND SERVICES,OFFICE EXPENSES,4311,P121799-SERVICE-Gusset Envelopes (KF3527),15/5/2023 00:00:00,273746,33.35,TH0008,JKL SOLUTIONS LTD,05/01/2023 00:00,28/5/2023 00:00:00,P02-2024
R&B,DEMOCRATIC REPRESENTATION & MA,SUPPLIES AND SERVICES,OFFICE EXPENSES,4311,P121799-SERVICE-Binding Covers (KF00502),15/5/2023 00:00:00,273746,8.87,TH0008,JKL SOLUTIONS LTD,05/01/2023 00:00,28/5/2023 00:00:00,P02-2024
R&B,DEMOCRATIC REPRESENTATION & MA,SUPPLIES AND SERVICES,OFFICE EXPENSES,4311,P121799-SERVICE-Blue Biros (BC10111),15/5/2023 00:00:00,273746,6.48,TH0008,JKL SOLUTIONS LTD,05/01/2023 00:00,28/5/2023 00:00:00,P02-2024
,LEE VALLEY MARINA STANSTEAD,SUPPLIES AND SERVICES,OFFICE EXPENSES,4311,P121743-SERVICE-1st aid supplies (replace out of date stuff),15/5/2023 00:00:00,273562,15.27,TH0008,JKL SOLUTIONS LTD,05/01/2023 00:00,28/5/2023 00:00:00,P02-2024
,LEE VALLEY MARINA STANSTEAD,SUPPLIES AND SERVICES,OFFICE EXPENSES,4311,"P121626-SERVICE-stationery - label maker, AC, traff cones",23/5/2023 00:00:00,274167,198.63,TH0008,JKL SOLUTIONS LTD,05/01/2023 00:00,28/5/2023 00:00:00,P02-2024
,LEE VALLEY CAMPSITE,SUPPLIES AND SERVICES,OFFICE EXPENSES,4311,P121645-SERVICE-Stationery,05/09/2023 00:00,273668,42.71,TH0008,JKL SOLUTIONS LTD,05/01/2023 00:00,28/5/2023 00:00:00,P02-2024
P&V,OPERATIONAL MANAGEMENT (L&E),SUPPLIES AND SERVICES,OFFICE EXPENSES,4311,P121753-SERVICE-Lucca High Back Fabric Managers Chair - Charc,05/09/2023 00:00,273561,237.1,TH0008,JKL SOLUTIONS LTD,05/01/2023 00:00,28/5/2023 00:00:00,P02-2024
,LV LEISURE CENTRE CAMPSITE,SUPPLIES AND SERVICES,OFFICE EXPENSES,4311,P121778-SERVICE-STATIONERY,05/09/2023 00:00,273702,213.59,TH0008,JKL SOLUTIONS LTD,05/01/2023 00:00,28/5/2023 00:00:00,P02-2024
CEO,CHIEF EXECUTIVE,SUPPLIES AND SERVICES,SUBSCRIPTIONS,4334,P121528-SERVICE-CLOA Corporate Membership,05/09/2023 00:00,273653,480,CH0455,CHIEF CULTURAL & LEISURE OFFICERS ASSOCIATION,05/01/2023 00:00,28/5/2023 00:00:00,P02-2024
P&V,PROJECT & FUNDING DELIVERY,SUPPLIES AND SERVICES,SUBSCRIPTIONS,4334,P121854-SERVICE-APSE Energy Membership,05/09/2023 00:00,273787,2337,AP0492,APSE,05/01/2023 00:00,28/5/2023 00:00:00,P02-2024
,LEE VALLEY CAMPSITE,SUPPLIES AND SERVICES,SUBSCRIPTIONS,4334,P121998-SERVICE-Annual Subscription,24/5/2023 00:00:00,273377,83.33,AM0406,AMAZON PAYMENTS UK LIMITED,05/01/2023 00:00,28/5/2023 00:00:00,P02-2024
,LEE VALLEY CARAVAN PARK,SUPPLIES AND SERVICES,SUBSCRIPTIONS,4334,P121998-SERVICE-Annual Subscription,24/5/2023 00:00:00,273377,83.34,AM0406,AMAZON PAYMENTS UK LIMITED,05/01/2023 00:00,28/5/2023 00:00:00,P02-2024
,LV LEISURE CENTRE CAMPSITE,SUPPLIES AND SERVICES,SUBSCRIPTIONS,4334,P121998-SERVICE-Annual Membership,24/5/2023 00:00:00,273377,83.33,AM0406,AMAZON PAYMENTS UK LIMITED,05/01/2023 00:00,28/5/2023 00:00:00,P02-2024
P&V,MYDDELTON HOUSE,SUPPLIES AND SERVICES,POSTAGE & MAILING,4445,P121795-SERVICE-Weekday Day Collection,05/03/2023 00:00,273549,870,RO0022,ROYAL MAIL GROUP PLC,05/01/2023 00:00,28/5/2023 00:00:00,P02-2024
P&V,MYDDELTON HOUSE,SUPPLIES AND SERVICES,POSTAGE & MAILING,4445,Royal mail,16/5/2023 00:00:00,273956,1.24,PI0021,PITNEY BOWES PURCHASE POWER,05/01/2023 00:00,28/5/2023 00:00:00,P02-2024
R&B,INFORMATION TECHNOLOGY,SUPPLIES AND SERVICES,TELEPHONES (OFFICE),4481,TELEPHONE,23/5/2023 00:00:00,273941,1941.2,ID0002,DAISY COMMUNICATIONS LTD,05/01/2023 00:00,28/5/2023 00:00:00,P02-2024
R&B,INFORMATION TECHNOLOGY,SUPPLIES AND SERVICES,TELEPHONES (OFFICE),4481,Fibre Pro,23/5/2023 00:00:00,273950,38,ZE0007,ZEN INTERNET LTD,05/01/2023 00:00,28/5/2023 00:00:00,P02-2024
R&B,INFORMATION TECHNOLOGY,SUPPLIES AND SERVICES,TELEPHONES (OFFICE),4481,Services Charge,17/5/2023 00:00:00,274002,31.32,ZE0007,ZEN INTERNET LTD,05/01/2023 00:00,28/5/2023 00:00:00,P02-2024
R&B,INFORMATION TECHNOLOGY,SUPPLIES AND SERVICES,TELEPHONES (MOBILE),4484,Apr-23,15/5/2023 00:00:00,273936,6.9,GA0432,GAMMA TELECOM LTD,05/01/2023 00:00,28/5/2023 00:00:00,P02-2024
R&B,INFORMATION TECHNOLOGY,SUPPLIES AND SERVICES,TELEPHONES (MOBILE),4484,mobile phone-DW,23/5/2023 00:00:00,273999,-39.68,O20134,MY O2,05/01/2023 00:00,28/5/2023 00:00:00,P02-2024
P&V,ALMOST WILD CAMPSITE,SUPPLIES AND SERVICES,TELEPHONES (MOBILE),4484,MOBILE PHONE - MARCH 2023,24/5/2023 00:00:00,273939,-372.3,VO0010,VODAFONE  LIMITED (CORPORATE),05/01/2023 00:00,28/5/2023 00:00:00,P02-2024
P&V,EVENTS MANAGEMENT (PR),SUPPLIES AND SERVICES,TELEPHONES (MOBILE),4484,MOBILE PHONE - MARCH 2023,24/5/2023 00:00:00,273939,-372.3,VO0010,VODAFONE  LIMITED (CORPORATE),05/01/2023 00:00,28/5/2023 00:00:00,P02-2024
R&B,DEMOCRATIC REPRESENTATION & MA,SUPPLIES AND SERVICES,MEMBERS EXPENSES,4502,P121771-SERVICE-Catering on 27/04/23,05/09/2023 00:00,273655,600,SP0239,AMAZE IN TASTE LIMITED,05/01/2023 00:00,28/5/2023 00:00:00,P02-2024
R&B,DEMOCRATIC REPRESENTATION & MA,SUPPLIES AND SERVICES,MEMBERS VISITS,4503,"P121631-SERVICE-Catering on 19/04/23 for 25, Delivery to Dobb",05/09/2023 00:00,273789,248.75,SH0256,SHARRONS EVENT CATERING COMPANY LTD,05/01/2023 00:00,28/5/2023 00:00:00,P02-2024
,LEE VALLEY CAMPSITE,SUPPLIES AND SERVICES,MARKETING,4603,P121463-SERVICE-SC Inclusion enewsletter April 2023,15/5/2023 00:00:00,273723,48.75,WA0063,WARNERS GROUP PUBLICATIONS PLC,05/01/2023 00:00,28/5/2023 00:00:00,P02-2024
,LEE VALLEY CARAVAN PARK,SUPPLIES AND SERVICES,MARKETING,4603,P121463-SERVICE-DW Inclusion enewsletter April 2023,15/5/2023 00:00:00,273723,48.75,WA0063,WARNERS GROUP PUBLICATIONS PLC,05/01/2023 00:00,28/5/2023 00:00:00,P02-2024
,LEE VALLEY CARAVAN PARK,SUPPLIES AND SERVICES,MARKETING,4603,P121695-SERVICE-HH Owner Site Map,23/5/2023 00:00:00,273946,50,SI0024,SIGNS EXPRESS (HARLOW),05/01/2023 00:00,28/5/2023 00:00:00,P02-2024
,LEE VALLEY CARAVAN PARK,SUPPLIES AND SERVICES,MARKETING,4603,P121713-SERVICE-No Double Parking/ or on Grass/Tailgating,23/5/2023 00:00:00,274144,400,SL0528,SLAM SIGNS LTD,05/01/2023 00:00,28/5/2023 00:00:00,P02-2024
P&V,ALMOST WILD CAMPSITE,SUPPLIES AND SERVICES,MARKETING,4603,P121463-SERVICE-AWC Inclusion enewsletter April 2023,15/5/2023 00:00:00,273723,48.75,WA0063,WARNERS GROUP PUBLICATIONS PLC,05/01/2023 00:00,28/5/2023 00:00:00,P02-2024
P&V,EVENTS MANAGEMENT (PR),SUPPLIES AND SERVICES,MARKETING,4603,P121806-SERVICE-2 x vinyl banners for the Showground,23/5/2023 00:00:00,274173,114.84,MA0167,MARTIN DANNELL & CO LTD,05/01/2023 00:00,28/5/2023 00:00:00,P02-2024
,LV LEISURE CENTRE CAMPSITE,SUPPLIES AND SERVICES,MARKETING,4603,P121766-SERVICE-Accomodation stickers,05/09/2023 00:00,273704,330,SL0528,SLAM SIGNS LTD,05/01/2023 00:00,28/5/2023 00:00:00,P02-2024
,LV LEISURE CENTRE CAMPSITE,SUPPLIES AND SERVICES,MARKETING,4603,P121463-SERVICE-EC Inclusion enewsletter April 2023,15/5/2023 00:00:00,273723,48.75,WA0063,WARNERS GROUP PUBLICATIONS PLC,05/01/2023 00:00,28/5/2023 00:00:00,P02-2024
,LEE VALLEY WATERWORKS CENTRE,SUPPLIES AND SERVICES,PEST CONTROL,4625,P122061-SERVICE-Pest Control - WaterWorks - Apr to Jun,28/5/2023 00:00:00,273737,165,VE0006,VERMINATE CITY & RURAL PEST CONTROL LTD,05/01/2023 00:00,28/5/2023 00:00:00,P02-2024
P&V,NORTH AREA RANGERS,SUPPLIES AND SERVICES,PEST CONTROL,4625,P122082-SERVICE-Pest Control - North Sites - Apr,28/5/2023 00:00:00,273732,73.33,VE0006,VERMINATE CITY & RURAL PEST CONTROL LTD,05/01/2023 00:00,28/5/2023 00:00:00,P02-2024
P&V,NORTH AREA RANGERS,SUPPLIES AND SERVICES,PEST CONTROL,4625,P122060-SERVICE-Pest Control - Ware Town Centre - Apr,28/5/2023 00:00:00,273733,70,VE0006,VERMINATE CITY & RURAL PEST CONTROL LTD,05/01/2023 00:00,28/5/2023 00:00:00,P02-2024
P&V,SOUTH AREA RANGERS,SUPPLIES AND SERVICES,PEST CONTROL,4625,P122058-SERVICE-Pest Control - Tottenham Marshes - April,28/5/2023 00:00:00,273735,70,VE0006,VERMINATE CITY & RURAL PEST CONTROL LTD,05/01/2023 00:00,28/5/2023 00:00:00,P02-2024
P&V,ABBEY GARDENS,SUPPLIES AND SERVICES,PEST CONTROL,4625,P122082-SERVICE-Pest Control - North Sites - Apr,28/5/2023 00:00:00,273732,36.67,VE0006,VERMINATE CITY & RURAL PEST CONTROL LTD,05/01/2023 00:00,28/5/2023 00:00:00,P02-2024
P&V,RIVER LEE COUNTRY PARK,SUPPLIES AND SERVICES,PEST CONTROL,4625,P122082-SERVICE-Pest Control - North Sites - Apr,28/5/2023 00:00:00,273732,73.33,VE0006,VERMINATE CITY & RURAL PEST CONTROL LTD,05/01/2023 00:00,28/5/2023 00:00:00,P02-2024
P&V,FORMER LV LIDO SITE,SUPPLIES AND SERVICES,PEST CONTROL,4625,P122082-SERVICE-Pest Control - North Sites - Apr,28/5/2023 00:00:00,273732,36.67,VE0006,VERMINATE CITY & RURAL PEST CONTROL LTD,05/01/2023 00:00,28/5/2023 00:00:00,P02-2024
,LEE VALLEY MARINA SPRINGFIELD,SUPPLIES AND SERVICES,MERCHANT PROCESSING CHARGES,4641,MAY,05/09/2023 00:00,273554,30,WO0338,WORLDPAY,05/01/2023 00:00,28/5/2023 00:00:00,P02-2024
,LEE VALLEY MARINA STANSTEAD,SUPPLIES AND SERVICES,MERCHANT PROCESSING CHARGES,4641,MAY,05/09/2023 00:00,273554,30,WO0338,WORLDPAY,05/01/2023 00:00,28/5/2023 00:00:00,P02-2024
,LEE VALLEY MARINA STANSTEAD,SUPPLIES AND SERVICES,CASH COLLECTIONS,4642,P122028-SERVICE-Cash colection Stanstead marina,23/5/2023 00:00:00,274114,12.43,SE0692,SECURITY PLUS LTD,05/01/2023 00:00,28/5/2023 00:00:00,P02-2024
R&B,FINANCE & RESOURCES MANAGEMENT,SUPPLIES AND SERVICES,DEBT RECOVERY FEES,4646,Debt recovery fee,23/5/2023 00:00:00,274035,205,LE0069,LEGAL RECOVERIES AND COLLECTIONS LIMITED,05/01/2023 00:00,28/5/2023 00:00:00,P02-2024
R&B,FINANCE & RESOURCES MANAGEMENT,SUPPLIES AND SERVICES,DEBT RECOVERY FEES,4646,Debt recovery fee,23/5/2023 00:00:00,274035,147.9,LE0069,LEGAL RECOVERIES AND COLLECTIONS LIMITED,05/01/2023 00:00,28/5/2023 00:00:00,P02-2024
R&B,FINANCE & RESOURCES MANAGEMENT,SUPPLIES AND SERVICES,DEBT RECOVERY FEES,4646,Debt recovery fee,23/5/2023 00:00:00,274035,-352.9,LE0069,LEGAL RECOVERIES AND COLLECTIONS LIMITED,05/01/2023 00:00,28/5/2023 00:00:00,P02-2024
R&B,FINANCE & RESOURCES MANAGEMENT,SUPPLIES AND SERVICES,DEBT RECOVERY FEES,4646,P121343-SERVICE-DEBT RECOVERY FEES 2023/2024,23/5/2023 00:00:00,274035,352.9,LE0069,LEGAL RECOVERIES AND COLLECTIONS LIMITED,05/01/2023 00:00,28/5/2023 00:00:00,P02-2024
P&V,MYDDELTON HOUSE,SUPPLIES AND SERVICES,SECURITY,4650,P121980-SERVICE-Emergency Visit to Re-Set Main House Door Cod,23/5/2023 00:00:00,274169,195,DE0013,DENNIS SECURITY CENTRE,05/01/2023 00:00,28/5/2023 00:00:00,P02-2024
,LEE VALLEY MARINA STANSTEAD,SUPPLIES AND SERVICES,SECURITY,4650,P122032-SERVICE-new barrier arm (Les Bicker),24/5/2023 00:00:00,273997,430.28,AI0262,AIS ( ADVANCED INTEGRATED SECURITY),05/01/2023 00:00,28/5/2023 00:00:00,P02-2024
,LEE VALLEY MARINA STANSTEAD,SUPPLIES AND SERVICES,SECURITY,4650,P121742-SERVICE-3xboxes of paxton sec fobs,23/5/2023 00:00:00,273998,106,AI0262,AIS ( ADVANCED INTEGRATED SECURITY),05/01/2023 00:00,28/5/2023 00:00:00,P02-2024
,LEE VALLEY MARINA STANSTEAD,SUPPLIES AND SERVICES,SECURITY,4650,P121953-SERVICE-caravan gate keys,23/5/2023 00:00:00,274034,93.75,DE0013,DENNIS SECURITY CENTRE,05/01/2023 00:00,28/5/2023 00:00:00,P02-2024
P&V,SOUTH AREA RANGERS,SUPPLIES AND SERVICES,SECURITY,4650,P121957-SERVICE-Additional Security at Coppermill,23/5/2023 00:00:00,274029,1596,PA0059,PARKGUARD LTD,05/01/2023 00:00,28/5/2023 00:00:00,P02-2024
,LV LEISURE CENTRE GOLF COURSE,SUPPLIES AND SERVICES,SECURITY,4650,P121913-SERVICE-Ground Yard Call Out and security Repair,16/5/2023 00:00:00,272905,435.44,BA0005,BARNET LOCK  & SECURITY LTD,05/01/2023 00:00,28/5/2023 00:00:00,P02-2024
CEO,LVLC SERVICE CHARGE,SUPPLIES AND SERVICES,SECURITY,4650,P121725-SERVICE-March Security,05/03/2023 00:00,272907,2972.28,SA0626,SAFE SITE SECURITY SOLUTIONS LTD,05/01/2023 00:00,28/5/2023 00:00:00,P02-2024
CEO,LVLC SERVICE CHARGE,SUPPLIES AND SERVICES,SECURITY,4650,P119848-SERVICE-1 Hour Parkguard Patrol at Picketts Lock Adde,05/10/2023 00:00,272909,1025.62,PA0059,PARKGUARD LTD,05/01/2023 00:00,28/5/2023 00:00:00,P02-2024
CEO,LVLC SERVICE CHARGE,SUPPLIES AND SERVICES,SECURITY,4650,P121724-SERVICE-LVAC - Security Around Traveller Encampment 1,05/10/2023 00:00,273654,920,PA0059,PARKGUARD LTD,05/01/2023 00:00,28/5/2023 00:00:00,P02-2024
CEO,LVLC SERVICE CHARGE,SUPPLIES AND SERVICES,SECURITY,4650,P121891-SERVICE-Security,15/5/2023 00:00:00,273671,1731.96,SA0626,SAFE SITE SECURITY SOLUTIONS LTD,05/01/2023 00:00,28/5/2023 00:00:00,P02-2024
CEO,LVLC SERVICE CHARGE,SUPPLIES AND SERVICES,SECURITY,4650,P121975-SERVICE-Security,23/5/2023 00:00:00,273920,1133.72,PA0059,PARKGUARD LTD,05/01/2023 00:00,28/5/2023 00:00:00,P02-2024
CEO,PR/COMMUNICATIONS,SUPPLIES AND SERVICES,MEDIA MONITORING,4660,P121852-SERVICE-Public Administration Licence Professional Em,16/5/2023 00:00:00,273952,751.18,CO0474,THE COPYRIGHT LICENSING AGENCY LIMITED,05/01/2023 00:00,28/5/2023 00:00:00,P02-2024
CEO,PR/COMMUNICATIONS,SUPPLIES AND SERVICES,TOURIST BOARDS MEMBERSHIP,4662,P121779-SERVICE-Visit Essex membership - Gold package,23/5/2023 00:00:00,274023,1178,ES0268,ESSEX COUNTY COUNCIL,05/01/2023 00:00,28/5/2023 00:00:00,P02-2024
CEO,PR/COMMUNICATIONS,SUPPLIES AND SERVICES,PHOTOGRAPHY,4665,"P121868-SERVICE-Lee Valley Ice Centre images - interior, exte",23/5/2023 00:00:00,274022,450,ST0679,STEVE BAINBRIDGE PHOTOGRAPHY LIMITED,05/01/2023 00:00,28/5/2023 00:00:00,P02-2024
R&B,PERFORMANCE MANAGEMENT,SUPPLIES AND SERVICES,OFFSITE ARCHIVED STORAGE,4667,P121916-SERVICE-Offsite archive April 2023,28/5/2023 00:00:00,273791,359.94,DA0154,RESTORE PLC,05/01/2023 00:00,28/5/2023 00:00:00,P02-2024
CEO,LEGAL SERVICES,SUPPLIES AND SERVICES,OFFSITE ARCHIVED STORAGE,4667,P121915-SERVICE-Confidential Shredding,28/5/2023 00:00:00,273666,60,CS0287,CURTIS SECURITY SHREDDING LTD,05/01/2023 00:00,28/5/2023 00:00:00,P02-2024
,LEE VALLEY ATHLETICS CENTRE,SUPPLIES AND SERVICES,ENTERTAINMENT & OTHER LICENCES,4711,LICENCE FEE 04/0721-03/07/24,28/5/2023 00:00:00,274340,1050,EN0120,LONDON BOROUGH OF ENFIELD,05/01/2023 00:00,28/5/2023 00:00:00,P02-2024
P&V,LEE VALLEY FARM HOLYFIELDHALL,THIRD PARTY PAYMENTS,VETERINARY SERVICES,4718,P121909-SERVICE-Vets,15/5/2023 00:00:00,273812,317.13,HA0443,HAMPDEN VETERINARY HOSPITAL,05/01/2023 00:00,28/5/2023 00:00:00,P02-2024
P&V,YOUTH AND SCHOOLS,SUPPLIES AND SERVICES,ACTIVITIES (SCHOOLS),4725,P122026-SERVICE-Hire of Chapan and Walters Rooms and Tallis R,23/5/2023 00:00:00,274202,1711.08,WA0108,WALTHAM ABBEY PAROCHIAL CHURCH COUNCIL,05/01/2023 00:00,28/5/2023 00:00:00,P02-2024
P&V,YOUTH AND SCHOOLS,SUPPLIES AND SERVICES,ACTIVITIES (SCHOOLS),4725,P122025-SERVICE-Rental of internal store cupboard 1/4/23 - 31,23/5/2023 00:00:00,274203,2000,WA0108,WALTHAM ABBEY PAROCHIAL CHURCH COUNCIL,05/01/2023 00:00,28/5/2023 00:00:00,P02-2024
P&V,MYDDLETON HSE HERITAGE CENTRE,SUPPLIES AND SERVICES,NET CATERING PURCHASES,4777,P121717-SERVICE-Food & Drink order  week comm24/04/2023,05/10/2023 00:00,273121,142.03,360001,BIDFOOD,05/01/2023 00:00,28/5/2023 00:00:00,P02-2024
P&V,MYDDLETON HSE HERITAGE CENTRE,SUPPLIES AND SERVICES,NET CATERING PURCHASES,4777,BIDFOOD,05/10/2023 00:00,273158,-578.43,360001,BIDFOOD,05/01/2023 00:00,28/5/2023 00:00:00,P02-2024
P&V,MYDDLETON HSE HERITAGE CENTRE,SUPPLIES AND SERVICES,NET CATERING PURCHASES,4777,P121717-SERVICE-Food & Drink order  week comm24/04/2023,05/10/2023 00:00,273158,578.43,360001,BIDFOOD,05/01/2023 00:00,28/5/2023 00:00:00,P02-2024
P&V,MYDDLETON HSE HERITAGE CENTRE,SUPPLIES AND SERVICES,NET CATERING PURCHASES,4777,BIDFOOD,05/10/2023 00:00,273158,291,360001,BIDFOOD,05/01/2023 00:00,28/5/2023 00:00:00,P02-2024
P&V,MYDDLETON HSE HERITAGE CENTRE,SUPPLIES AND SERVICES,NET CATERING PURCHASES,4777,BIDFOOD,05/10/2023 00:00,273158,287.43,360001,BIDFOOD,05/01/2023 00:00,28/5/2023 00:00:00,P02-2024
P&V,MYDDLETON HSE HERITAGE CENTRE,SUPPLIES AND SERVICES,NET CATERING PURCHASES,4777,P121532-SERVICE-FOOD/DRINKS 07/04/2023,05/10/2023 00:00,273159,-46.63,360001,BIDFOOD,05/01/2023 00:00,28/5/2023 00:00:00,P02-2024
P&V,MYDDLETON HSE HERITAGE CENTRE,SUPPLIES AND SERVICES,NET CATERING PURCHASES,4777,P121532-SERVICE-FOOD/DRINKS 07/04/2023,05/10/2023 00:00,273430,66.65,360001,BIDFOOD,05/01/2023 00:00,28/5/2023 00:00:00,P02-2024
P&V,MYDDLETON HSE HERITAGE CENTRE,SUPPLIES AND SERVICES,NET CATERING PURCHASES,4777,P121717-SERVICE-Food & Drink order  week comm24/04/2023,05/10/2023 00:00,273430,279.54,360001,BIDFOOD,05/01/2023 00:00,28/5/2023 00:00:00,P02-2024
P&V,MYDDLETON HSE HERITAGE CENTRE,SUPPLIES AND SERVICES,NET CATERING PURCHASES,4777,P121782-SERVICE-Food & Drink order week com 01 May 2023,05/10/2023 00:00,273430,576.44,360001,BIDFOOD,05/01/2023 00:00,28/5/2023 00:00:00,P02-2024
P&V,MYDDLETON HSE HERITAGE CENTRE,SUPPLIES AND SERVICES,NET CATERING PURCHASES,4777,BIDFOOD,05/10/2023 00:00,273430,400.3,360001,BIDFOOD,05/01/2023 00:00,28/5/2023 00:00:00,P02-2024
P&V,MYDDLETON HSE HERITAGE CENTRE,SUPPLIES AND SERVICES,NET CATERING PURCHASES,4777,BIDFOOD,05/10/2023 00:00,273430,176.14,360001,BIDFOOD,05/01/2023 00:00,28/5/2023 00:00:00,P02-2024
P&V,MYDDLETON HSE HERITAGE CENTRE,SUPPLIES AND SERVICES,NET CATERING PURCHASES,4777,BIDFOOD,05/10/2023 00:00,273430,-576.44,360001,BIDFOOD,05/01/2023 00:00,28/5/2023 00:00:00,P02-2024
P&V,MYDDLETON HSE HERITAGE CENTRE,SUPPLIES AND SERVICES,NET CATERING PURCHASES,4777,P121782-SERVICE-Food & Drink order week com 01 May 2023,05/10/2023 00:00,273665,292.06,360001,BIDFOOD,05/01/2023 00:00,28/5/2023 00:00:00,P02-2024
P&V,MYDDLETON HSE HERITAGE CENTRE,SUPPLIES AND SERVICES,NET CATERING PURCHASES,4777,BIDFOOD,05/10/2023 00:00,273665,161.58,360001,BIDFOOD,05/01/2023 00:00,28/5/2023 00:00:00,P02-2024
P&V,MYDDLETON HSE HERITAGE CENTRE,SUPPLIES AND SERVICES,NET CATERING PURCHASES,4777,BIDFOOD,05/10/2023 00:00,273665,-292.06,360001,BIDFOOD,05/01/2023 00:00,28/5/2023 00:00:00,P02-2024
P&V,MYDDLETON HSE HERITAGE CENTRE,SUPPLIES AND SERVICES,NET CATERING PURCHASES,4777,BIDFOOD,05/10/2023 00:00,273665,130.48,360001,BIDFOOD,05/01/2023 00:00,28/5/2023 00:00:00,P02-2024
P&V,MYDDLETON HSE HERITAGE CENTRE,SUPPLIES AND SERVICES,NET CATERING PURCHASES,4777,Food & Drink order week com 01 May 2023,05/10/2023 00:00,273698,600.93,360001,BIDFOOD,05/01/2023 00:00,28/5/2023 00:00:00,P02-2024
P&V,MYDDLETON HSE HERITAGE CENTRE,SUPPLIES AND SERVICES,NET CATERING PURCHASES,4777,P121782-SERVICE-Food & Drink order week com 01 May 2023,05/10/2023 00:00,273698,131.5,360001,BIDFOOD,05/01/2023 00:00,28/5/2023 00:00:00,P02-2024
P&V,MYDDLETON HSE HERITAGE CENTRE,SUPPLIES AND SERVICES,NET CATERING PURCHASES,4777,Food & Drink order week com 01 May 2023,05/10/2023 00:00,273698,-947.5,360001,BIDFOOD,05/01/2023 00:00,28/5/2023 00:00:00,P02-2024
P&V,MYDDLETON HSE HERITAGE CENTRE,SUPPLIES AND SERVICES,NET CATERING PURCHASES,4777,Food & Drink order week com 01 May 2023,05/10/2023 00:00,273698,346.57,360001,BIDFOOD,05/01/2023 00:00,28/5/2023 00:00:00,P02-2024
P&V,MYDDLETON HSE HERITAGE CENTRE,SUPPLIES AND SERVICES,NET CATERING PURCHASES,4777,P121830-SERVICE-Food & Drink order 04 May 2023,05/10/2023 00:00,273698,947.5,360001,BIDFOOD,05/01/2023 00:00,28/5/2023 00:00:00,P02-2024
P&V,MYDDLETON HSE HERITAGE CENTRE,SUPPLIES AND SERVICES,NET CATERING PURCHASES,4777,P121478-SERVICE-coffee/tea order april 23,05/10/2023 00:00,273728,268.95,TU0194,TUDOR TEA & COFFEE,05/01/2023 00:00,28/5/2023 00:00:00,P02-2024
P&V,MYDDLETON HSE HERITAGE CENTRE,SUPPLIES AND SERVICES,NET CATERING PURCHASES,4777,Food & Drink order 04 May 2023,05/10/2023 00:00,273747,268.67,360001,BIDFOOD,05/01/2023 00:00,28/5/2023 00:00:00,P02-2024
P&V,MYDDLETON HSE HERITAGE CENTRE,SUPPLIES AND SERVICES,NET CATERING PURCHASES,4777,P121898-SERVICE-food/drinks order may 23,05/10/2023 00:00,273747,327.69,360001,BIDFOOD,05/01/2023 00:00,28/5/2023 00:00:00,P02-2024
P&V,MYDDLETON HSE HERITAGE CENTRE,SUPPLIES AND SERVICES,NET CATERING PURCHASES,4777,P121830-SERVICE-Food & Drink order 04 May 2023,05/10/2023 00:00,273747,52.5,360001,BIDFOOD,05/01/2023 00:00,28/5/2023 00:00:00,P02-2024
P&V,MYDDLETON HSE HERITAGE CENTRE,SUPPLIES AND SERVICES,NET CATERING PURCHASES,4777,Food & Drink order 04 May 2023,05/10/2023 00:00,273747,-327.69,360001,BIDFOOD,05/01/2023 00:00,28/5/2023 00:00:00,P02-2024
P&V,MYDDLETON HSE HERITAGE CENTRE,SUPPLIES AND SERVICES,NET CATERING PURCHASES,4777,Food & Drink order 04 May 2023,05/10/2023 00:00,273747,59.02,360001,BIDFOOD,05/01/2023 00:00,28/5/2023 00:00:00,P02-2024
P&V,MYDDLETON HSE HERITAGE CENTRE,SUPPLIES AND SERVICES,NET CATERING PURCHASES,4777,P121782-SERVICE-Food & Drink order week com 01 May 2023,05/10/2023 00:00,273747,42.64,360001,BIDFOOD,05/01/2023 00:00,28/5/2023 00:00:00,P02-2024
P&V,MYDDLETON HSE HERITAGE CENTRE,SUPPLIES AND SERVICES,NET CATERING PURCHASES,4777,P121782-SERVICE-Food & Drink order week com 01 May 2023,05/10/2023 00:00,273765,-42.64,360001,BIDFOOD,05/01/2023 00:00,28/5/2023 00:00:00,P02-2024
P&V,MYDDLETON HSE HERITAGE CENTRE,SUPPLIES AND SERVICES,NET CATERING PURCHASES,4777,P121898-SERVICE-food/drinks order may 23,15/5/2023 00:00:00,273902,72.31,360001,BIDFOOD,05/01/2023 00:00,28/5/2023 00:00:00,P02-2024
P&V,MYDDLETON HSE HERITAGE CENTRE,SUPPLIES AND SERVICES,NET CATERING PURCHASES,4777,P121882-SERVICE-Food/Drink order wk 09.05.2023,15/5/2023 00:00:00,273902,478.45,360001,BIDFOOD,05/01/2023 00:00,28/5/2023 00:00:00,P02-2024
P&V,MYDDLETON HSE HERITAGE CENTRE,SUPPLIES AND SERVICES,NET CATERING PURCHASES,4777,Food/drinks- BTR,15/5/2023 00:00:00,273902,-478.45,360001,BIDFOOD,05/01/2023 00:00,28/5/2023 00:00:00,P02-2024
P&V,MYDDLETON HSE HERITAGE CENTRE,SUPPLIES AND SERVICES,NET CATERING PURCHASES,4777,Food/drinks- BTR,15/5/2023 00:00:00,273902,127.31,360001,BIDFOOD,05/01/2023 00:00,28/5/2023 00:00:00,P02-2024
P&V,MYDDLETON HSE HERITAGE CENTRE,SUPPLIES AND SERVICES,NET CATERING PURCHASES,4777,Food/drinks- BTR,15/5/2023 00:00:00,273902,351.14,360001,BIDFOOD,05/01/2023 00:00,28/5/2023 00:00:00,P02-2024
P&V,MYDDLETON HSE HERITAGE CENTRE,SUPPLIES AND SERVICES,NET CATERING PURCHASES,4777,P121882-SERVICE-Food/Drink order wk 09.05.2023,24/5/2023 00:00:00,273944,521.55,360001,BIDFOOD,05/01/2023 00:00,28/5/2023 00:00:00,P02-2024
P&V,MYDDLETON HSE HERITAGE CENTRE,SUPPLIES AND SERVICES,NET CATERING PURCHASES,4777,food/drinks-BTR,24/5/2023 00:00:00,273944,-521.55,360001,BIDFOOD,05/01/2023 00:00,28/5/2023 00:00:00,P02-2024
P&V,MYDDLETON HSE HERITAGE CENTRE,SUPPLIES AND SERVICES,NET CATERING PURCHASES,4777,food/drinks-BTR,24/5/2023 00:00:00,273944,519.77,360001,BIDFOOD,05/01/2023 00:00,28/5/2023 00:00:00,P02-2024
P&V,MYDDLETON HSE HERITAGE CENTRE,SUPPLIES AND SERVICES,NET CATERING PURCHASES,4777,food/drinks-BTR,24/5/2023 00:00:00,273944,1.78,360001,BIDFOOD,05/01/2023 00:00,28/5/2023 00:00:00,P02-2024
P&V,MYDDLETON HSE HERITAGE CENTRE,SUPPLIES AND SERVICES,NET CATERING PURCHASES,4777,P121993-SERVICE-Food/Drink order week com 15 May 2023,24/5/2023 00:00:00,273944,49.38,360001,BIDFOOD,05/01/2023 00:00,28/5/2023 00:00:00,P02-2024
P&V,MYDDLETON HSE HERITAGE CENTRE,SUPPLIES AND SERVICES,NET CATERING PURCHASES,4777,food/drinks - BTR,24/5/2023 00:00:00,274026,249.46,360001,BIDFOOD,05/01/2023 00:00,28/5/2023 00:00:00,P02-2024
P&V,MYDDLETON HSE HERITAGE CENTRE,SUPPLIES AND SERVICES,NET CATERING PURCHASES,4777,P121993-SERVICE-Food/Drink order week com 15 May 2023,24/5/2023 00:00:00,274026,324.96,360001,BIDFOOD,05/01/2023 00:00,28/5/2023 00:00:00,P02-2024
P&V,MYDDLETON HSE HERITAGE CENTRE,SUPPLIES AND SERVICES,NET CATERING PURCHASES,4777,food/drinks - BTR,24/5/2023 00:00:00,274026,-324.96,360001,BIDFOOD,05/01/2023 00:00,28/5/2023 00:00:00,P02-2024
P&V,MYDDLETON HSE HERITAGE CENTRE,SUPPLIES AND SERVICES,NET CATERING PURCHASES,4777,food/drinks - BTR,24/5/2023 00:00:00,274026,75.5,360001,BIDFOOD,05/01/2023 00:00,28/5/2023 00:00:00,P02-2024
P&V,MYDDLETON HSE HERITAGE CENTRE,SUPPLIES AND SERVICES,NET CATERING PURCHASES,4777,BIDFOOD,24/5/2023 00:00:00,274165,381.65,360001,BIDFOOD,05/01/2023 00:00,28/5/2023 00:00:00,P02-2024
P&V,MYDDLETON HSE HERITAGE CENTRE,SUPPLIES AND SERVICES,NET CATERING PURCHASES,4777,BIDFOOD,24/5/2023 00:00:00,274165,93.22,360001,BIDFOOD,05/01/2023 00:00,28/5/2023 00:00:00,P02-2024
P&V,MYDDLETON HSE HERITAGE CENTRE,SUPPLIES AND SERVICES,NET CATERING PURCHASES,4777,P121993-SERVICE-Food/Drink order week com 15 May 2023,24/5/2023 00:00:00,274165,474.87,360001,BIDFOOD,05/01/2023 00:00,28/5/2023 00:00:00,P02-2024
P&V,MYDDLETON HSE HERITAGE CENTRE,SUPPLIES AND SERVICES,NET CATERING PURCHASES,4777,BIDFOOD,24/5/2023 00:00:00,274165,-474.87,360001,BIDFOOD,05/01/2023 00:00,28/5/2023 00:00:00,P02-2024
P&V,MYDDLETON HSE HERITAGE CENTRE,SUPPLIES AND SERVICES,NET CATERING PURCHASES,4777,P122015-SERVICE-Disposables week com 22/05/2023,28/5/2023 00:00:00,274204,83.19,CA0585,CAFE CONNECTIONS,05/01/2023 00:00,28/5/2023 00:00:00,P02-2024
P&V,MYDDLETON HSE HERITAGE CENTRE,SUPPLIES AND SERVICES,NET CATERING PURCHASES,4777,P122044-SERVICE-Food & Drink order wk com 22 May 2023,24/5/2023 00:00:00,274216,311.4,360001,BIDFOOD,05/01/2023 00:00,28/5/2023 00:00:00,P02-2024
P&V,MYDDLETON HSE HERITAGE CENTRE,SUPPLIES AND SERVICES,NET CATERING PURCHASES,4777,BTR-food/drinks,24/5/2023 00:00:00,274216,157.1,360001,BIDFOOD,05/01/2023 00:00,28/5/2023 00:00:00,P02-2024
P&V,MYDDLETON HSE HERITAGE CENTRE,SUPPLIES AND SERVICES,NET CATERING PURCHASES,4777,P121993-SERVICE-Food/Drink order week com 15 May 2023,24/5/2023 00:00:00,274216,150.79,360001,BIDFOOD,05/01/2023 00:00,28/5/2023 00:00:00,P02-2024
P&V,MYDDLETON HSE HERITAGE CENTRE,SUPPLIES AND SERVICES,NET CATERING PURCHASES,4777,BTR-food/drinks,24/5/2023 00:00:00,274216,154.3,360001,BIDFOOD,05/01/2023 00:00,28/5/2023 00:00:00,P02-2024
P&V,MYDDLETON HSE HERITAGE CENTRE,SUPPLIES AND SERVICES,NET CATERING PURCHASES,4777,BTR-food/drinks,24/5/2023 00:00:00,274216,-311.4,360001,BIDFOOD,05/01/2023 00:00,28/5/2023 00:00:00,P02-2024
P&V,MYDDLETON HSE HERITAGE CENTRE,SUPPLIES AND SERVICES,NET GIFT SHOP PURCHASES,4779,P121716-SERVICE-40 copies of 'The Crocus King',05/09/2023 00:00,273570,259.6,RO0028,THE ROCKINGHAM PRESS,05/01/2023 00:00,28/5/2023 00:00:00,P02-2024
,LEE VALLEY MARINA SPRINGFIELD,SUPPLIES AND SERVICES,TRADING AC - EXTERNAL PURCHASE,4875,P121680-SERVICE-Chandlery Stock - various,05/09/2023 00:00,273636,25.4,MI0200,MIDLAND CHANDLERS LIMITED,05/01/2023 00:00,28/5/2023 00:00:00,P02-2024
,LEE VALLEY MARINA SPRINGFIELD,SUPPLIES AND SERVICES,TRADING AC - EXTERNAL PURCHASE,4875,P121754-SERVICE-Leisure batteries,05/09/2023 00:00,273705,841.68,EC0394,MANBAT LTD T/AS,05/01/2023 00:00,28/5/2023 00:00:00,P02-2024
,LEE VALLEY MARINA SPRINGFIELD,SUPPLIES AND SERVICES,TRADING AC - EXTERNAL PURCHASE,4875,P121829-SERVICE-Delivery charge,05/09/2023 00:00,273717,1.21,AQ0033,AQUAFAX LIMITED,05/01/2023 00:00,28/5/2023 00:00:00,P02-2024
,LEE VALLEY MARINA SPRINGFIELD,SUPPLIES AND SERVICES,TRADING AC - EXTERNAL PURCHASE,4875,P121829-SERVICE-Battery charger for customer,05/09/2023 00:00,273717,88,AQ0033,AQUAFAX LIMITED,05/01/2023 00:00,28/5/2023 00:00:00,P02-2024
,LEE VALLEY MARINA SPRINGFIELD,SUPPLIES AND SERVICES,TRADING AC - EXTERNAL PURCHASE,4875,P121785-SERVICE-Chandlery Stock various,15/5/2023 00:00:00,273719,701.27,MI0200,MIDLAND CHANDLERS LIMITED,05/01/2023 00:00,28/5/2023 00:00:00,P02-2024
,LEE VALLEY MARINA SPRINGFIELD,SUPPLIES AND SERVICES,TRADING AC - EXTERNAL PURCHASE,4875,Gas and kindling,05/09/2023 00:00,273729,320,SM0664,KG SMITH & SON,05/01/2023 00:00,28/5/2023 00:00:00,P02-2024
,LEE VALLEY MARINA SPRINGFIELD,SUPPLIES AND SERVICES,TRADING AC - EXTERNAL PURCHASE,4875,P121485-SERVICE-Gas bottles,05/09/2023 00:00,273729,167.75,SM0664,KG SMITH & SON,05/01/2023 00:00,28/5/2023 00:00:00,P02-2024
,LEE VALLEY MARINA SPRINGFIELD,SUPPLIES AND SERVICES,TRADING AC - EXTERNAL PURCHASE,4875,Gas and kindling,05/09/2023 00:00,273729,1328.5,SM0664,KG SMITH & SON,05/01/2023 00:00,28/5/2023 00:00:00,P02-2024
,LEE VALLEY MARINA SPRINGFIELD,SUPPLIES AND SERVICES,TRADING AC - EXTERNAL PURCHASE,4875,P121485-SERVICE-Gas and kindling,05/09/2023 00:00,273729,1648.5,SM0664,KG SMITH & SON,05/01/2023 00:00,28/5/2023 00:00:00,P02-2024
,LEE VALLEY MARINA SPRINGFIELD,SUPPLIES AND SERVICES,TRADING AC - EXTERNAL PURCHASE,4875,Gas and kindling,05/09/2023 00:00,273729,-1648.5,SM0664,KG SMITH & SON,05/01/2023 00:00,28/5/2023 00:00:00,P02-2024
,LEE VALLEY MARINA SPRINGFIELD,SUPPLIES AND SERVICES,TRADING AC - EXTERNAL PURCHASE,4875,P121835-SERVICE-Chandlery Stock,05/09/2023 00:00,273780,158.62,AQ0033,AQUAFAX LIMITED,05/01/2023 00:00,28/5/2023 00:00:00,P02-2024
,LEE VALLEY MARINA SPRINGFIELD,SUPPLIES AND SERVICES,TRADING AC - EXTERNAL PURCHASE,4875,P121904-SERVICE-to supply items as on quotation 1928832751,05/10/2023 00:00,273900,2379.83,AS0304,KLOECKNER METALS UK (formerly ASD METAL SERV),05/01/2023 00:00,28/5/2023 00:00:00,P02-2024
,LEE VALLEY MARINA SPRINGFIELD,SUPPLIES AND SERVICES,TRADING AC - EXTERNAL PURCHASE,4875,P121879-SERVICE-Anodes,15/5/2023 00:00:00,273930,2479.4,MI0200,MIDLAND CHANDLERS LIMITED,05/01/2023 00:00,28/5/2023 00:00:00,P02-2024
,LEE VALLEY MARINA SPRINGFIELD,SUPPLIES AND SERVICES,TRADING AC - EXTERNAL PURCHASE,4875,P121910-SERVICE-Craftmaster paint for customer,15/5/2023 00:00:00,273933,42.37,CR0651,CRAFTMASTER PAINTS,05/01/2023 00:00,28/5/2023 00:00:00,P02-2024
,LEE VALLEY MARINA SPRINGFIELD,SUPPLIES AND SERVICES,TRADING AC - EXTERNAL PURCHASE,4875,Chandlery stock,23/5/2023 00:00:00,273977,-577.94,MI0200,MIDLAND CHANDLERS LIMITED,05/01/2023 00:00,28/5/2023 00:00:00,P02-2024
,LEE VALLEY MARINA SPRINGFIELD,SUPPLIES AND SERVICES,TRADING AC - EXTERNAL PURCHASE,4875,Chandlery stock,23/5/2023 00:00:00,273977,6.45,MI0200,MIDLAND CHANDLERS LIMITED,05/01/2023 00:00,28/5/2023 00:00:00,P02-2024
,LEE VALLEY MARINA SPRINGFIELD,SUPPLIES AND SERVICES,TRADING AC - EXTERNAL PURCHASE,4875,Chandlery stock,23/5/2023 00:00:00,273977,571.49,MI0200,MIDLAND CHANDLERS LIMITED,05/01/2023 00:00,28/5/2023 00:00:00,P02-2024
,LEE VALLEY MARINA SPRINGFIELD,SUPPLIES AND SERVICES,TRADING AC - EXTERNAL PURCHASE,4875,P121923-SERVICE-Chandlery Stock,23/5/2023 00:00:00,273977,577.94,MI0200,MIDLAND CHANDLERS LIMITED,05/01/2023 00:00,28/5/2023 00:00:00,P02-2024
,LEE VALLEY MARINA SPRINGFIELD,SUPPLIES AND SERVICES,TRADING AC - EXTERNAL PURCHASE,4875,P121949-SERVICE-Chandlery Stock - plumbing and gas equipment,23/5/2023 00:00:00,273989,33.74,AQ0033,AQUAFAX LIMITED,05/01/2023 00:00,28/5/2023 00:00:00,P02-2024
,LEE VALLEY MARINA SPRINGFIELD,SUPPLIES AND SERVICES,TRADING AC - EXTERNAL PURCHASE,4875,P121949-SERVICE-Chandlery Stock - plumbing and gas equipment,23/5/2023 00:00:00,273990,159.66,AQ0033,AQUAFAX LIMITED,05/01/2023 00:00,28/5/2023 00:00:00,P02-2024
,LEE VALLEY MARINA SPRINGFIELD,SUPPLIES AND SERVICES,TRADING AC - EXTERNAL PURCHASE,4875,P121896-SERVICE-Tools and various,17/5/2023 00:00:00,274017,389.42,CE0510,CENTURION EUROPE LIMITED,05/01/2023 00:00,28/5/2023 00:00:00,P02-2024
,LEE VALLEY MARINA SPRINGFIELD,SUPPLIES AND SERVICES,TRADING AC - EXTERNAL PURCHASE,4875,P121952-SERVICE-Paint for customer,23/5/2023 00:00:00,274032,153.53,MI0200,MIDLAND CHANDLERS LIMITED,05/01/2023 00:00,28/5/2023 00:00:00,P02-2024
,LEE VALLEY MARINA SPRINGFIELD,SUPPLIES AND SERVICES,TRADING AC - EXTERNAL PURCHASE,4875,P121952-SERVICE-Paint for customer,23/5/2023 00:00:00,274135,91.38,MI0200,MIDLAND CHANDLERS LIMITED,05/01/2023 00:00,28/5/2023 00:00:00,P02-2024
,LEE VALLEY MARINA SPRINGFIELD,SUPPLIES AND SERVICES,TRADING AC - EXTERNAL PURCHASE,4875,P121951-SERVICE-Gas bottles,23/5/2023 00:00:00,274154,578.5,SM0664,KG SMITH & SON,05/01/2023 00:00,28/5/2023 00:00:00,P02-2024
,LEE VALLEY MARINA SPRINGFIELD,SUPPLIES AND SERVICES,TRADING AC - EXTERNAL PURCHASE,4875,P121985-SERVICE-Paint and plumbing supplies,28/5/2023 00:00:00,274160,336.21,AQ0033,AQUAFAX LIMITED,05/01/2023 00:00,28/5/2023 00:00:00,P02-2024
,LEE VALLEY MARINA SPRINGFIELD,SUPPLIES AND SERVICES,TRADING AC - EXTERNAL PURCHASE,4875,Springfield-Gas & heatlogs,23/5/2023 00:00:00,274178,-682,SM0664,KG SMITH & SON,05/01/2023 00:00,28/5/2023 00:00:00,P02-2024
,LEE VALLEY MARINA SPRINGFIELD,SUPPLIES AND SERVICES,TRADING AC - EXTERNAL PURCHASE,4875,Springfield-Gas & heatlogs,23/5/2023 00:00:00,274178,432,SM0664,KG SMITH & SON,05/01/2023 00:00,28/5/2023 00:00:00,P02-2024
,LEE VALLEY MARINA SPRINGFIELD,SUPPLIES AND SERVICES,TRADING AC - EXTERNAL PURCHASE,4875,Springfield-Gas & heatlogs,23/5/2023 00:00:00,274178,250,SM0664,KG SMITH & SON,05/01/2023 00:00,28/5/2023 00:00:00,P02-2024
,LEE VALLEY MARINA SPRINGFIELD,SUPPLIES AND SERVICES,TRADING AC - EXTERNAL PURCHASE,4875,P121688-SERVICE-Gas and heatlogs,23/5/2023 00:00:00,274178,682,SM0664,KG SMITH & SON,05/01/2023 00:00,28/5/2023 00:00:00,P02-2024
,STANSTEAD RECHARGEABLE WORKS,SUPPLIES AND SERVICES,TRADING AC - EXTERNAL PURCHASE,4875,P121834-SERVICE-chandlery stock,15/5/2023 00:00:00,273354,12,AQ0033,AQUAFAX LIMITED,05/01/2023 00:00,28/5/2023 00:00:00,P02-2024
,STANSTEAD RECHARGEABLE WORKS,SUPPLIES AND SERVICES,TRADING AC - EXTERNAL PURCHASE,4875,P121739-SERVICE-nameplate,05/09/2023 00:00,273405,2.69,MI0200,MIDLAND CHANDLERS LIMITED,05/01/2023 00:00,28/5/2023 00:00:00,P02-2024
,STANSTEAD RECHARGEABLE WORKS,SUPPLIES AND SERVICES,TRADING AC - EXTERNAL PURCHASE,4875,P121738-SERVICE-chandlery stock,05/09/2023 00:00,273428,101.68,AS0036,ASAP SUPPLIES,05/01/2023 00:00,28/5/2023 00:00:00,P02-2024
,STANSTEAD RECHARGEABLE WORKS,SUPPLIES AND SERVICES,TRADING AC - EXTERNAL PURCHASE,4875,P121735-SERVICE-chandlery stock,05/09/2023 00:00,273534,1455.56,MI0200,MIDLAND CHANDLERS LIMITED,05/01/2023 00:00,28/5/2023 00:00:00,P02-2024
,STANSTEAD RECHARGEABLE WORKS,SUPPLIES AND SERVICES,TRADING AC - EXTERNAL PURCHASE,4875,P121731-SERVICE-epifanes and arbokol,05/09/2023 00:00,273556,203.12,MA0442,MARINE AND INDUSTRIAL LLP,05/01/2023 00:00,28/5/2023 00:00:00,P02-2024
,STANSTEAD RECHARGEABLE WORKS,SUPPLIES AND SERVICES,TRADING AC - EXTERNAL PURCHASE,4875,P121730-SERVICE-2200ltrs red diesel @ 70.20p per ltr,05/09/2023 00:00,273565,1544.4,SP0543,SPEEDY FUELS LIMITED,05/01/2023 00:00,28/5/2023 00:00:00,P02-2024
,STANSTEAD RECHARGEABLE WORKS,SUPPLIES AND SERVICES,TRADING AC - EXTERNAL PURCHASE,4875,P121941-SERVICE-calor cage rental,15/5/2023 00:00:00,273571,13,CA0006,CALOR GAS LIMITED,05/01/2023 00:00,28/5/2023 00:00:00,P02-2024
,STANSTEAD RECHARGEABLE WORKS,SUPPLIES AND SERVICES,TRADING AC - EXTERNAL PURCHASE,4875,P121735-SERVICE-chandlery stock,05/09/2023 00:00,273637,41.92,MI0200,MIDLAND CHANDLERS LIMITED,05/01/2023 00:00,28/5/2023 00:00:00,P02-2024
,STANSTEAD RECHARGEABLE WORKS,SUPPLIES AND SERVICES,TRADING AC - EXTERNAL PURCHASE,4875,P121794-SERVICE-chandlery stock,15/5/2023 00:00:00,273699,152.46,MI0200,MIDLAND CHANDLERS LIMITED,05/01/2023 00:00,28/5/2023 00:00:00,P02-2024
,STANSTEAD RECHARGEABLE WORKS,SUPPLIES AND SERVICES,TRADING AC - EXTERNAL PURCHASE,4875,P121794-SERVICE-chandlery stock,15/5/2023 00:00:00,273718,928.28,MI0200,MIDLAND CHANDLERS LIMITED,05/01/2023 00:00,28/5/2023 00:00:00,P02-2024
,STANSTEAD RECHARGEABLE WORKS,SUPPLIES AND SERVICES,TRADING AC - EXTERNAL PURCHASE,4875,P121794-SERVICE-chandlery stock,15/5/2023 00:00:00,273720,11.65,MI0200,MIDLAND CHANDLERS LIMITED,05/01/2023 00:00,28/5/2023 00:00:00,P02-2024
,STANSTEAD RECHARGEABLE WORKS,SUPPLIES AND SERVICES,TRADING AC - EXTERNAL PURCHASE,4875,P121479-SERVICE-coal. logs 7 kindling,15/5/2023 00:00:00,273730,1220.5,SM0664,KG SMITH & SON,05/01/2023 00:00,28/5/2023 00:00:00,P02-2024
,STANSTEAD RECHARGEABLE WORKS,SUPPLIES AND SERVICES,TRADING AC - EXTERNAL PURCHASE,4875,P121479-SERVICE-extra amount for invoice,15/5/2023 00:00:00,273730,377,SM0664,KG SMITH & SON,05/01/2023 00:00,28/5/2023 00:00:00,P02-2024
,STANSTEAD RECHARGEABLE WORKS,SUPPLIES AND SERVICES,TRADING AC - EXTERNAL PURCHASE,4875,P121480-SERVICE-calor gas,15/5/2023 00:00:00,273731,848.25,SM0664,KG SMITH & SON,05/01/2023 00:00,28/5/2023 00:00:00,P02-2024
,STANSTEAD RECHARGEABLE WORKS,SUPPLIES AND SERVICES,TRADING AC - EXTERNAL PURCHASE,4875,P121582-SERVICE-paint,15/5/2023 00:00:00,273761,637.89,CR0651,CRAFTMASTER PAINTS,05/01/2023 00:00,28/5/2023 00:00:00,P02-2024
,STANSTEAD RECHARGEABLE WORKS,SUPPLIES AND SERVICES,TRADING AC - EXTERNAL PURCHASE,4875,P121794-SERVICE-chandlery stock,15/5/2023 00:00:00,273772,45.67,MI0200,MIDLAND CHANDLERS LIMITED,05/01/2023 00:00,28/5/2023 00:00:00,P02-2024
,STANSTEAD RECHARGEABLE WORKS,SUPPLIES AND SERVICES,TRADING AC - EXTERNAL PURCHASE,4875,P121794-SERVICE-chandlery stock,15/5/2023 00:00:00,273773,-45.67,MI0200,MIDLAND CHANDLERS LIMITED,05/01/2023 00:00,28/5/2023 00:00:00,P02-2024
,STANSTEAD RECHARGEABLE WORKS,SUPPLIES AND SERVICES,TRADING AC - EXTERNAL PURCHASE,4875,P121794-SERVICE-chandlery stock,15/5/2023 00:00:00,273774,8.83,MI0200,MIDLAND CHANDLERS LIMITED,05/01/2023 00:00,28/5/2023 00:00:00,P02-2024
,STANSTEAD RECHARGEABLE WORKS,SUPPLIES AND SERVICES,TRADING AC - EXTERNAL PURCHASE,4875,P121843-SERVICE-barrus spares,15/5/2023 00:00:00,273814,61.95,EP0353,E P BARRUS LTD,05/01/2023 00:00,28/5/2023 00:00:00,P02-2024
,STANSTEAD RECHARGEABLE WORKS,SUPPLIES AND SERVICES,TRADING AC - EXTERNAL PURCHASE,4875,P121899-SERVICE-chandlery stock,15/5/2023 00:00:00,273903,387.89,AQ0033,AQUAFAX LIMITED,05/01/2023 00:00,28/5/2023 00:00:00,P02-2024
,STANSTEAD RECHARGEABLE WORKS,SUPPLIES AND SERVICES,TRADING AC - EXTERNAL PURCHASE,4875,P121794-SERVICE-chandlery stock,15/5/2023 00:00:00,273929,59.53,MI0200,MIDLAND CHANDLERS LIMITED,05/01/2023 00:00,28/5/2023 00:00:00,P02-2024
,STANSTEAD RECHARGEABLE WORKS,SUPPLIES AND SERVICES,TRADING AC - EXTERNAL PURCHASE,4875,P121794-SERVICE-chandlery stock,15/5/2023 00:00:00,273931,-45.67,MI0200,MIDLAND CHANDLERS LIMITED,05/01/2023 00:00,28/5/2023 00:00:00,P02-2024
,STANSTEAD RECHARGEABLE WORKS,SUPPLIES AND SERVICES,TRADING AC - EXTERNAL PURCHASE,4875,P121931-SERVICE-chandlery stock,23/5/2023 00:00:00,273947,38.16,MI0200,MIDLAND CHANDLERS LIMITED,05/01/2023 00:00,28/5/2023 00:00:00,P02-2024
,STANSTEAD RECHARGEABLE WORKS,SUPPLIES AND SERVICES,TRADING AC - EXTERNAL PURCHASE,4875,P121899-SERVICE-chandlery stock,23/5/2023 00:00:00,273948,30.24,AQ0033,AQUAFAX LIMITED,05/01/2023 00:00,28/5/2023 00:00:00,P02-2024
,STANSTEAD RECHARGEABLE WORKS,SUPPLIES AND SERVICES,TRADING AC - EXTERNAL PURCHASE,4875,P121819-SERVICE-barrus spares,23/5/2023 00:00:00,273949,27.26,EP0353,E P BARRUS LTD,05/01/2023 00:00,28/5/2023 00:00:00,P02-2024
,STANSTEAD RECHARGEABLE WORKS,SUPPLIES AND SERVICES,TRADING AC - EXTERNAL PURCHASE,4875,P121931-SERVICE-chandlery stock,23/5/2023 00:00:00,273976,631.65,MI0200,MIDLAND CHANDLERS LIMITED,05/01/2023 00:00,28/5/2023 00:00:00,P02-2024
,STANSTEAD RECHARGEABLE WORKS,SUPPLIES AND SERVICES,TRADING AC - EXTERNAL PURCHASE,4875,P121794-SERVICE-chandlery stock,23/5/2023 00:00:00,273991,45.67,MI0200,MIDLAND CHANDLERS LIMITED,05/01/2023 00:00,28/5/2023 00:00:00,P02-2024
,STANSTEAD RECHARGEABLE WORKS,SUPPLIES AND SERVICES,TRADING AC - EXTERNAL PURCHASE,4875,P121794-SERVICE-chandlery stock,23/5/2023 00:00:00,273992,36.76,MI0200,MIDLAND CHANDLERS LIMITED,05/01/2023 00:00,28/5/2023 00:00:00,P02-2024
,STANSTEAD RECHARGEABLE WORKS,SUPPLIES AND SERVICES,TRADING AC - EXTERNAL PURCHASE,4875,P121955-SERVICE-chandlery stock,28/5/2023 00:00:00,274030,239.16,MI0200,MIDLAND CHANDLERS LIMITED,05/01/2023 00:00,28/5/2023 00:00:00,P02-2024
,STANSTEAD RECHARGEABLE WORKS,SUPPLIES AND SERVICES,TRADING AC - EXTERNAL PURCHASE,4875,P121735-SERVICE-chandlery stock,23/5/2023 00:00:00,274031,-145.82,MI0200,MIDLAND CHANDLERS LIMITED,05/01/2023 00:00,28/5/2023 00:00:00,P02-2024
,STANSTEAD RECHARGEABLE WORKS,SUPPLIES AND SERVICES,TRADING AC - EXTERNAL PURCHASE,4875,P121945-SERVICE-red diesel @ 66.8p per ltr,28/5/2023 00:00:00,274131,1468.93,SP0543,SPEEDY FUELS LIMITED,05/01/2023 00:00,28/5/2023 00:00:00,P02-2024
,STANSTEAD RECHARGEABLE WORKS,SUPPLIES AND SERVICES,TRADING AC - EXTERNAL PURCHASE,4875,P121903-SERVICE-extra amount for additional items on order,23/5/2023 00:00:00,274137,66.83,360001,BIDFOOD,05/01/2023 00:00,28/5/2023 00:00:00,P02-2024
,STANSTEAD RECHARGEABLE WORKS,SUPPLIES AND SERVICES,TRADING AC - EXTERNAL PURCHASE,4875,P121903-SERVICE-cans & ice cream!,23/5/2023 00:00:00,274137,136.88,360001,BIDFOOD,05/01/2023 00:00,28/5/2023 00:00:00,P02-2024
,STANSTEAD RECHARGEABLE WORKS,SUPPLIES AND SERVICES,TRADING AC - EXTERNAL PURCHASE,4875,P121962-SERVICE-fuel filter,28/5/2023 00:00:00,274138,16.9,EP0353,E P BARRUS LTD,05/01/2023 00:00,28/5/2023 00:00:00,P02-2024
,STANSTEAD RECHARGEABLE WORKS,SUPPLIES AND SERVICES,TRADING AC - EXTERNAL PURCHASE,4875,P121938-SERVICE-chandlery stock,28/5/2023 00:00:00,274156,393.94,CE0510,CENTURION EUROPE LIMITED,05/01/2023 00:00,28/5/2023 00:00:00,P02-2024
,STANSTEAD RECHARGEABLE WORKS,SUPPLIES AND SERVICES,TRADING AC - EXTERNAL PURCHASE,4875,P121974-SERVICE-ball valves,28/5/2023 00:00:00,274161,35.25,MI0200,MIDLAND CHANDLERS LIMITED,05/01/2023 00:00,28/5/2023 00:00:00,P02-2024
,STANSTEAD RECHARGEABLE WORKS,SUPPLIES AND SERVICES,TRADING AC - EXTERNAL PURCHASE,4875,"P121977-SERVICE-tiller pin, tube, handle",28/5/2023 00:00:00,274162,49.69,MI0200,MIDLAND CHANDLERS LIMITED,05/01/2023 00:00,28/5/2023 00:00:00,P02-2024
,STANSTEAD RECHARGEABLE WORKS,SUPPLIES AND SERVICES,TRADING AC - EXTERNAL PURCHASE,4875,P122002-SERVICE-chandlery stock,28/5/2023 00:00:00,274190,853.57,MI0200,MIDLAND CHANDLERS LIMITED,05/01/2023 00:00,28/5/2023 00:00:00,P02-2024
,STANSTEAD RECHARGEABLE WORKS,SUPPLIES AND SERVICES,TRADING AC - EXTERNAL PURCHASE,4875,"P121977-SERVICE-tiller pin, tube, handle",28/5/2023 00:00:00,274191,14.25,MI0200,MIDLAND CHANDLERS LIMITED,05/01/2023 00:00,28/5/2023 00:00:00,P02-2024
,STANSTEAD RECHARGEABLE WORKS,SUPPLIES AND SERVICES,TRADING AC - EXTERNAL PURCHASE,4875,P122017-SERVICE-gelshield,28/5/2023 00:00:00,274210,326.6,AQ0033,AQUAFAX LIMITED,05/01/2023 00:00,28/5/2023 00:00:00,P02-2024
,STANSTEAD RECHARGEABLE WORKS,SUPPLIES AND SERVICES,TRADING AC - EXTERNAL PURCHASE,4875,P122018-SERVICE-pump out adaptors,28/5/2023 00:00:00,274232,114.39,LE0059,LEE SANITATION LTD,05/01/2023 00:00,28/5/2023 00:00:00,P02-2024
,STANSTEAD RECHARGEABLE WORKS,SUPPLIES AND SERVICES,TRADING AC - EXTERNAL PURCHASE,4875,P122019-SERVICE-chandlery stock,28/5/2023 00:00:00,274233,220.31,MI0200,MIDLAND CHANDLERS LIMITED,05/01/2023 00:00,28/5/2023 00:00:00,P02-2024
,STANSTEAD RECHARGEABLE WORKS,SUPPLIES AND SERVICES,TRADING AC - EXTERNAL PURCHASE,4875,P122019-SERVICE-chandlery stock,28/5/2023 00:00:00,274323,33.96,MI0200,MIDLAND CHANDLERS LIMITED,05/01/2023 00:00,28/5/2023 00:00:00,P02-2024
,LEE VALLEY CAMPSITE,SUPPLIES AND SERVICES,TRADING AC - EXTERNAL PURCHASE,4875,P121693-SERVICE-Stock  Caravan chemicals,05/09/2023 00:00,273127,87.67,TO0079,TOWSURE PRODUCTS LIMITED,05/01/2023 00:00,28/5/2023 00:00:00,P02-2024
,LEE VALLEY CAMPSITE,SUPPLIES AND SERVICES,TRADING AC - EXTERNAL PURCHASE,4875,P121693-SERVICE-Stock  Caravan chemicals,28/5/2023 00:00:00,274338,-87.67,TO0079,TOWSURE PRODUCTS LIMITED,05/01/2023 00:00,28/5/2023 00:00:00,P02-2024
,LEE VALLEY CARAVAN PARK,SUPPLIES AND SERVICES,TRADING AC - EXTERNAL PURCHASE,4875,P121554-SERVICE-2 Pallets of logs and 1 x Kinderlin,05/09/2023 00:00,273797,-471.63,LO0473,LOGS DIRECT LTD,05/01/2023 00:00,28/5/2023 00:00:00,P02-2024
P&V,MYDDELTON HOUSE GARDENS,SUPPLIES AND SERVICES,TRADING AC - EXTERNAL PURCHASE,4875,P121947-SERVICE-plant sales stock may 23,28/5/2023 00:00:00,274179,570.5,CH0718,CHAPEL COTTAGE PLANTS LIMITED,05/01/2023 00:00,28/5/2023 00:00:00,P02-2024
,LEE VALLEY CAMPSITE,SUPPLIES AND SERVICES,BOTTLED GAS,4877,P120451-SERVICE-Stock   47KG Gas cannisters,15/5/2023 00:00:00,273960,654.48,FL0147,FLOGAS BRITAIN LIMITED,05/01/2023 00:00,28/5/2023 00:00:00,P02-2024
CEO,CHIEF EXECUTIVE,SUPPLIES AND SERVICES,UNRECONCILED COMPANY CARD EXP,4880,P ANDREWS - APRIL 2023 ACTIVITIES,05/11/2023 00:00,273689,357.74,NA0007,NATWEST CARD CENTRE,05/01/2023 00:00,28/5/2023 00:00:00,P02-2024
P&V,MYDDELTON HOUSE,SUPPLIES AND SERVICES,UNRECONCILED COMPANY CARD EXP,4880,G FLAVIEN - APRIL 2023 ACTIVITIES,05/11/2023 00:00,273689,463.3,NA0007,NATWEST CARD CENTRE,05/01/2023 00:00,28/5/2023 00:00:00,P02-2024
CEO,PR/COMMUNICATIONS,SUPPLIES AND SERVICES,UNRECONCILED COMPANY CARD EXP,4880,S BROMBERG - APRIL 2023 ACTIVITIES,05/11/2023 00:00,273689,1799.46,NA0007,NATWEST CARD CENTRE,05/01/2023 00:00,28/5/2023 00:00:00,P02-2024
P&V,"ASSET PROTECTION, MAINT, DEVEL",SUPPLIES AND SERVICES,UNRECONCILED COMPANY CARD EXP,4880,S BODELL - APRIL 2023 ACTIVITIES,05/11/2023 00:00,273689,-29.74,NA0007,NATWEST CARD CENTRE,05/01/2023 00:00,28/5/2023 00:00:00,P02-2024
R&B,DEMOCRATIC REPRESENTATION & MA,SUPPLIES AND SERVICES,UNRECONCILED COMPANY CARD EXP,4880,S BERTSCHIN - APRIL 2023 ACTIVITIES,05/11/2023 00:00,273689,31.64,NA0007,NATWEST CARD CENTRE,05/01/2023 00:00,28/5/2023 00:00:00,P02-2024
R&B,FINANCE & RESOURCES MANAGEMENT,SUPPLIES AND SERVICES,UNRECONCILED COMPANY CARD EXP,4880,L READ - APRIL 2023 ACTIVITIES,05/11/2023 00:00,273689,327.5,NA0007,NATWEST CARD CENTRE,05/01/2023 00:00,28/5/2023 00:00:00,P02-2024
R&B,INFORMATION TECHNOLOGY,SUPPLIES AND SERVICES,UNRECONCILED COMPANY CARD EXP,4880,S CLARK - APRIL 2023 ACTIVITIES,05/11/2023 00:00,273689,595.43,NA0007,NATWEST CARD CENTRE,05/01/2023 00:00,28/5/2023 00:00:00,P02-2024
,LEE VALLEY MARINA SPRINGFIELD,SUPPLIES AND SERVICES,UNRECONCILED COMPANY CARD EXP,4880,T BEAN - APRIL 2023 ACTIVITIES,05/11/2023 00:00,273689,219.09,NA0007,NATWEST CARD CENTRE,05/01/2023 00:00,28/5/2023 00:00:00,P02-2024
,LEE VALLEY MARINA STANSTEAD,SUPPLIES AND SERVICES,UNRECONCILED COMPANY CARD EXP,4880,J MANTON- APRIL 2023 ACTIVITIES,05/11/2023 00:00,273689,392.21,NA0007,NATWEST CARD CENTRE,05/01/2023 00:00,28/5/2023 00:00:00,P02-2024
P&V,LEE VALLEY FARM HOLYFIELDHALL,SUPPLIES AND SERVICES,UNRECONCILED COMPANY CARD EXP,4880,J PAINTER - APRIL 2023 ACTIVITIES,05/11/2023 00:00,273689,163.51,NA0007,NATWEST CARD CENTRE,05/01/2023 00:00,28/5/2023 00:00:00,P02-2024
,LEE VALLEY CAMPSITE,SUPPLIES AND SERVICES,UNRECONCILED COMPANY CARD EXP,4880,D GROVE -  APRIL 2023 ACTIVITIES,05/11/2023 00:00,273689,29.16,NA0007,NATWEST CARD CENTRE,05/01/2023 00:00,28/5/2023 00:00:00,P02-2024
,LEE VALLEY CAMPSITE,SUPPLIES AND SERVICES,UNRECONCILED COMPANY CARD EXP,4880,C CARTER - APRIL 2023 ACTIVITIES,05/11/2023 00:00,273689,2538.92,NA0007,NATWEST CARD CENTRE,05/01/2023 00:00,28/5/2023 00:00:00,P02-2024
,LEE VALLEY CARAVAN PARK,SUPPLIES AND SERVICES,UNRECONCILED COMPANY CARD EXP,4880,D SNOWDEN - APRIL 2023 ACTIVITIES,05/11/2023 00:00,273689,29.16,NA0007,NATWEST CARD CENTRE,05/01/2023 00:00,28/5/2023 00:00:00,P02-2024
,LEE VALLEY CARAVAN PARK,SUPPLIES AND SERVICES,UNRECONCILED COMPANY CARD EXP,4880,I RUSSELL - APRIL 2023 ACTIVITIES,05/11/2023 00:00,273689,4614.72,NA0007,NATWEST CARD CENTRE,05/01/2023 00:00,28/5/2023 00:00:00,P02-2024
P&V,MYDDELTON HOUSE GARDENS,SUPPLIES AND SERVICES,UNRECONCILED COMPANY CARD EXP,4880,R HARMES - APRIL 2023 ACTIVITIES,05/11/2023 00:00,273689,512.61,NA0007,NATWEST CARD CENTRE,05/01/2023 00:00,28/5/2023 00:00:00,P02-2024
P&V,OPERATIONAL MANAGEMENT (L&E),SUPPLIES AND SERVICES,UNRECONCILED COMPANY CARD EXP,4880,D HUTLEY - APRIL 2023 ACTIVITIES,05/11/2023 00:00,273689,435.7,NA0007,NATWEST CARD CENTRE,05/01/2023 00:00,28/5/2023 00:00:00,P02-2024
P&V,OPERATIONAL MANAGEMENT (L&E),SUPPLIES AND SERVICES,UNRECONCILED COMPANY CARD EXP,4880,JOHN CARNEY - APRIL 2023 ACTIVITIES,05/11/2023 00:00,273689,117.81,NA0007,NATWEST CARD CENTRE,05/01/2023 00:00,28/5/2023 00:00:00,P02-2024
P&V,SPORT AND LEISURE,SUPPLIES AND SERVICES,UNRECONCILED COMPANY CARD EXP,4880,A SACKETT-APRIL 2023 ACTIVITIES,05/11/2023 00:00,273689,2904.49,NA0007,NATWEST CARD CENTRE,05/01/2023 00:00,28/5/2023 00:00:00,P02-2024
P&V,EVENTS MANAGEMENT (PR),SUPPLIES AND SERVICES,UNRECONCILED COMPANY CARD EXP,4880,S STONE - APRIL 2023 ACTIVITIES,05/11/2023 00:00,273689,153.96,NA0007,NATWEST CARD CENTRE,05/01/2023 00:00,28/5/2023 00:00:00,P02-2024
,LV LEISURE CENTRE CAMPSITE,SUPPLIES AND SERVICES,UNRECONCILED COMPANY CARD EXP,4880,L SMITH - APRIL 2023 ACTIVITIES,05/11/2023 00:00,273689,29.16,NA0007,NATWEST CARD CENTRE,05/01/2023 00:00,28/5/2023 00:00:00,P02-2024
CEO,COMMERCIAL ACCOMMODATION,SUPPLIES AND SERVICES,OTHER EXPENSES,4899,P121556-SERVICE-Land Registry Fees,05/09/2023 00:00,273555,18,HM0032,HM LAND REGISTRY,05/01/2023 00:00,28/5/2023 00:00:00,P02-2024
CEO,COMMERCIAL ACCOMMODATION,SUPPLIES AND SERVICES,OTHER EXPENSES,4899,P121556-SERVICE-Land Registry Fees,05/09/2023 00:00,273739,6,HM0032,HM LAND REGISTRY,05/01/2023 00:00,28/5/2023 00:00:00,P02-2024
CEO,LEGAL SERVICES,SUPPLIES AND SERVICES,OTHER EXPENSES,4899,"P121907-SERVICE-Courier to Commercial Road, Southhampton",16/5/2023 00:00:00,273921,145,LE0055,LEE COURIERS LTD,05/01/2023 00:00,28/5/2023 00:00:00,P02-2024
CEO,COMMONWEALTH GAMES 2022,SUPPLIES AND SERVICES,OTHER EXPENSES,4899,"P119363-SERVICE-CWG Various repairs to damage caused pre, dur",05/09/2023 00:00,272358,10390,RE0094,REACT 2 IT (BUILDING & REFURBISHMENT) LTD,05/01/2023 00:00,28/5/2023 00:00:00,P02-2024
P&V,ABBEY GARDENS,SUPPLIES AND SERVICES,OTHER EXPENSES,4899,P121715-SERVICE-Memorial Plaque - Eileen King,05/09/2023 00:00,273675,70.84,JA0162,JAG'S TROPHIES,05/01/2023 00:00,28/5/2023 00:00:00,P02-2024
P&V,RIVER LEE COUNTRY PARK,SUPPLIES AND SERVICES,OTHER EXPENSES,4899,P121678-SERVICE-Memorial Plaque Gwen & Ted Baldwin,05/09/2023 00:00,273674,95.84,JA0162,JAG'S TROPHIES,05/01/2023 00:00,28/5/2023 00:00:00,P02-2024
P&V,RIVER LEE COUNTRY PARK,SUPPLIES AND SERVICES,OTHER EXPENSES,4899,P121801-SERVICE-Corporate 2 Membership Subscription,05/09/2023 00:00,273757,250,CO0139,COUNTRYSIDE MANAGEMENT ASSOCIATION,05/01/2023 00:00,28/5/2023 00:00:00,P02-2024
P&V,AWARDS AND ACCREDITATIONS,SUPPLIES AND SERVICES,OTHER EXPENSES,4899,P120653-SERVICE-Quest assessemnt Riding centre,17/5/2023 00:00:00,274000,1200,4G0455,4GLOBAL CONSULTING LIMITED,05/01/2023 00:00,28/5/2023 00:00:00,P02-2024
P&V,AWARDS AND ACCREDITATIONS,SUPPLIES AND SERVICES,OTHER EXPENSES,4899,P121845-SERVICE-London in Bloom entry 2023,23/5/2023 00:00:00,274170,580,LO0329,LONDON IN BLOOM,05/01/2023 00:00,28/5/2023 00:00:00,P02-2024
P&V,SOUTH AREA RANGERS,S106 EXPENDITURE (REVENUE),S106 EXPENDITURE (REVENUE),4985,P122021-SERVICE-Install Gate at Oxbow Island,28/5/2023 00:00:00,274235,400,JO0019,R G JOYCE,05/01/2023 00:00,28/5/2023 00:00:00,P02-2024
P&V,"ASSET PROTECTION, MAINT, DEVEL",CAPITAL EXPENDITURE,CAPITAL EXPENDITURE,4990,P121925-SERVICE-Dobbs Weir Existing static,15/5/2023 00:00:00,272538,895,BR0018,BRADSHAW ELECTRICAL LIMITED,05/01/2023 00:00,28/5/2023 00:00:00,P02-2024
P&V,"ASSET PROTECTION, MAINT, DEVEL",CAPITAL EXPENDITURE,CAPITAL EXPENDITURE,4990,P121926-SERVICE-Dobbs Weir Lamp Post,15/5/2023 00:00:00,272539,1072,BR0018,BRADSHAW ELECTRICAL LIMITED,05/01/2023 00:00,28/5/2023 00:00:00,P02-2024
P&V,"ASSET PROTECTION, MAINT, DEVEL",CAPITAL EXPENDITURE,CAPITAL EXPENDITURE,4990,P121401-SERVICE-LVRPA � White Water Slalom Ramp,05/11/2023 00:00,273161,61842.51,CA0508,CARMELCREST LTD,05/01/2023 00:00,28/5/2023 00:00:00,P02-2024
P&V,"ASSET PROTECTION, MAINT, DEVEL",CAPITAL EXPENDITURE,CAPITAL EXPENDITURE,4990,P121721-SERVICE-A3 and A4 Magnetic inserts,15/5/2023 00:00:00,273543,4505.38,DM0180,DMA SIGNS LIMITED,05/01/2023 00:00,28/5/2023 00:00:00,P02-2024
P&V,"ASSET PROTECTION, MAINT, DEVEL",CAPITAL EXPENDITURE,CAPITAL EXPENDITURE,4990,P121443-SERVICE-Dobbs Weir Lamp Posts,15/5/2023 00:00:00,273633,268,BR0018,BRADSHAW ELECTRICAL LIMITED,05/01/2023 00:00,28/5/2023 00:00:00,P02-2024
P&V,"ASSET PROTECTION, MAINT, DEVEL",CAPITAL EXPENDITURE,CAPITAL EXPENDITURE,4990,P120984-SERVICE-Electrical Works at Dobbs Weir Campsite,05/09/2023 00:00,273634,358,BR0018,BRADSHAW ELECTRICAL LIMITED,05/01/2023 00:00,28/5/2023 00:00:00,P02-2024
P&V,"ASSET PROTECTION, MAINT, DEVEL",CAPITAL EXPENDITURE,CAPITAL EXPENDITURE,4990,P120984-SERVICE-Electrical Works at Dobbs Weir Campsite - Add,05/09/2023 00:00,273634,630,BR0018,BRADSHAW ELECTRICAL LIMITED,05/01/2023 00:00,28/5/2023 00:00:00,P02-2024
P&V,"ASSET PROTECTION, MAINT, DEVEL",CAPITAL EXPENDITURE,CAPITAL EXPENDITURE,4990,P121768-SERVICE-Install prespex panels Gunpowder and Sewardst,05/09/2023 00:00,273649,753.2,KE0023,KENDALL & SONS LIMITED,05/01/2023 00:00,28/5/2023 00:00:00,P02-2024
P&V,"ASSET PROTECTION, MAINT, DEVEL",CAPITAL EXPENDITURE,CAPITAL EXPENDITURE,4990,P121686-SERVICE-Myddelton House � Legionella Risk Assessment,05/09/2023 00:00,273792,475,JA0177,JASUN ENVIROCARE PLC,05/01/2023 00:00,28/5/2023 00:00:00,P02-2024
P&V,"ASSET PROTECTION, MAINT, DEVEL",CAPITAL EXPENDITURE,CAPITAL EXPENDITURE,4990,P120943-SERVICE-Emergency repair of Asbestos at Springfield,16/5/2023 00:00:00,273943,2100,LI0432,LIFE ENVIRONMENTAL SERVICES LTD,05/01/2023 00:00,28/5/2023 00:00:00,P02-2024
P&V,"ASSET PROTECTION, MAINT, DEVEL",CAPITAL EXPENDITURE,CAPITAL EXPENDITURE,4990,P120943-SERVICE-Air Test -Springfield Marina Workshop,16/5/2023 00:00:00,273943,200,LI0432,LIFE ENVIRONMENTAL SERVICES LTD,05/01/2023 00:00,28/5/2023 00:00:00,P02-2024
P&V,"ASSET PROTECTION, MAINT, DEVEL",CAPITAL EXPENDITURE,CAPITAL EXPENDITURE,4990,P109901-SERVICE-Abercrombie Lodge - Strip up decking,28/5/2023 00:00:00,274008,400,KE0023,KENDALL & SONS LIMITED,05/01/2023 00:00,28/5/2023 00:00:00,P02-2024
P&V,"ASSET PROTECTION, MAINT, DEVEL",CAPITAL EXPENDITURE,CAPITAL EXPENDITURE,4990,P108426-SERVICE-VeloPark - Fencing works,28/5/2023 00:00:00,274009,390,KE0023,KENDALL & SONS LIMITED,05/01/2023 00:00,28/5/2023 00:00:00,P02-2024
P&V,"ASSET PROTECTION, MAINT, DEVEL",CAPITAL EXPENDITURE,CAPITAL EXPENDITURE,4990,P121984-SERVICE-Change Panels & Perspex for signs at GPP,23/5/2023 00:00:00,274010,753.2,KE0023,KENDALL & SONS LIMITED,05/01/2023 00:00,28/5/2023 00:00:00,P02-2024
P&V,"ASSET PROTECTION, MAINT, DEVEL",CAPITAL EXPENDITURE,CAPITAL EXPENDITURE,4990,P108323-SERVICE-Boundary fence repair at the Ice Centre,28/5/2023 00:00:00,274011,498,KE0023,KENDALL & SONS LIMITED,05/01/2023 00:00,28/5/2023 00:00:00,P02-2024
P&V,"ASSET PROTECTION, MAINT, DEVEL",CAPITAL EXPENDITURE,CAPITAL EXPENDITURE,4990,P107441-SERVICE-Replacing and making safe upstands at WWC sta,28/5/2023 00:00:00,274012,550,KE0023,KENDALL & SONS LIMITED,05/01/2023 00:00,28/5/2023 00:00:00,P02-2024
P&V,"ASSET PROTECTION, MAINT, DEVEL",CAPITAL EXPENDITURE,CAPITAL EXPENDITURE,4990,P121960-SERVICE-Erect Heras Fence at Waltham Abbey Gardens,17/5/2023 00:00:00,274015,320,KE0023,KENDALL & SONS LIMITED,05/01/2023 00:00,28/5/2023 00:00:00,P02-2024
P&V,"ASSET PROTECTION, MAINT, DEVEL",CAPITAL EXPENDITURE,CAPITAL EXPENDITURE,4990,P122006-SERVICE-HTC - West Plaza Sockets,23/5/2023 00:00:00,274121,840,BR0018,BRADSHAW ELECTRICAL LIMITED,05/01/2023 00:00,28/5/2023 00:00:00,P02-2024
P&V,"ASSET PROTECTION, MAINT, DEVEL",CAPITAL EXPENDITURE,CAPITAL EXPENDITURE,4990,P122007-SERVICE-Feeder Pillar Upgrade at Springfield Marina -,23/5/2023 00:00:00,274124,1000,BR0018,BRADSHAW ELECTRICAL LIMITED,05/01/2023 00:00,28/5/2023 00:00:00,P02-2024
P&V,"ASSET PROTECTION, MAINT, DEVEL",CAPITAL EXPENDITURE,CAPITAL EXPENDITURE,4990,P121274-SERVICE-Masonry Repairs at Waltham Abbey Gardens,23/5/2023 00:00:00,274130,5434.04,BA0595,BAKERS OF DANBURY HERITAGE LTD,05/01/2023 00:00,28/5/2023 00:00:00,P02-2024
P&V,"ASSET PROTECTION, MAINT, DEVEL",CAPITAL EXPENDITURE,CAPITAL EXPENDITURE,4990,P121274-SERVICE-Masonry Repairs at Waltham Abbey Gardens,23/5/2023 00:00:00,274130,2671.4,BA0595,BAKERS OF DANBURY HERITAGE LTD,05/01/2023 00:00,28/5/2023 00:00:00,P02-2024
P&V,"ASSET PROTECTION, MAINT, DEVEL",CAPITAL EXPENDITURE,CAPITAL EXPENDITURE,4990,P121865-SERVICE-Replacement starter fuse switch as listed,23/5/2023 00:00:00,274199,11501,TE0252,TECHNICAL CONTROL SYSTEMS LIMITED,05/01/2023 00:00,28/5/2023 00:00:00,P02-2024
P&V,"ASSET PROTECTION, MAINT, DEVEL",CAPITAL EXPENDITURE,CAPITAL EXPENDITURE,4990,P121864-SERVICE-Olympic / Legacy only Contactor Failures / Em,28/5/2023 00:00:00,274200,4304,TE0252,TECHNICAL CONTROL SYSTEMS LIMITED,05/01/2023 00:00,28/5/2023 00:00:00,P02-2024
P&V,"ASSET PROTECTION, MAINT, DEVEL",CAPITAL EXPENDITURE,CAPITAL EXPENDITURE,4990,P121768-SERVICE-Install prespex panels Gunpowder and Sewardst,24/5/2023 00:00:00,274239,-753.2,KE0023,KENDALL & SONS LIMITED,05/01/2023 00:00,28/5/2023 00:00:00,P02-2024
P&V,"ASSET PROTECTION, MAINT, DEVEL",CAPITAL EXPENDITURE,CAPITAL EXPENDITURE,4990,KENDALL & SONS LIMITED,24/5/2023 00:00:00,274240,543.2,KE0023,KENDALL & SONS LIMITED,05/01/2023 00:00,28/5/2023 00:00:00,P02-2024
P&V,"ASSET PROTECTION, MAINT, DEVEL",CAPITAL EXPENDITURE,CAPITAL EXPENDITURE,4990,KENDALL & SONS LIMITED,24/5/2023 00:00:00,274240,210,KE0023,KENDALL & SONS LIMITED,05/01/2023 00:00,28/5/2023 00:00:00,P02-2024
P&V,"ASSET PROTECTION, MAINT, DEVEL",CAPITAL EXPENDITURE,CAPITAL EXPENDITURE,4990,P121768-SERVICE-Install prespex panels Gunpowder and Sewardst,24/5/2023 00:00:00,274240,753.2,KE0023,KENDALL & SONS LIMITED,05/01/2023 00:00,28/5/2023 00:00:00,P02-2024
P&V,"ASSET PROTECTION, MAINT, DEVEL",CAPITAL EXPENDITURE,CAPITAL EXPENDITURE,4990,KENDALL & SONS LIMITED,24/5/2023 00:00:00,274240,-753.2,KE0023,KENDALL & SONS LIMITED,05/01/2023 00:00,28/5/2023 00:00:00,P02-2024
P&V,"ASSET PROTECTION, MAINT, DEVEL",CAPITAL EXPENDITURE,CAPITAL EXPENDITURE,4990,P109901-SERVICE-Abercrombie Lodge - Strip up decking,28/5/2023 00:00:00,274327,-400,KE0023,KENDALL & SONS LIMITED,05/01/2023 00:00,28/5/2023 00:00:00,P02-2024
P&V,"ASSET PROTECTION, MAINT, DEVEL",CAPITAL EXPENDITURE,CAPITAL EXPENDITURE,4990,P108426-SERVICE-VeloPark - Fencing works,28/5/2023 00:00:00,274328,-390,KE0023,KENDALL & SONS LIMITED,05/01/2023 00:00,28/5/2023 00:00:00,P02-2024
P&V,"ASSET PROTECTION, MAINT, DEVEL",CAPITAL EXPENDITURE,CAPITAL EXPENDITURE,4990,P108323-SERVICE-Boundary fence repair at the Ice Centre,28/5/2023 00:00:00,274329,-498,KE0023,KENDALL & SONS LIMITED,05/01/2023 00:00,28/5/2023 00:00:00,P02-2024
P&V,"ASSET PROTECTION, MAINT, DEVEL",CAPITAL EXPENDITURE,CAPITAL EXPENDITURE,4990,P107441-SERVICE-Replacing and making safe upstands at WWC sta,28/5/2023 00:00:00,274330,-550,KE0023,KENDALL & SONS LIMITED,05/01/2023 00:00,28/5/2023 00:00:00,P02-2024
R&B,INFORMATION TECHNOLOGY,CAPITAL EXPENDITURE,CAPITAL EXPENDITURE,4990,P120751-SERVICE-Dell Latitude 5520 CTO/Gated Base,28/5/2023 00:00:00,272598,4266.92,DE0011,DELL CORPORATION LIMITED,05/01/2023 00:00,28/5/2023 00:00:00,P02-2024
R&B,INFORMATION TECHNOLOGY,CAPITAL EXPENDITURE,CAPITAL EXPENDITURE,4990,P117360-SERVICE-Public WiFi Hardware for Stanstead,16/5/2023 00:00:00,273557,300,RE0354,RENOVOTEC LTD,05/01/2023 00:00,28/5/2023 00:00:00,P02-2024
R&B,INFORMATION TECHNOLOGY,CAPITAL EXPENDITURE,CAPITAL EXPENDITURE,4990,P117358-SERVICE-Public WiFi Install for Dobbs Weir,16/5/2023 00:00:00,273558,4310,RE0354,RENOVOTEC LTD,05/01/2023 00:00,28/5/2023 00:00:00,P02-2024
R&B,INFORMATION TECHNOLOGY,CAPITAL EXPENDITURE,CAPITAL EXPENDITURE,4990,P117360-SERVICE-Public WiFi Hardware for Stanstead,16/5/2023 00:00:00,273559,1063.84,RE0354,RENOVOTEC LTD,05/01/2023 00:00,28/5/2023 00:00:00,P02-2024
R&B,INFORMATION TECHNOLOGY,CAPITAL EXPENDITURE,CAPITAL EXPENDITURE,4990,P117360-SERVICE-Public WiFi Hardware for Stanstead,16/5/2023 00:00:00,273560,9518.37,RE0354,RENOVOTEC LTD,05/01/2023 00:00,28/5/2023 00:00:00,P02-2024
R&B,INFORMATION TECHNOLOGY,CAPITAL EXPENDITURE,CAPITAL EXPENDITURE,4990,P117361-SERVICE-Public WiFi Hardware for Springfield,16/5/2023 00:00:00,273584,8179.12,RE0354,RENOVOTEC LTD,05/01/2023 00:00,28/5/2023 00:00:00,P02-2024
R&B,INFORMATION TECHNOLOGY,CAPITAL EXPENDITURE,CAPITAL EXPENDITURE,4990,P117361-SERVICE-Public WiFi Hardware for Springfield,15/5/2023 00:00:00,273585,1043.84,RE0354,RENOVOTEC LTD,05/01/2023 00:00,28/5/2023 00:00:00,P02-2024
R&B,INFORMATION TECHNOLOGY,CAPITAL EXPENDITURE,CAPITAL EXPENDITURE,4990,P117361-SERVICE-Public WiFi Hardware for Springfield,15/5/2023 00:00:00,273586,200,RE0354,RENOVOTEC LTD,05/01/2023 00:00,28/5/2023 00:00:00,P02-2024
R&B,INFORMATION TECHNOLOGY,CAPITAL EXPENDITURE,CAPITAL EXPENDITURE,4990,P121924-SERVICE-WiFi Install Sewardstone campsite x2.5 days,15/5/2023 00:00:00,273919,900,JP0183,JPH CABLING SERVICES,05/01/2023 00:00,28/5/2023 00:00:00,P02-2024
R&B,INFORMATION TECHNOLOGY,CAPITAL EXPENDITURE,CAPITAL EXPENDITURE,4990,P121964-SERVICE-Dobbs Weir WiFi install x2 days plus material,17/5/2023 00:00:00,274021,900,JP0183,JPH CABLING SERVICES,05/01/2023 00:00,28/5/2023 00:00:00,P02-2024
,LEE VALLEY CAMPSITE,CAPITAL EXPENDITURE,CAPITAL EXPENDITURE,4990,"P121978-SERVICE-Carpeting of house -  underlay, trims and fix",28/5/2023 00:00:00,274133,3704,SO0400,SOUTHERN GREEN SERVICES LIMITED,05/01/2023 00:00,28/5/2023 00:00:00,P02-2024
P&V,EAST INDIA DOCK AND BOW CREEK,CAPITAL EXPENDITURE,CAPITAL EXPENDITURE,4990,P118828-SERVICE-East India Dock Basin Project - Pre Applicati,05/09/2023 00:00,273788,274.5,MA0488,MARINE MANAGEMENT ORGANISATION,05/01/2023 00:00,28/5/2023 00:00:00,P02-2024
,LEE VALLEY ICE CENTRE,CAPITAL EXPENDITURE,CAPITAL EXPENDITURE,4990,P121956-SERVICE-Ice Centre Interim certificate 022,16/5/2023 00:00:00,273938,116582.86,BU0634,BUCKINGHAM GROUP CONTRACTING LIMITED,05/01/2023 00:00,28/5/2023 00:00:00,P02-2024
,LEE VALLEY ICE CENTRE,CAPITAL EXPENDITURE,CAPITAL EXPENDITURE,4990,P121862-SERVICE-Ice Centre FFE - Fitness Equipment,17/5/2023 00:00:00,274019,207708,GR0097,GREENWICH LEISURE LTD,05/01/2023 00:00,28/5/2023 00:00:00,P02-2024
,LEE VALLEY ICE CENTRE,CAPITAL EXPENDITURE,CAPITAL EXPENDITURE,4990,P121863-SERVICE-Ice Centre FFE Catering equipment,17/5/2023 00:00:00,274020,228543,GR0097,GREENWICH LEISURE LTD,05/01/2023 00:00,28/5/2023 00:00:00,P02-2024
,LEE VALLEY ICE CENTRE,CAPITAL EXPENDITURE,CAPITAL EXPENDITURE,4990,P121950-SERVICE-WInch to allow cameras to be repaired and ser,23/5/2023 00:00:00,274212,380,DE0013,DENNIS SECURITY CENTRE,05/01/2023 00:00,28/5/2023 00:00:00,P02-2024
,LEE VALLEY WHITE WATER CENTRE,CAPITAL EXPENDITURE,CAPITAL EXPENDITURE,4990,P121635-SERVICE-Cabling at WWC additonal,15/5/2023 00:00:00,273770,275,IQ0022,IQUAL,05/01/2023 00:00,28/5/2023 00:00:00,P02-2024
P&V,EVENTS MANAGEMENT (PR),THIRD PARTY PAYMENTS,MAJOR EVENTS (EXPENDITURE),5102,P121368-SERVICE-To rectify fault following cycling event (TCL,05/09/2023 00:00,273669,150,ST0690,STUDIOTECH (UK) LTD,05/01/2023 00:00,28/5/2023 00:00:00,P02-2024
P&V,EVENTS MANAGEMENT (PR),THIRD PARTY PAYMENTS,MAJOR EVENTS (EXPENDITURE),5102,P121323-SERVICE-Velopark - Graphic works,05/09/2023 00:00,273672,758,LE0454,LEARN TO DREAM LTD,05/01/2023 00:00,28/5/2023 00:00:00,P02-2024
P&V,EVENTS MANAGEMENT (PR),THIRD PARTY PAYMENTS,MAJOR EVENTS (EXPENDITURE),5102,P121320-SERVICE-TCL - part refund of damage deposit,05/09/2023 00:00,273683,4775.27,NA0054,BRITISH CYCLING EVENTS LTD,05/01/2023 00:00,28/5/2023 00:00:00,P02-2024
CEO,PR/COMMUNICATIONS,THIRD PARTY PAYMENTS,CONSULTANTS (GENERAL),5110,P121681-SERVICE-Communications Support - LVRPA Corporate,16/5/2023 00:00:00,273934,1907.75,LO0024,LONDON COMMUNICATIONS AGENCY LTD,05/01/2023 00:00,28/5/2023 00:00:00,P02-2024
CEO,PROPERTY,THIRD PARTY PAYMENTS,CONSULTANTS (GENERAL),5110,P121844-SERVICE-Hawes Lane Survey,05/10/2023 00:00,273545,1450,CS0310,CSL SURVEYS  (STEVENAGE) LIMITED,05/01/2023 00:00,28/5/2023 00:00:00,P02-2024
P&V,"ASSET PROTECTION, MAINT, DEVEL",THIRD PARTY PAYMENTS,CONSULTANTS (GENERAL),5110,P120468-SERVICE-Energy Developement Opportunities,23/5/2023 00:00:00,271696,8000,CA0681,CARTER JONAS LLP,05/01/2023 00:00,28/5/2023 00:00:00,P02-2024
P&V,"ASSET PROTECTION, MAINT, DEVEL",THIRD PARTY PAYMENTS,CONSULTANTS (GENERAL),5110,P121008-SERVICE-Hostile Vehilce Mitigation - Detailed Design,16/5/2023 00:00:00,273714,5985,DJ0297,DJ GOODE & ASSOCIATES LTD,05/01/2023 00:00,28/5/2023 00:00:00,P02-2024
P&V,"ASSET PROTECTION, MAINT, DEVEL",THIRD PARTY PAYMENTS,CONSULTANTS (GENERAL),5110,P121840-SERVICE-Drawings - Dobbs Weir static floor levels,15/5/2023 00:00:00,273803,300,BE0656,BERZINS ARCHITECTS,05/01/2023 00:00,28/5/2023 00:00:00,P02-2024
P&V,"ASSET PROTECTION, MAINT, DEVEL",THIRD PARTY PAYMENTS,CONSULTANTS (GENERAL),5110,P121948-SERVICE-Planning Application Laundry Stanstead Marina,23/5/2023 00:00:00,274147,1100,BE0656,BERZINS ARCHITECTS,05/01/2023 00:00,28/5/2023 00:00:00,P02-2024
R&B,FINANCE & RESOURCES MANAGEMENT,THIRD PARTY PAYMENTS,CONSULTANTS (GENERAL),5110,P121805-SERVICE-Quarterly helpline 1/4/23 - 30/6/23,05/03/2023 00:00,273567,800,KP0010,KPMG TAX ADVISERS,05/01/2023 00:00,28/5/2023 00:00:00,P02-2024
CEO,LEGAL SERVICES,THIRD PARTY PAYMENTS,CONSULTANTS (GENERAL),5110,P121784-SERVICE-GLL Advice,05/09/2023 00:00,273663,1064.3,WO0344,WOMBLE BOND DICKINSON (UK) LLP,05/01/2023 00:00,28/5/2023 00:00:00,P02-2024
CEO,LEGAL SERVICES,THIRD PARTY PAYMENTS,CONSULTANTS (GENERAL),5110,P122091-SERVICE-LVWWC - Report on Title,28/5/2023 00:00:00,273685,2101.6,WO0344,WOMBLE BOND DICKINSON (UK) LLP,05/01/2023 00:00,28/5/2023 00:00:00,P02-2024
CEO,LEGAL SERVICES,THIRD PARTY PAYMENTS,CONSULTANTS (GENERAL),5110,P122092-SERVICE-East Wing North - LVAC,28/5/2023 00:00:00,273686,790.5,WO0344,WOMBLE BOND DICKINSON (UK) LLP,05/01/2023 00:00,28/5/2023 00:00:00,P02-2024
CEO,LEGAL SERVICES,THIRD PARTY PAYMENTS,CONSULTANTS (GENERAL),5110,P122093-SERVICE-Lease Renewal - Boat Centre,28/5/2023 00:00:00,273687,563.4,WO0344,WOMBLE BOND DICKINSON (UK) LLP,05/01/2023 00:00,28/5/2023 00:00:00,P02-2024
R&B,INTERNAL AUDIT/HEALTH & SAFETY,THIRD PARTY PAYMENTS,CONSULTANTS (HEALTH & SAFETY),5123,P121430-SERVICE-Annual H&S contract April - October 2023,23/5/2023 00:00:00,274168,11458.33,RI0053,RIGHT DIRECTIONS (MANAGEMENT) LTD,05/01/2023 00:00,28/5/2023 00:00:00,P02-2024
R&B,BALANCE SHEET (AUTHORITY),CREDITORS,EMPLOYEES INCOME TAX,6701,PAYE -MAY 2023 PAYROLL,15/5/2023 00:00:00,273906,61152.1,HM0368,HMRC,05/01/2023 00:00,28/5/2023 00:00:00,P02-2024
R&B,BALANCE SHEET (AUTHORITY),CREDITORS,EMPLOYEES NATIONAL INSURANCE,6702,PAYE -May 2023 payroll,15/5/2023 00:00:00,273906,27319.37,HM0368,HMRC,05/01/2023 00:00,28/5/2023 00:00:00,P02-2024
R&B,BALANCE SHEET (AUTHORITY),CREDITORS,EMPLOYERS NATIONAL INSURANCE,6704,PAYE -May 2023 payroll,15/5/2023 00:00:00,273906,42968.32,HM0368,HMRC,05/01/2023 00:00,28/5/2023 00:00:00,P02-2024
R&B,BALANCE SHEET (AUTHORITY),CREDITORS,EMPLOYEES PENSION LGPS,6706,EMPLOYEE CONTRIBUTIONS-MAY 2023,15/5/2023 00:00:00,273907,27163.45,LO0334,LONDON PENSION FUND OPERATIONAL ACCOUNT,05/01/2023 00:00,28/5/2023 00:00:00,P02-2024
R&B,BALANCE SHEET (AUTHORITY),CREDITORS,EMPLOYEES PENSION LGPS,6706,AVC CONTRIBUTIONS-MAY 2023,15/5/2023 00:00:00,273908,125,LO0455,LOCAL GOVERNMENT AVC DEPARTMENT,05/01/2023 00:00,28/5/2023 00:00:00,P02-2024
R&B,BALANCE SHEET (AUTHORITY),CREDITORS,EMPLOYERS PENSION LGPS,6707,EMPLOYER CONTRIBUTIONS-MAY 2023,15/5/2023 00:00:00,273907,52026.9,LO0334,LONDON PENSION FUND OPERATIONAL ACCOUNT,05/01/2023 00:00,28/5/2023 00:00:00,P02-2024
R&B,BALANCE SHEET (AUTHORITY),CREDITORS,EMPLOYEES STUDENT LOANS,6709,PAYE -May 2023 payroll,15/5/2023 00:00:00,273906,1419,HM0368,HMRC,05/01/2023 00:00,28/5/2023 00:00:00,P02-2024
R&B,BALANCE SHEET (AUTHORITY),CREDITORS,EMPLOYEES AEO/DEO,6710,ATTACHMENT OF EARNINGS,15/5/2023 00:00:00,273910,147.33,HM0464,HMCTS- LONDON COLLECTION & COMPLIANCE,05/01/2023 00:00,28/5/2023 00:00:00,P02-2024
R&B,BALANCE SHEET (AUTHORITY),CREDITORS,EMPLOYEES UNION SUBSCRIPTIONS,6711,MEMEBERSHIP FEES -MAY 2023,15/5/2023 00:00:00,273909,57,UN0002,UNISON Greater London Region,05/01/2023 00:00,28/5/2023 00:00:00,P02-2024
R&B,BALANCE SHEET (AUTHORITY),CREDITORS,CONSTRUCTION INDUSTRY SCHEME,6721,KENDALL & SONS LIMITED,05/03/2023 00:00,273604,-39.6,KE0023,KENDALL & SONS LIMITED,05/01/2023 00:00,28/5/2023 00:00:00,P02-2024
R&B,BALANCE SHEET (AUTHORITY),CREDITORS,CONSTRUCTION INDUSTRY SCHEME,6721,R G JOYCE,05/10/2023 00:00,273861,-120,JO0019,R G JOYCE,05/01/2023 00:00,28/5/2023 00:00:00,P02-2024
R&B,BALANCE SHEET (AUTHORITY),CREDITORS,CONSTRUCTION INDUSTRY SCHEME,6721,CAPSER,15/5/2023 00:00:00,273915,150,IN0016,INLAND REVENUE ONLY 948/L1005,05/01/2023 00:00,28/5/2023 00:00:00,P02-2024
R&B,BALANCE SHEET (AUTHORITY),CREDITORS,CONSTRUCTION INDUSTRY SCHEME,6721,KENDALLS,15/5/2023 00:00:00,273915,1749.58,IN0016,INLAND REVENUE ONLY 948/L1005,05/01/2023 00:00,28/5/2023 00:00:00,P02-2024
R&B,BALANCE SHEET (AUTHORITY),CREDITORS,CONSTRUCTION INDUSTRY SCHEME,6721,R G JOYCE,17/5/2023 00:00:00,274080,-210,JO0019,R G JOYCE,05/01/2023 00:00,28/5/2023 00:00:00,P02-2024
R&B,BALANCE SHEET (AUTHORITY),CREDITORS,CONSTRUCTION INDUSTRY SCHEME,6721,KENDALL & SONS LIMITED,24/5/2023 00:00:00,274286,-42,KE0023,KENDALL & SONS LIMITED,05/01/2023 00:00,28/5/2023 00:00:00,P02-2024
R&B,BALANCE SHEET (AUTHORITY),CL SUSPENSE,INSURANCE SUSPENSE,6861,EXCESS AND VAT,28/5/2023 00:00:00,274339,1000,MO0461,MONTAGU COACHWORKS LTD,05/01/2023 00:00,28/5/2023 00:00:00,P02-2024
R&B,BALANCE SHEET (AUTHORITY),CL SUSPENSE,INSURANCE SUSPENSE,6861,EXCESS AND VAT,28/5/2023 00:00:00,274339,0,MO0461,MONTAGU COACHWORKS LTD,05/01/2023 00:00,28/5/2023 00:00:00,P02-2024
,LV LEISURE CENTRE CAMPSITE,INCOME,TOURING FEES,9376,REFUND FOR PITCH PAYMENT AT EDMONTON AND REPAIR TO MOTOR HOME DAMAGED BY GOLF BALL,05/03/2023 00:00,273553,500,MC0492,MRS M MCINERNEY,05/01/2023 00:00,28/5/2023 00:00:00,P02-2024
P&V,CAR PARK INCOME,INCOME,CAR PARKING INCOME,9730,P121828-SERVICE-Paid Parking Tickets Used - WAG - Apr 2023,05/09/2023 00:00,273574,2.82,PA0372,PARKINGEYE LIMITED,05/01/2023 00:00,28/5/2023 00:00:00,P02-2024
P&V,CAR PARK INCOME,INCOME,CAR PARKING INCOME,9730,P121828-SERVICE-Paid Parking Tickets Used - Clayton- Apr 2023,05/09/2023 00:00,273574,0.12,PA0372,PARKINGEYE LIMITED,05/01/2023 00:00,28/5/2023 00:00:00,P02-2024
P&V,CAR PARK INCOME,INCOME,CAR PARKING INCOME,9730,P121828-SERVICE-Paid Parking Tickets Used - FG - Apr 2023,05/09/2023 00:00,273574,3.98,PA0372,PARKINGEYE LIMITED,05/01/2023 00:00,28/5/2023 00:00:00,P02-2024
P&V,CAR PARK INCOME,INCOME,CAR PARKING INCOME,9730,P121828-SERVICE-Paid Parking Tickets Used - Pindar - Apr 2023,05/09/2023 00:00,273574,3.82,PA0372,PARKINGEYE LIMITED,05/01/2023 00:00,28/5/2023 00:00:00,P02-2024
P&V,CAR PARK INCOME,INCOME,CAR PARKING INCOME,9730,P121828-SERVICE-Paid Parking Tickets Used - GPP - Apr 2023,05/09/2023 00:00,273574,5.21,PA0372,PARKINGEYE LIMITED,05/01/2023 00:00,28/5/2023 00:00:00,P02-2024
P&V,CAR PARK INCOME,INCOME,CAR PARKING INCOME,9730,P121828-SERVICE-Paid Parking Tickets Used - CMM - Apr 2023,05/09/2023 00:00,273574,0.68,PA0372,PARKINGEYE LIMITED,05/01/2023 00:00,28/5/2023 00:00:00,P02-2024
P&V,CAR PARK INCOME,INCOME,CAR PARKING INCOME,9730,P121828-SERVICE-P&D Recharge CA110656 - Apr 2023,05/09/2023 00:00,273575,32.16,PA0372,PARKINGEYE LIMITED,05/01/2023 00:00,28/5/2023 00:00:00,P02-2024
P&V,CAR PARK INCOME,INCOME,CAR PARKING INCOME,9730,P121828-SERVICE-P&D Recharge WAG - Apr 2023,05/09/2023 00:00,273575,27.96,PA0372,PARKINGEYE LIMITED,05/01/2023 00:00,28/5/2023 00:00:00,P02-2024
P&V,CAR PARK INCOME,INCOME,CAR PARKING INCOME,9730,P121828-SERVICE-P&D Recharge Pindar - Apr 2023,05/09/2023 00:00,273575,35.52,PA0372,PARKINGEYE LIMITED,05/01/2023 00:00,28/5/2023 00:00:00,P02-2024
P&V,CAR PARK INCOME,INCOME,CAR PARKING INCOME,9730,P121828-SERVICE-P&D Recharge FG - Apr 2023,05/09/2023 00:00,273575,38.46,PA0372,PARKINGEYE LIMITED,05/01/2023 00:00,28/5/2023 00:00:00,P02-2024
P&V,CAR PARK INCOME,INCOME,CAR PARKING INCOME,9730,P121828-SERVICE-P&D Recharge CMM - Apr 2023,05/09/2023 00:00,273575,6.66,PA0372,PARKINGEYE LIMITED,05/01/2023 00:00,28/5/2023 00:00:00,P02-2024
P&V,CAR PARK INCOME,INCOME,CAR PARKING INCOME,9730,P121828-SERVICE-P&D Recharge GPp - Apr 2023,05/09/2023 00:00,273575,51.18,PA0372,PARKINGEYE LIMITED,05/01/2023 00:00,28/5/2023 00:00:00,P02-2024
P&V,CAR PARK INCOME,INCOME,CAR PARKING INCOME,9730,PARKINGEYE LIMITED,05/09/2023 00:00,273576,-83.88,PA0372,PARKINGEYE LIMITED,05/01/2023 00:00,28/5/2023 00:00:00,P02-2024
P&V,CAR PARK INCOME,INCOME,CAR PARKING INCOME,9730,PARKINGEYE LIMITED,05/09/2023 00:00,273577,-13.63,PA0372,PARKINGEYE LIMITED,05/01/2023 00:00,28/5/2023 00:00:00,P02-2024
P&V,CAR PARK INCOME,INCOME,CAR PARKING INCOME,9730,PARKINGEYE LIMITED,05/09/2023 00:00,273578,-63,PA0372,PARKINGEYE LIMITED,05/01/2023 00:00,28/5/2023 00:00:00,P02-2024
P&V,CAR PARK INCOME,INCOME,CAR PARKING INCOME,9730,PARKINGEYE LIMITED,05/09/2023 00:00,273579,-43,PA0372,PARKINGEYE LIMITED,05/01/2023 00:00,28/5/2023 00:00:00,P02-2024
P&V,CAR PARK INCOME,INCOME,CAR PARKING INCOME,9730,PARKINGEYE LIMITED,05/09/2023 00:00,273580,-48.08,PA0372,PARKINGEYE LIMITED,05/01/2023 00:00,28/5/2023 00:00:00,P02-2024
P&V,CAR PARK INCOME,INCOME,CAR PARKING INCOME,9730,PARKINGEYE LIMITED,05/09/2023 00:00,273581,-31.38,PA0372,PARKINGEYE LIMITED,05/01/2023 00:00,28/5/2023 00:00:00,P02-2024
P&V,CAR PARK INCOME,INCOME,CAR PARKING INCOME,9730,PARKINGEYE LIMITED,05/09/2023 00:00,273582,-56.13,PA0372,PARKINGEYE LIMITED,05/01/2023 00:00,28/5/2023 00:00:00,P02-2024
P&V,CAR PARK INCOME,INCOME,CAR PARKING INCOME,9730,PARKINGEYE LIMITED,05/09/2023 00:00,273583,390.94,PA0372,PARKINGEYE LIMITED,05/01/2023 00:00,28/5/2023 00:00:00,P02-2024
P&V,CAR PARK INCOME,INCOME,CAR PARKING INCOME,9730,PARKINGEYE LIMITED,05/09/2023 00:00,273583,-6432.93,PA0372,PARKINGEYE LIMITED,05/01/2023 00:00,28/5/2023 00:00:00,P02-2024
P&V,CAR PARK INCOME,INCOME,CAR PARKING INCOME,9730,Parking,16/5/2023 00:00:00,273961,-142.58,PA0372,PARKINGEYE LIMITED,05/01/2023 00:00,28/5/2023 00:00:00,P02-2024
